﻿Body Name,Service Area,Expenses Type,Invoice Payment Date,Transaction Number,Supplier Name,Net Amount
Manchester City Council,Housing General Fund,Building Works,02-May-23,1908091452,Pollock Lifts Ltd,"£16,752.00"
Manchester City Council,Housing General Fund,Building Works,02-May-23,1908091457,Pollock Lifts Ltd,£550.00
Manchester City Council,Manchester Leisure,Grant and subscriptions awarded,02-May-23,5105869567,Turkey Lane & Monsall Neighbourhood,£600.00
Manchester City Council,Manchester Leisure,Grant Payments,02-May-23,5105869570,Museums Association,"£1,767.76"
Manchester City Council,Manchester Leisure,Furniture,02-May-23,5105869544,H Jenkinson & Co Ltd.,"£1,730.06"
Manchester City Council,Adult Social Care,Furniture,02-May-23,5105869542,H Jenkinson & Co Ltd.,£540.00
Manchester City Council,Adult Social Care,Stationery,02-May-23,5105869541,H Jenkinson & Co Ltd.,"£1,749.00"
Manchester City Council,Adult Social Care,Stationery,02-May-23,5105869545,H Jenkinson & Co Ltd.,"-£1,749.00"
Manchester City Council,Adult Social Care,Stationery,02-May-23,5105869546,H Jenkinson & Co Ltd.,"£1,749.00"
Manchester City Council,Hospitality + Trading Services,Hire of Machinery,02-May-23,5105869555,R & M Developments Ltd,"£1,073.50"
Manchester City Council,Hospitality + Trading Services,Hire of Machinery,02-May-23,5105869556,R & M Developments Ltd,"£1,073.50"
Manchester City Council,Corporate Services,Bank Charges,02-May-23,1908092320,Capita Business Services Ltd,"£7,506.37"
Manchester City Council,Manchester Leisure,Grant and subscriptions awarded,02-May-23,5105869554,Norbrook Youth Club,£793.17
Manchester City Council,Housing General Fund,Building Works,02-May-23,1908091450,Stannah Lift Services Ltd,"£3,766.00"
Manchester City Council,Housing General Fund,Building Works,02-May-23,1908091455,Stannah Lift Services Ltd,"£4,221.00"
Manchester City Council,Housing General Fund,Building Works,02-May-23,1908091451,Stannah Lift Services Ltd,"£7,607.00"
Manchester City Council,Childrens & Education Services,Gas,02-May-23,5105869574,Manchester School Services Limited,"£15,589.66"
Manchester City Council,Childrens & Education Services,Gas,02-May-23,5105869574,Manchester School Services Limited,"£66,223.71"
Manchester City Council,Childrens & Education Services,Payments for services,02-May-23,5105869576,David Lewis Organisation,"£29,221.33"
Manchester City Council,Childrens & Education Services,Payments for services,02-May-23,5105869577,David Lewis Organisation,"£15,504.00"
Manchester City Council,Childrens & Education Services,Payments for services,02-May-23,5105869578,David Lewis Organisation,"£22,781.33"
Manchester City Council,Childrens & Education Services,Payments for services,02-May-23,5105869579,David Lewis Organisation,"£21,524.00"
Manchester City Council,Childrens & Education Services,Payments for services,02-May-23,5105869580,David Lewis Organisation,"£16,040.33"
Manchester City Council,Childrens & Education Services,Payments for services,02-May-23,5105869611,David Lewis Organisation,"£20,328.67"
Manchester City Council,Childrens & Education Services,Payments for services,02-May-23,5105869612,David Lewis Organisation,"£15,607.33"
Manchester City Council,Childrens & Education Services,Payments for services,02-May-23,5105869613,David Lewis Organisation,"£15,436.33"
Manchester City Council,Chief Executives,ICT Sup & Maintnance,02-May-23,5105869594,Softbox Ltd,"£1,476.00"
Manchester City Council,Hospitality + Trading Services,Compensation Payments,02-May-23,1908090687,Department For Work & Pensions,"£9,302.96"
Manchester City Council,Regeneration Finance,Professional fees,02-May-23,5105869553,Price Waterhouse Coopers LLP,"£3,200.00"
Manchester City Council,Housing General Fund,Building Works,02-May-23,1908091453,Hoist & Shower Chair Company,"£2,653.00"
Manchester City Council,Corporate Services,Works and associated costs for Land and Buildings,02-May-23,5105869559,SMG (Europe) Ltd,"£11,770.35"
Manchester City Council,Corporate Services,Works and associated costs for Land and Buildings,02-May-23,5105869559,SMG (Europe) Ltd,"£1,177.04"
Manchester City Council,Chief Executives,Works and associated costs for Land and Buildings,02-May-23,5105869569,Morgan Sindall C & I Ltd,"£126,524.47"
Manchester City Council,Chief Executives,Works and associated costs for Land and Buildings,02-May-23,5105869569,Morgan Sindall C & I Ltd,"£51,046.28"
Manchester City Council,Chief Executives,Works and associated costs for Land and Buildings,02-May-23,5105869569,Morgan Sindall C & I Ltd,"£177,462.18"
Manchester City Council,Highways Services,Payments to Sub-Contractors,02-May-23,5105869531,Northern Marking Limited,"-£5,577.00"
Manchester City Council,Highways Services,Payments to Sub-Contractors,02-May-23,5105869532,Northern Marking Limited,"£5,577.00"
Manchester City Council,Highways Services,Payments to Sub-Contractors,02-May-23,5105869535,Northern Marking Limited,"-£3,813.50"
Manchester City Council,Highways Services,Payments to Sub-Contractors,02-May-23,5105869536,Northern Marking Limited,"£3,813.50"
Manchester City Council,Highways Services,Payments to Sub-Contractors,02-May-23,5105869537,Northern Marking Limited,"-£3,913.54"
Manchester City Council,Highways Services,Payments to Sub-Contractors,02-May-23,5105869538,Northern Marking Limited,"£3,913.54"
Manchester City Council,Adult Social Care,Equipment,02-May-23,5105869585,Aidapt Bathrooms Ltd,"£4,725.00"
Manchester City Council,Chief Executives,Licences Purchase,02-May-23,5105869575,Trustmarque Solutions Ltd,"£45,132.81"
Manchester City Council,Hospitality + Trading Services,Legal Fees,02-May-23,1908085929,Civil Costs Specialist Ltd,"£1,500.00"
Manchester City Council,Manchester Leisure,Works and associated costs for Land and Buildings,02-May-23,5105869539,ISG Construction Limited,"-£561,899.02"
Manchester City Council,Manchester Leisure,Works and associated costs for Land and Buildings,02-May-23,5105869540,ISG Construction Limited,"£561,899.02"
Manchester City Council,Manchester Leisure,Refuse Collection,02-May-23,5105869720,Vetspeed Ltd t/a Novus Environmenta,"-£3,844.00"
Manchester City Council,Manchester Leisure,Grant and subscriptions awarded,02-May-23,5105869558,Fallowfield Library & Comm Centre,£850.00
Manchester City Council,Hospitality + Trading Services,Legal Fees,02-May-23,1908085918,Slater & Gordon (UK) LLP,"£29,500.00"
Manchester City Council,Adult Social Care,Rents,02-May-23,5105869571,Housing Social Ltd,"£37,091.71"
Manchester City Council,Regeneration Finance,Electricity,02-May-23,5105869572,Suez Recycling and,"£31,935.79"
Manchester City Council,Adult Social Care,Payments for services,02-May-23,5105869582,FoodSync CIC,"£2,975.00"
Manchester City Council,Adult Social Care,Third party payments to Health Authority,02-May-23,1908091068,YOURmedpack Ltd,£808.00
Manchester City Council,Corporate Services,Professional fees,02-May-23,5105869573,WSP UK Limited,"£1,312.50"
Manchester City Council,Manchester Leisure,Compensation Payments,02-May-23,1908092336,Bond Turner Solicitors,"£2,745.60"
Manchester City Council,Chief Executives,Furniture,02-May-23,5105869551,Redacted Personal Information,"£1,482.87"
Manchester City Council,Childrens & Education Services,Professional fees,02-May-23,5105869581,The Movez Movement,"£1,348.75"
Manchester City Council,Hospitality + Trading Services,Funeral and coroner related services,02-May-23,1700148938,Redacted Personal Information,"-£1,078.66"
Manchester City Council,Chief Executives,Subsistence and Conference Expenses,02-May-23,1908092331,Downtown in Business Ltd,"£3,500.00"
Manchester City Council,Hospitality + Trading Services,Legal Fees,02-May-23,1908085935,Leigh Day Solicitors,"£18,952.00"
Manchester City Council,Childrens & Education Services,Payments for services,03-May-23,5105869699,The Together Trust,"£78,760.96"
Manchester City Council,Childrens & Education Services,Payments for services,03-May-23,5105869700,The Together Trust,"£40,084.24"
Manchester City Council,Childrens & Education Services,Payments for services,03-May-23,5105869731,The Together Trust,"£3,964.45"
Manchester City Council,Childrens & Education Services,Payments for services,03-May-23,5105869732,The Together Trust,"£5,930.49"
Manchester City Council,Childrens & Education Services,Payments for services,03-May-23,5105869733,The Together Trust,"£3,878.73"
Manchester City Council,Childrens & Education Services,Payments for services,03-May-23,5105869734,The Together Trust,"£3,972.73"
Manchester City Council,Childrens & Education Services,Payments for services,03-May-23,5105869735,The Together Trust,"£3,972.73"
Manchester City Council,Regeneration Finance,Legal Fees,03-May-23,5105869793,Eversheds Llp,"£10,707.50"
Manchester City Council,Highways Services,Purchase of stores for re-distribution,03-May-23,5105869589,Instarmac Group Ltd,"£3,240.16"
Manchester City Council,Highways Services,Purchase of stores for re-distribution,03-May-23,5105869973,Marshalls Mono Ltd,"-£10,731.75"
Manchester City Council,Adult Social Care,Professional fees,03-May-23,5105869823,Action First iPeople Ltd,£500.00
Manchester City Council,Chief Executives,Works and associated costs for Land and Buildings,03-May-23,5105869658,Building Design Partnership Limited,"-£18,619.29"
Manchester City Council,Chief Executives,Works and associated costs for Land and Buildings,03-May-23,5105869659,Building Design Partnership Limited,"£18,619.29"
Manchester City Council,Chief Executives,Works and associated costs for Land and Buildings,03-May-23,5105869660,Building Design Partnership Limited,"-£34,505.18"
Manchester City Council,Manchester Leisure,Refuse Collection,03-May-23,5105869726,GTS Steam Cleaners,£933.75
Manchester City Council,Manchester Leisure,Refuse Collection,03-May-23,5105869752,GTS Steam Cleaners,"-£2,469.00"
Manchester City Council,Childrens & Education Services,Rates,03-May-23,5105869792,The Manchester College,"£3,191.23"
Manchester City Council,Regeneration Finance,Security,03-May-23,5105869707,Showsec International Ltd,"-£17,816.04"
Manchester City Council,Adult Social Care,Third party payments relating to Voluntary Organisations,03-May-23,5105869623,Fishers Cleaning Services Ltd,£573.75
Manchester City Council,Chief Executives,Legal Fees,03-May-23,5105869646,Kings Chambers,"£1,000.00"
Manchester City Council,Chief Executives,ICT Sup & Maintnance,03-May-23,5105869795,Experian Qas Ltd,"£36,003.06"
Manchester City Council,Adult Social Care,Professional fees,03-May-23,5105869776,Riverside ECHG,"£2,902.02"
Manchester City Council,Adult Social Care,Professional fees,03-May-23,5105869796,Riverside ECHG,"£5,299.50"
Manchester City Council,Regeneration Finance,I T Provision,03-May-23,5105869767,Compass Computer Consultants Ltd,"£3,542.32"
Manchester City Council,Manchester Leisure,Works and associated costs for Land and Buildings,03-May-23,5105869676,Eagle Containers Ltd,£970.00
Manchester City Council,Chief Executives,Works and associated costs for Land and Buildings,03-May-23,5105869655,Deloitte & Touche Llp,"£3,000.00"
Manchester City Council,Adult Social Care,Third party payments relating to Voluntary Organisations,03-May-23,5105869685,Arawak Walton Housing Association,"£4,468.00"
Manchester City Council,Housing General Fund,Building Works,03-May-23,1908091456,Stannah Lift Services Ltd,"£5,659.00"
Manchester City Council,Regeneration Finance,Grant and subscriptions awarded,03-May-23,5105869607,Creative Concern Ltd,"£7,284.65"
Manchester City Council,Regeneration Finance,Professional fees,03-May-23,5105869772,Stockport Metropolitan Borough,"£2,370.00"
Manchester City Council,Adult Social Care,Third party payments relating to Voluntary Organisations,03-May-23,5105869737,Talbot House Support Centre,"£7,178.51"
Manchester City Council,Adult Social Care,Third party payments relating to Voluntary Organisations,03-May-23,5105869788,Talbot House Support Centre,"£7,178.51"
Manchester City Council,Childrens & Education Services,Payments for services,03-May-23,5105869616,David Lewis Organisation,"£19,494.67"
Manchester City Council,Childrens & Education Services,Payments for services,03-May-23,5105869631,David Lewis Organisation,"£15,436.33"
Manchester City Council,Childrens & Education Services,Payments for services,03-May-23,5105869632,David Lewis Organisation,"£22,711.33"
Manchester City Council,Childrens & Education Services,Payments for services,03-May-23,5105869634,David Lewis Organisation,"£22,767.00"
Manchester City Council,Childrens & Education Services,Payments for services,03-May-23,5105869636,David Lewis Organisation,"£19,494.67"
Manchester City Council,Childrens & Education Services,Payments for services,03-May-23,5105869638,David Lewis Organisation,"£2,927.28"
Manchester City Council,Childrens & Education Services,Payments for services,03-May-23,5105869639,David Lewis Organisation,"£14,218.93"
Manchester City Council,Childrens & Education Services,Payments for services,03-May-23,5105869640,David Lewis Organisation,"£16,550.33"
Manchester City Council,Manchester Leisure,Grant and subscriptions awarded,03-May-23,5105869724,Manchester Action On Street Health,"£4,950.00"
Manchester City Council,Highways Services,Payments to Sub-Contractors,03-May-23,5105869704,Rosgal Ltd,"-£5,375.00"
Manchester City Council,Highways Services,Payments to Sub-Contractors,03-May-23,5105869813,Rosgal Ltd,"£4,167.20"
Manchester City Council,Chief Executives,Printing,03-May-23,5105869705,Browns CTP Ltd,"£5,375.00"
Manchester City Council,Manchester Leisure,Building Materials for direct delivery,03-May-23,5105869595,A & I Supplies,£593.71
Manchester City Council,Chief Executives,Counsel Costs,03-May-23,1700148939,Redacted Personal Information,-£593.75
Manchester City Council,Chief Executives,Grant and subscriptions awarded,03-May-23,5105869801,The Manchester Law Society,"£2,099.00"
Manchester City Council,Chief Executives,Legal Fees,03-May-23,5105869642,Warwickshire County Council,£534.60
Manchester City Council,Chief Executives,Legal Fees,03-May-23,5105869643,Warwickshire County Council,£878.03
Manchester City Council,Highways Services,Training-Day Release,03-May-23,5105869718,LGV4U Ltd,"-£6,276.68"
Manchester City Council,Highways Services,Training-Day Release,03-May-23,5105869719,LGV4U Ltd,"£5,196.68"
Manchester City Council,Highways Services,Training-Day Release,03-May-23,5105869719,LGV4U Ltd,"£1,080.00"
Manchester City Council,Manchester Leisure,Grant and subscriptions awarded,03-May-23,5105869654,Cityco,"£9,975.00"
Manchester City Council,Corporate Services,Security,03-May-23,5105869896,Taranto Systems Ltd,"-£1,477.50"
Manchester City Council,Adult Social Care,Rents,03-May-23,5105869648,Accommodation Links Ltd,"£101,699.14"
Manchester City Council,Chief Executives,Legal Fees,03-May-23,5105869822,Weightmans LLP Solicitors,"£1,993.75"
Manchester City Council,Chief Executives,Legal Fees,03-May-23,5105869835,Weightmans LLP Solicitors,"£2,133.50"
Manchester City Council,Chief Executives,Advertising,03-May-23,5105869808,Global Radio Services Ltd,"£2,998.99"
Manchester City Council,Adult Social Care,Equipment,03-May-23,5105869584,Aidapt Bathrooms Ltd,"£2,450.00"
Manchester City Council,Regeneration Finance,Furniture,03-May-23,5105869608,XXXData Space Ltd (use 30021328),"£1,435.78"
Manchester City Council,Adult Social Care,Training and Development,03-May-23,5105869628,Foundations,"£1,680.00"
Manchester City Council,Housing Revenue Account,Council Dwelling Fees,03-May-23,5105869802,Pennington Choices Ltd,"£5,941.35"
Manchester City Council,Housing Revenue Account,Council Dwelling Fees,03-May-23,5105869803,Pennington Choices Ltd,"£1,980.45"
Manchester City Council,Manchester Leisure,Special Event,03-May-23,5105869624,Corporate & Sporting Events,"£9,679.17"
Manchester City Council,Manchester Leisure,Building Materials for direct delivery,03-May-23,5105869713,Landscape Supply Company,£964.10
Manchester City Council,Childrens & Education Services,Training and Development,03-May-23,5105869812,One Education Ltd,"£66,000.00"
Manchester City Council,Chief Executives,Printing,03-May-23,5105869657,t/a R.C.D.,£975.00
Manchester City Council,Corporate Services,Surveys Fees other,03-May-23,5105869791,Life Environmental Services,"£1,640.00"
Manchester City Council,Hospitality + Trading Services,Vehicle Repairs,03-May-23,5105869621,Gibsons Garden Machinery Limited,£815.76
Manchester City Council,Manchester Leisure,Building Materials for direct delivery,03-May-23,5105869708,Southern Allotments Society,"£1,819.66"
Manchester City Council,Chief Executives,Works and associated costs for Land and Buildings,03-May-23,5105869666,Buro Happold Limited,"£2,000.00"
Manchester City Council,Chief Executives,Works and associated costs for Land and Buildings,03-May-23,5105869667,Buro Happold Limited,"£2,000.00"
Manchester City Council,Chief Executives,Works and associated costs for Land and Buildings,03-May-23,5105869668,Buro Happold Limited,"£2,000.00"
Manchester City Council,Corporate Services,Fees,03-May-23,5105869806,Pannone Corporate LLP,"£7,300.00"
Manchester City Council,Adult Social Care,Third party payments to Health Authority,03-May-23,1908093961,Liverpool University Hospitals,£890.00
Manchester City Council,Housing Revenue Account,Council Dwelling Adaptations,03-May-23,5105869645,Solargen Energy Ltd,"£48,862.77"
Manchester City Council,Housing General Fund,Building Works,03-May-23,1908091454,UPS Building & Maintenance Ltd,"£16,105.05"
Manchester City Council,Adult Social Care,Bed & Breakfast Acc,03-May-23,5105869665,Redacted Personal Information,"£5,055.00"
Manchester City Council,Adult Social Care,Bed & Breakfast Acc,03-May-23,5105869775,Redacted Personal Information,"£5,120.00"
Manchester City Council,Adult Social Care,Rents,03-May-23,5105869811,Housing Social Ltd,"£34,598.86"
Manchester City Council,Adult Social Care,Professional fees,03-May-23,5105869779,Housing Social Ltd,£795.00
Manchester City Council,Chief Executives,Works and associated costs for Land and Buildings,03-May-23,5105869647,David Bonnett Associates Ltd.,"£1,485.00"
Manchester City Council,Adult Social Care,Rents,03-May-23,5105869587,Eeven Homes Ltd.,"£17,916.00"
Manchester City Council,Adult Social Care,Rents,03-May-23,5105869588,Eeven Homes Ltd.,"£17,916.00"
Manchester City Council,Manchester Leisure,Agency staff provision,03-May-23,5105869766,Manchester Art Gallery,"£2,675.82"
Manchester City Council,Manchester Leisure,Hire of Equipment,03-May-23,5105869982,Niche Event Hire,"-£1,199.00"
Manchester City Council,Manchester Leisure,Hire of Equipment,03-May-23,5105869982,Niche Event Hire,-£949.00
Manchester City Council,Adult Social Care,Bed & Breakfast Acc,03-May-23,5105869706,Redacted Personal Information,"£4,785.00"
Manchester City Council,Adult Social Care,Rents,03-May-23,5105869650,Manchester Housing Group Ltd,"£114,233.77"
Manchester City Council,Corporate Services,Grant and subscriptions awarded,03-May-23,5105869736,The Bread and Butter Thing,"£83,937.24"
Manchester City Council,Manchester Leisure,Payments to Sub-Contractors,03-May-23,5105869743,Synectics Security Limited,"-£2,552.05"
Manchester City Council,Manchester Leisure,Payments to Sub-Contractors,03-May-23,5105869745,Synectics Security Limited,"£2,552.05"
Manchester City Council,Adult Social Care,ICT Sup & Maintnance,03-May-23,5105869780,Stellar Network Solutions Ltd,"£1,040.00"
Manchester City Council,Hospitality + Trading Services,Vehicle Fuel Costs,03-May-23,5105869798,Standard Fuels Oils,"£17,583.09"
Manchester City Council,Childrens & Education Services,I T Provision,03-May-23,5105869598,Allied Publicity Services (M\cr) Lt,"£1,730.53"
Manchester City Council,Adult Social Care,Bed & Breakfast Acc,03-May-23,5105869669,Hala Guest House,"£5,645.00"
Manchester City Council,Childrens & Education Services,Transport Coach Hire,03-May-23,5105869596,AA Buses,"£8,303.00"
Manchester City Council,Adult Social Care,Bed & Breakfast Acc,03-May-23,5105869681,Medlock House Ltd,"£9,702.00"
Manchester City Council,Chief Executives,Expenditure re Internal Trading Ordered Externally,03-May-23,5105869825,Civica Election Services,"£1,637.97"
Manchester City Council,Chief Executives,Agency staff provision,03-May-23,5105869800,Isherwood Legal Limited,£980.00
Manchester City Council,Manchester Leisure,Grant and subscriptions awarded,03-May-23,5105869711,Know Africa Foundation,£500.00
Manchester City Council,Childrens & Education Services,Hire of Premises,03-May-23,5105869810,Manchester Vineyard,"£1,220.00"
Manchester City Council,Manchester Leisure,I T Provision,03-May-23,5105869832,Statista Ltd,"£9,495.00"
Manchester City Council,Childrens & Education Services,Payments for services,03-May-23,5105869697,Brighter Future,"£3,360.00"
Manchester City Council,Childrens & Education Services,Payments for services,03-May-23,5105869698,Brighter Future,"£7,150.00"
Manchester City Council,Manchester Leisure,Goods purchased for resale in Council outlets,03-May-23,5105869703,The Sculpture Design Studio Ltd,£650.00
Manchester City Council,Manchester Leisure,Legal Fees,03-May-23,1908096653,EMERALD LAW,"£11,250.00"
Manchester City Council,Childrens & Education Services,Payments for services,03-May-23,5105869695,Redacted Personal Information,£720.00
Manchester City Council,Adult Social Care,Bed & Breakfast Acc,03-May-23,5105869627,247Hotel.Com,"£8,582.50"
Manchester City Council,Childrens & Education Services,Home Care ,03-May-23,5105869637,WALKING TOGETHER,£700.00
Manchester City Council,Childrens & Education Services,Payments for services,03-May-23,5105869692,Heyhead Farm Education Centre Ltd,"£13,832.00"
Manchester City Council,Childrens & Education Services,Payments for services,03-May-23,5105869693,Heyhead Farm Education Centre Ltd,"£14,820.00"
Manchester City Council,Chief Executives,Printing,03-May-23,5105869597,The Purple Company (UK) Ltd,"£1,024.50"
Manchester City Council,Chief Executives,Printing,03-May-23,5105869678,The Purple Company (UK) Ltd,"-£1,024.50"
Manchester City Council,Childrens & Education Services,Professional fees,03-May-23,5105869696,The School of Sign Language,"£1,750.00"
Manchester City Council,Manchester Leisure,Payments to Sub-Contractors,03-May-23,5105869661,Sants Fabrications Ltd,"£1,199.81"
Manchester City Council,Manchester Leisure,Payments to Sub-Contractors,03-May-23,5105869662,Sants Fabrications Ltd,"£1,494.85"
Manchester City Council,Manchester Leisure,Payments to Sub-Contractors,03-May-23,5105869663,Sants Fabrications Ltd,"£1,900.00"
Manchester City Council,Manchester Leisure,Payments to Sub-Contractors,03-May-23,5105869664,Sants Fabrications Ltd,"£17,204.90"
Manchester City Council,Highways Services,Professional fees,03-May-23,5105869609,Causeway Technologies Ltd,"£1,615.00"
Manchester City Council,Highways Services,Professional fees,03-May-23,5105869610,Causeway Technologies Ltd,"£1,710.00"
Manchester City Council,Highways Services,Professional fees,03-May-23,5105869641,Causeway Technologies Ltd,"£1,710.00"
Manchester City Council,Adult Social Care,Rents,03-May-23,5105869674,NWA Housing Ltd,"£3,379.53"
Manchester City Council,Adult Social Care,Rents,03-May-23,5105869675,NWA Housing Ltd,"£2,845.92"
Manchester City Council,Childrens & Education Services,Professional fees,03-May-23,5105869827,The Movez Movement,"£1,348.75"
Manchester City Council,Manchester Leisure,Payments to Sub-Contractors,03-May-23,1908091032,Book An Artist Pty Ltd,"£2,031.99"
Manchester City Council,Manchester Leisure,Legal Fees,03-May-23,1908092398,Clear Law LLP,"£13,500.00"
Manchester City Council,Corporate Services,Professional fees,03-May-23,1908093962,CoStar UK Ltd,"£9,540.00"
Manchester City Council,Corporate Services,Compensation Payments,03-May-23,1908092405,Driscoll Kingston & Co Ltd,"£9,500.00"
Manchester City Council,Manchester Leisure,Legal Fees,03-May-23,1908092327,Driscoll Kingston & Co Ltd,"£5,250.00"
Manchester City Council,Manchester Leisure,Legal Fees,03-May-23,1908092392,Driscoll Kingston & Co Ltd,"£8,500.00"
Manchester City Council,Regeneration Finance,Compensation Payments,03-May-23,1908092387,Gowing Law Solicitors,"£1,100.00"
Manchester City Council,Manchester Leisure,Legal Fees,03-May-23,1908092329,Gowing Law Solicitors,"£13,000.00"
Manchester City Council,Highways Services,Compensation Payments,03-May-23,1908096656,Leigh Day Solicitors,"£18,650.00"
Manchester City Council,Insurance Fund,Insurance,03-May-23,1908096656,Leigh Day Solicitors,"£35,961.07"
Manchester City Council,Manchester Leisure,Compensation Payments,03-May-23,1908092383,Prowse Phillips Law Ltd,"£1,300.00"
Manchester City Council,Corporate Services,Compensation Payments,03-May-23,1908096648,Robert Bingham Limited,£950.00
Manchester City Council,Manchester Leisure,Compensation Payments,03-May-23,1908096650,Weightmans LLP,"£1,000.00"
Manchester City Council,Childrens & Education Services,Payments for services,04-May-23,5105870045,The Together Trust,"£1,841.88"
Manchester City Council,Childrens & Education Services,Payments for services,04-May-23,5105870046,The Together Trust,"£2,204.96"
Manchester City Council,Childrens & Education Services,Storage Costs,04-May-23,5105869971,Iron Mountain,£583.98
Manchester City Council,Childrens & Education Services,Storage Costs,04-May-23,5105869978,Iron Mountain,"£1,627.51"
Manchester City Council,Insurance Fund,Insurance,04-May-23,5105870129,Aon Ltd,"£378,000.00"
Manchester City Council,Insurance Fund,Insurance,04-May-23,5105870130,Aon Ltd,"£143,959.20"
Manchester City Council,Chief Executives,Postage,04-May-23,5105870025,Royal Mail Group Plc,"£40,093.17"
Manchester City Council,Highways Services,Legal Fees,04-May-23,1908097014,Eversheds Llp,£585.00
Manchester City Council,Highways Services,Legal Fees,04-May-23,1908098397,Eversheds Llp,"£2,790.00"
Manchester City Council,Highways Services,Legal Fees,04-May-23,1908098399,Eversheds Llp,"£19,202.00"
Manchester City Council,Corporate Services,Works and associated costs for Land and Buildings,04-May-23,5105869943,Eversheds Llp,"£8,000.00"
Manchester City Council,Environment and Operations,Works and associated costs for Land and Buildings,04-May-23,1908097014,Eversheds Llp,£585.00
Manchester City Council,Environment and Operations,Works and associated costs for Land and Buildings,04-May-23,1908098399,Eversheds Llp,"£17,803.50"
Manchester City Council,Chief Executives,Agency staff provision,04-May-23,5105869969,Solace In Business Ltd,"£20,900.00"
Manchester City Council,Housing Revenue Account,Council Dwelling Adaptations,04-May-23,5105869918,DLP Services (Northern) Ltd,"£133,656.71"
Manchester City Council,Childrens & Education Services,Transport Coach Hire,04-May-23,5105870288,Hastings Private Hire,-£540.00
Manchester City Council,Chief Executives,Agency staff provision,04-May-23,5105869957,NES UK Limited,"£23,994.65"
Manchester City Council,Adult Social Care,Refuse Collection,04-May-23,5105869868,Initial Medical Services,"£8,220.87"
Manchester City Council,Adult Social Care,Gas,04-May-23,1700149562,Scottish & Southern Energy Plc,"-£1,307.94"
Manchester City Council,Adult Social Care,Gas,04-May-23,1700149563,Scottish & Southern Energy Plc,-£868.85
Manchester City Council,Adult Social Care,Gas,04-May-23,1700149565,Scottish & Southern Energy Plc,-£661.01
Manchester City Council,Adult Social Care,Gas,04-May-23,1908098363,Scottish & Southern Energy Plc,"£1,207.51"
Manchester City Council,Adult Social Care,Gas,04-May-23,1908098364,Scottish & Southern Energy Plc,£980.66
Manchester City Council,Adult Social Care,Gas,04-May-23,1908098369,Scottish & Southern Energy Plc,"£1,275.97"
Manchester City Council,Adult Social Care,Gas,04-May-23,1908098376,Scottish & Southern Energy Plc,£553.77
Manchester City Council,Adult Social Care,Gas,04-May-23,1908098377,Scottish & Southern Energy Plc,"£1,937.04"
Manchester City Council,Adult Social Care,Gas,04-May-23,1908098378,Scottish & Southern Energy Plc,"£1,163.58"
Manchester City Council,Adult Social Care,Gas,04-May-23,1908098379,Scottish & Southern Energy Plc,"£1,151.13"
Manchester City Council,Adult Social Care,Gas,04-May-23,1908098380,Scottish & Southern Energy Plc,"£1,395.93"
Manchester City Council,Adult Social Care,Gas,04-May-23,1908098391,Scottish & Southern Energy Plc,"£2,286.75"
Manchester City Council,Housing Revenue Account,Gas,04-May-23,1908098360,Scottish & Southern Energy Plc,£659.78
Manchester City Council,Housing Revenue Account,Gas,04-May-23,1908098361,Scottish & Southern Energy Plc,"£2,145.74"
Manchester City Council,Housing Revenue Account,Gas,04-May-23,1908098365,Scottish & Southern Energy Plc,£748.43
Manchester City Council,Housing Revenue Account,Gas,04-May-23,1908098366,Scottish & Southern Energy Plc,"£1,038.43"
Manchester City Council,Housing Revenue Account,Gas,04-May-23,1908098367,Scottish & Southern Energy Plc,"£1,285.19"
Manchester City Council,Housing Revenue Account,Gas,04-May-23,1908098368,Scottish & Southern Energy Plc,"£2,191.49"
Manchester City Council,Housing Revenue Account,Gas,04-May-23,1908098370,Scottish & Southern Energy Plc,"£1,171.26"
Manchester City Council,Housing Revenue Account,Gas,04-May-23,1908098371,Scottish & Southern Energy Plc,£876.87
Manchester City Council,Housing Revenue Account,Gas,04-May-23,1908098372,Scottish & Southern Energy Plc,"£1,662.56"
Manchester City Council,Housing Revenue Account,Gas,04-May-23,1908098373,Scottish & Southern Energy Plc,"£3,987.94"
Manchester City Council,Housing Revenue Account,Gas,04-May-23,1908098374,Scottish & Southern Energy Plc,"£1,368.59"
Manchester City Council,Housing Revenue Account,Gas,04-May-23,1908098375,Scottish & Southern Energy Plc,£502.78
Manchester City Council,Housing Revenue Account,Gas,04-May-23,1908098381,Scottish & Southern Energy Plc,"£2,254.53"
Manchester City Council,Hospitality + Trading Services,Vehicle Repairs,04-May-23,5105870078,F.R.Sharrock Ltd,"£1,308.26"
Manchester City Council,Corporate Services,Works and associated costs for Land and Buildings,04-May-23,5105869900,Ove Arup & Partners Ltd,"£3,988.00"
Manchester City Council,Chief Executives,Agency staff provision,04-May-23,5105869914,Osborne Richardson,"£3,770.00"
Manchester City Council,Corporate Services,Agency staff provision,04-May-23,5105870150,Michael Page International,£672.00
Manchester City Council,Regeneration Finance,Gas,04-May-23,5105869990,Calor Gas Ltd,£715.50
Manchester City Council,Chief Executives,Paper & Envelopes,04-May-23,5105870147,Premier Paper Group Ltd,£568.71
Manchester City Council,Chief Executives,Legal Fees,04-May-23,5105869997,Redacted Personal Information,£961.00
Manchester City Council,Chief Executives,Legal Fees,04-May-23,5105869999,Redacted Personal Information,£726.00
Manchester City Council,Manchester Leisure,Grant and subscriptions awarded,04-May-23,5105869880,Moss Side Millennium Powerhouse Ltd,£920.00
Manchester City Council,Housing Revenue Account,Professional fees,04-May-23,5105869843,Emanuel Whittaker Ltd,"£6,248.53"
Manchester City Council,Adult Social Care,Equipment,04-May-23,5105869922,NRS Healthcare,"£1,344.00"
Manchester City Council,Childrens & Education Services,Transport Coach Hire,04-May-23,5105869892,Redacted Personal Information,"£1,820.00"
Manchester City Council,Childrens & Education Services,Payments for services,04-May-23,5105870052,Seashell trust,"£1,423.14"
Manchester City Council,Adult Social Care,Grant and subscriptions awarded,04-May-23,5105870076,ESEA Contemporary,"£5,000.00"
Manchester City Council,Adult Social Care,Signers/Interpreters,04-May-23,5105869756,Language Line Ltd,£928.97
Manchester City Council,Adult Social Care,Equipment,04-May-23,5105870073,Morris & Alexander Ltd,"£1,155.00"
Manchester City Council,Corporate Services,Travel Season TLS,04-May-23,5105870089,Transport for Greater Manchester,-£671.31
Manchester City Council,Corporate Services,Travel Season TLS,04-May-23,5105870090,Transport for Greater Manchester,£671.31
Manchester City Council,Manchester Leisure,Grant and subscriptions awarded,04-May-23,5105870047,St Peter'S Rc Primary School,"£1,316.67"
Manchester City Council,Insurance Fund,Bal of Rsk InsPrem,04-May-23,1908091291,Moston Lane Primary School,£900.00
Manchester City Council,Childrens & Education Services,Private Finance and Public Private partnership initiatives,04-May-23,5105870005,Manchester School Services Limited,"£127,092.63"
Manchester City Council,Childrens & Education Services,Private Finance and Public Private partnership initiatives,04-May-23,5105870005,Manchester School Services Limited,"£301,100.42"
Manchester City Council,Childrens & Education Services,Hire of Premises,04-May-23,5105870100,Greater Manchester Police Sports &,£612.80
Manchester City Council,Highways Services,Professional fees,04-May-23,5105869958,A T G Access Ltd,"£11,807.10"
Manchester City Council,Corporate Services,Works and associated costs for Land and Buildings,04-May-23,5105869819,Buttress,"£11,525.00"
Manchester City Council,Manchester Leisure,Electricity,04-May-23,1908097962,Npower,"£4,642.10"
Manchester City Council,Manchester Leisure,Electricity,04-May-23,1908097966,Npower,"£1,005.34"
Manchester City Council,Manchester Leisure,Electricity,04-May-23,1908097967,Npower,"£17,396.73"
Manchester City Council,Manchester Leisure,Electricity,04-May-23,1908097970,Npower,"£31,148.79"
Manchester City Council,Manchester Leisure,Electricity,04-May-23,1908097973,Npower,"£3,066.86"
Manchester City Council,Manchester Leisure,Electricity,04-May-23,1908097979,Npower,"£1,064.54"
Manchester City Council,Manchester Leisure,Electricity,04-May-23,1908097980,Npower,"£8,431.68"
Manchester City Council,Manchester Leisure,Electricity,04-May-23,1908097982,Npower,"£2,807.47"
Manchester City Council,Manchester Leisure,Electricity,04-May-23,1908097984,Npower,"£2,015.89"
Manchester City Council,Manchester Leisure,Electricity,04-May-23,1908097985,Npower,"£22,672.34"
Manchester City Council,Manchester Leisure,Electricity,04-May-23,1908098002,Npower,"£9,916.64"
Manchester City Council,Manchester Leisure,Electricity,04-May-23,1908098005,Npower,"£14,500.88"
Manchester City Council,Manchester Leisure,Electricity,04-May-23,1908098008,Npower,"£2,156.22"
Manchester City Council,Manchester Leisure,Electricity,04-May-23,1908098010,Npower,"£2,286.63"
Manchester City Council,Manchester Leisure,Electricity,04-May-23,1908098011,Npower,"£2,592.92"
Manchester City Council,Manchester Leisure,Electricity,04-May-23,1908098016,Npower,"£23,955.43"
Manchester City Council,Manchester Leisure,Electricity,04-May-23,1908098018,Npower,"£5,066.46"
Manchester City Council,Manchester Leisure,Electricity,04-May-23,1908098019,Npower,"£9,871.75"
Manchester City Council,Manchester Leisure,Electricity,04-May-23,1908098020,Npower,"£1,527.28"
Manchester City Council,Manchester Leisure,Electricity,04-May-23,1908098021,Npower,"£21,737.49"
Manchester City Council,Manchester Leisure,Electricity,04-May-23,1908098022,Npower,"£132,385.78"
Manchester City Council,Manchester Leisure,Electricity,04-May-23,1908098023,Npower,"£34,533.93"
Manchester City Council,Manchester Leisure,Electricity,04-May-23,1908098025,Npower,"£16,365.59"
Manchester City Council,Manchester Leisure,Electricity,04-May-23,1908098027,Npower,"£5,711.78"
Manchester City Council,Manchester Leisure,Electricity,04-May-23,1908098034,Npower,"£2,326.54"
Manchester City Council,Manchester Leisure,Electricity,04-May-23,1908098038,Npower,"£2,137.00"
Manchester City Council,Manchester Leisure,Electricity,04-May-23,1908098039,Npower,"£2,513.07"
Manchester City Council,Manchester Leisure,Electricity,04-May-23,1908098042,Npower,"£7,909.80"
Manchester City Council,Manchester Leisure,Electricity,04-May-23,1908098044,Npower,"£3,087.07"
Manchester City Council,Manchester Leisure,Electricity,04-May-23,1908098045,Npower,"£11,676.26"
Manchester City Council,Manchester Leisure,Electricity,04-May-23,1908098059,Npower,"£1,810.13"
Manchester City Council,Manchester Leisure,Electricity,04-May-23,1908098060,Npower,"£1,835.08"
Manchester City Council,Manchester Leisure,Electricity,04-May-23,1908098064,Npower,"£4,504.20"
Manchester City Council,Manchester Leisure,Electricity,04-May-23,1908098067,Npower,"£2,421.21"
Manchester City Council,Manchester Leisure,Electricity,04-May-23,1908098068,Npower,"£1,615.25"
Manchester City Council,Manchester Leisure,Electricity,04-May-23,1908098069,Npower,"£2,972.89"
Manchester City Council,Manchester Leisure,Electricity,04-May-23,1908098070,Npower,"£1,738.43"
Manchester City Council,Manchester Leisure,Electricity,04-May-23,1908098071,Npower,"£2,262.74"
Manchester City Council,Manchester Leisure,Electricity,04-May-23,1908098072,Npower,"£1,629.76"
Manchester City Council,Libraries and Theatres,Electricity,04-May-23,1908097983,Npower,£987.07
Manchester City Council,Hospitality + Trading Services,Electricity,04-May-23,1908097968,Npower,"£44,144.57"
Manchester City Council,Hospitality + Trading Services,Electricity,04-May-23,1908097971,Npower,"£4,144.88"
Manchester City Council,Hospitality + Trading Services,Electricity,04-May-23,1908097986,Npower,"£1,259.27"
Manchester City Council,Hospitality + Trading Services,Electricity,04-May-23,1908097990,Npower,"£14,597.32"
Manchester City Council,Hospitality + Trading Services,Electricity,04-May-23,1908097993,Npower,"£43,588.60"
Manchester City Council,Hospitality + Trading Services,Electricity,04-May-23,1908098015,Npower,"£5,956.30"
Manchester City Council,Hospitality + Trading Services,Electricity,04-May-23,1908098024,Npower,"£92,003.18"
Manchester City Council,Hospitality + Trading Services,Electricity,04-May-23,1908098048,Npower,"£3,920.12"
Manchester City Council,Childrens & Education Services,Electricity,04-May-23,1908097969,Npower,£768.57
Manchester City Council,Childrens & Education Services,Electricity,04-May-23,1908097978,Npower,"£2,184.30"
Manchester City Council,Childrens & Education Services,Electricity,04-May-23,1908098033,Npower,"£3,775.04"
Manchester City Council,Childrens & Education Services,Electricity,04-May-23,1908098047,Npower,"£2,893.34"
Manchester City Council,Adult Social Care,Electricity,04-May-23,1908098012,Npower,"£2,590.09"
Manchester City Council,Adult Social Care,Electricity,04-May-23,1908098030,Npower,"£2,623.95"
Manchester City Council,Adult Social Care,Electricity,04-May-23,1908098046,Npower,"£2,856.96"
Manchester City Council,Adult Social Care,Electricity,04-May-23,1908098074,Npower,"£4,288.90"
Manchester City Council,Housing Revenue Account,Electricity,04-May-23,1908098056,Npower,"£1,877.33"
Manchester City Council,Regeneration Finance,Electricity,04-May-23,1908097960,Npower,"£60,433.75"
Manchester City Council,Regeneration Finance,Electricity,04-May-23,1908097961,Npower,"£10,926.41"
Manchester City Council,Regeneration Finance,Electricity,04-May-23,1908097963,Npower,"£15,854.78"
Manchester City Council,Regeneration Finance,Electricity,04-May-23,1908097964,Npower,"£2,034.26"
Manchester City Council,Regeneration Finance,Electricity,04-May-23,1908097972,Npower,"£2,907.37"
Manchester City Council,Regeneration Finance,Electricity,04-May-23,1908097981,Npower,"£3,911.29"
Manchester City Council,Regeneration Finance,Electricity,04-May-23,1908097987,Npower,"£21,236.99"
Manchester City Council,Regeneration Finance,Electricity,04-May-23,1908097989,Npower,£873.35
Manchester City Council,Regeneration Finance,Electricity,04-May-23,1908097991,Npower,"£11,711.26"
Manchester City Council,Regeneration Finance,Electricity,04-May-23,1908097992,Npower,"£10,818.90"
Manchester City Council,Regeneration Finance,Electricity,04-May-23,1908097994,Npower,"£12,395.40"
Manchester City Council,Regeneration Finance,Electricity,04-May-23,1908097995,Npower,"£4,017.80"
Manchester City Council,Regeneration Finance,Electricity,04-May-23,1908097996,Npower,"£1,730.46"
Manchester City Council,Regeneration Finance,Electricity,04-May-23,1908097997,Npower,"£4,763.82"
Manchester City Council,Regeneration Finance,Electricity,04-May-23,1908097998,Npower,"£4,204.21"
Manchester City Council,Regeneration Finance,Electricity,04-May-23,1908097999,Npower,"£2,602.61"
Manchester City Council,Regeneration Finance,Electricity,04-May-23,1908098000,Npower,"£9,573.69"
Manchester City Council,Regeneration Finance,Electricity,04-May-23,1908098001,Npower,"£1,903.69"
Manchester City Council,Regeneration Finance,Electricity,04-May-23,1908098003,Npower,"£11,130.55"
Manchester City Council,Regeneration Finance,Electricity,04-May-23,1908098004,Npower,"£8,264.35"
Manchester City Council,Regeneration Finance,Electricity,04-May-23,1908098006,Npower,"£16,060.94"
Manchester City Council,Regeneration Finance,Electricity,04-May-23,1908098007,Npower,"£3,377.47"
Manchester City Council,Regeneration Finance,Electricity,04-May-23,1908098013,Npower,"£8,322.64"
Manchester City Council,Regeneration Finance,Electricity,04-May-23,1908098014,Npower,"£3,612.21"
Manchester City Council,Regeneration Finance,Electricity,04-May-23,1908098017,Npower,"£50,028.97"
Manchester City Council,Regeneration Finance,Electricity,04-May-23,1908098026,Npower,"£27,150.74"
Manchester City Council,Regeneration Finance,Electricity,04-May-23,1908098031,Npower,"£1,201.58"
Manchester City Council,Regeneration Finance,Electricity,04-May-23,1908098032,Npower,"£2,485.18"
Manchester City Council,Regeneration Finance,Electricity,04-May-23,1908098035,Npower,"£63,648.12"
Manchester City Council,Regeneration Finance,Electricity,04-May-23,1908098036,Npower,"£1,909.67"
Manchester City Council,Regeneration Finance,Electricity,04-May-23,1908098037,Npower,£657.81
Manchester City Council,Regeneration Finance,Electricity,04-May-23,1908098040,Npower,"£31,193.02"
Manchester City Council,Regeneration Finance,Electricity,04-May-23,1908098041,Npower,"£54,575.62"
Manchester City Council,Regeneration Finance,Electricity,04-May-23,1908098049,Npower,"£8,944.71"
Manchester City Council,Regeneration Finance,Electricity,04-May-23,1908098050,Npower,"£1,394.63"
Manchester City Council,Regeneration Finance,Electricity,04-May-23,1908098051,Npower,"£2,666.28"
Manchester City Council,Highways Services,Electricity,04-May-23,1908097974,Npower,"£2,016.81"
Manchester City Council,Highways Services,Electricity,04-May-23,1908097977,Npower,"£1,839.55"
Manchester City Council,Highways Services,Electricity,04-May-23,1908097988,Npower,"£3,685.96"
Manchester City Council,Highways Services,Electricity,04-May-23,1908098028,Npower,"£4,174.06"
Manchester City Council,Highways Services,Electricity,04-May-23,1908098029,Npower,"£1,760.87"
Manchester City Council,Highways Services,Electricity,04-May-23,1908098043,Npower,"£1,611.63"
Manchester City Council,Regeneration Finance,Third party payments relating to Voluntary Organisations,04-May-23,5105870070,Back On Track,"£30,641.00"
Manchester City Council,Manchester Leisure,Works and associated costs for Land and Buildings,04-May-23,5105870021,Kier Construction North and,"-£1,252,564.98"
Manchester City Council,Manchester Leisure,Works and associated costs for Land and Buildings,04-May-23,5105870022,Kier Construction North and,"£1,252,564.98"
Manchester City Council,Adult Social Care,Grant and subscriptions awarded,04-May-23,5105870087,The Booth Centre,"£45,880.00"
Manchester City Council,Childrens & Education Services,Transport Coach Hire,04-May-23,5105869950,Exec-Coach Services,"£3,220.00"
Manchester City Council,Chief Executives,I T Provision,04-May-23,5105869875,Insight Direct (Uk) Ltd,"£2,936.61"
Manchester City Council,Chief Executives,Equipment,04-May-23,5105869993,Bennett Workplace Solutions Ltd,"£2,028.95"
Manchester City Council,Regeneration Finance,Furniture,04-May-23,5105870063,Bennett Workplace Solutions Ltd,"£1,374.00"
Manchester City Council,Manchester Leisure,Gas,04-May-23,1908098118,Corona Energy Ltd,"£4,815.00"
Manchester City Council,Manchester Leisure,Gas,04-May-23,1908098122,Corona Energy Ltd,"£1,083.61"
Manchester City Council,Manchester Leisure,Gas,04-May-23,1908098123,Corona Energy Ltd,"£1,345.24"
Manchester City Council,Manchester Leisure,Gas,04-May-23,1908098127,Corona Energy Ltd,"£24,839.99"
Manchester City Council,Manchester Leisure,Gas,04-May-23,1908098128,Corona Energy Ltd,"£2,354.63"
Manchester City Council,Manchester Leisure,Gas,04-May-23,1908098149,Corona Energy Ltd,"£8,427.55"
Manchester City Council,Manchester Leisure,Gas,04-May-23,1908098150,Corona Energy Ltd,£868.60
Manchester City Council,Manchester Leisure,Gas,04-May-23,1908098151,Corona Energy Ltd,"£5,386.61"
Manchester City Council,Manchester Leisure,Gas,04-May-23,1908098152,Corona Energy Ltd,"£1,421.48"
Manchester City Council,Manchester Leisure,Gas,04-May-23,1908098153,Corona Energy Ltd,"£1,188.38"
Manchester City Council,Manchester Leisure,Gas,04-May-23,1908098167,Corona Energy Ltd,"£2,330.16"
Manchester City Council,Manchester Leisure,Gas,04-May-23,1908098188,Corona Energy Ltd,"£22,309.64"
Manchester City Council,Manchester Leisure,Gas,04-May-23,1908098244,Corona Energy Ltd,"£22,789.20"
Manchester City Council,Manchester Leisure,Gas,04-May-23,1908098245,Corona Energy Ltd,"£3,096.02"
Manchester City Council,Manchester Leisure,Gas,04-May-23,1908098254,Corona Energy Ltd,"£16,077.80"
Manchester City Council,Manchester Leisure,Gas,04-May-23,1908098255,Corona Energy Ltd,"£23,112.39"
Manchester City Council,Manchester Leisure,Gas,04-May-23,1908098256,Corona Energy Ltd,"£51,502.66"
Manchester City Council,Manchester Leisure,Gas,04-May-23,1908098261,Corona Energy Ltd,"£8,593.55"
Manchester City Council,Manchester Leisure,Gas,04-May-23,1908098263,Corona Energy Ltd,"£6,876.45"
Manchester City Council,Manchester Leisure,Gas,04-May-23,1908098269,Corona Energy Ltd,"£1,843.92"
Manchester City Council,Manchester Leisure,Gas,04-May-23,1908098272,Corona Energy Ltd,"£16,977.33"
Manchester City Council,Manchester Leisure,Gas,04-May-23,1908098273,Corona Energy Ltd,"£2,877.84"
Manchester City Council,Manchester Leisure,Gas,04-May-23,1908098276,Corona Energy Ltd,"£4,008.00"
Manchester City Council,Manchester Leisure,Gas,04-May-23,1908098277,Corona Energy Ltd,£678.14
Manchester City Council,Manchester Leisure,Gas,04-May-23,1908098278,Corona Energy Ltd,"£8,717.17"
Manchester City Council,Manchester Leisure,Gas,04-May-23,1908098279,Corona Energy Ltd,"£7,562.47"
Manchester City Council,Manchester Leisure,Gas,04-May-23,1908098280,Corona Energy Ltd,"£2,609.97"
Manchester City Council,Manchester Leisure,Gas,04-May-23,1908098281,Corona Energy Ltd,"£1,014.75"
Manchester City Council,Manchester Leisure,Gas,04-May-23,1908098285,Corona Energy Ltd,"£16,604.51"
Manchester City Council,Manchester Leisure,Gas,04-May-23,1908098328,Corona Energy Ltd,"£3,513.17"
Manchester City Council,Manchester Leisure,Gas,04-May-23,1908098341,Corona Energy Ltd,"£3,578.50"
Manchester City Council,Hospitality + Trading Services,Gas,04-May-23,1908098129,Corona Energy Ltd,"£5,164.34"
Manchester City Council,Hospitality + Trading Services,Gas,04-May-23,1908098130,Corona Energy Ltd,"£2,731.73"
Manchester City Council,Hospitality + Trading Services,Gas,04-May-23,1908098156,Corona Energy Ltd,"£13,611.67"
Manchester City Council,Hospitality + Trading Services,Gas,04-May-23,1908098197,Corona Energy Ltd,"£2,875.99"
Manchester City Council,Hospitality + Trading Services,Gas,04-May-23,1908098211,Corona Energy Ltd,"£2,514.69"
Manchester City Council,Hospitality + Trading Services,Gas,04-May-23,1908098317,Corona Energy Ltd,"£2,216.40"
Manchester City Council,Hospitality + Trading Services,Gas,04-May-23,1908098319,Corona Energy Ltd,£741.57
Manchester City Council,Childrens & Education Services,Gas,04-May-23,1908098117,Corona Energy Ltd,"£1,442.12"
Manchester City Council,Childrens & Education Services,Gas,04-May-23,1908098124,Corona Energy Ltd,"£1,137.64"
Manchester City Council,Childrens & Education Services,Gas,04-May-23,1908098132,Corona Energy Ltd,"£1,924.33"
Manchester City Council,Childrens & Education Services,Gas,04-May-23,1908098154,Corona Energy Ltd,"£2,354.80"
Manchester City Council,Childrens & Education Services,Gas,04-May-23,1908098166,Corona Energy Ltd,£655.58
Manchester City Council,Childrens & Education Services,Gas,04-May-23,1908098171,Corona Energy Ltd,"£2,256.51"
Manchester City Council,Childrens & Education Services,Gas,04-May-23,1908098178,Corona Energy Ltd,£664.77
Manchester City Council,Childrens & Education Services,Gas,04-May-23,1908098216,Corona Energy Ltd,"£1,588.86"
Manchester City Council,Childrens & Education Services,Gas,04-May-23,1908098242,Corona Energy Ltd,"£1,903.11"
Manchester City Council,Childrens & Education Services,Gas,04-May-23,1908098264,Corona Energy Ltd,£613.15
Manchester City Council,Childrens & Education Services,Gas,04-May-23,1908098267,Corona Energy Ltd,"£1,382.88"
Manchester City Council,Childrens & Education Services,Gas,04-May-23,1908098275,Corona Energy Ltd,"£3,139.15"
Manchester City Council,Childrens & Education Services,Gas,04-May-23,1908098297,Corona Energy Ltd,"£2,887.70"
Manchester City Council,Childrens & Education Services,Gas,04-May-23,1908098315,Corona Energy Ltd,"£2,406.42"
Manchester City Council,Childrens & Education Services,Gas,04-May-23,1908098349,Corona Energy Ltd,"£1,922.29"
Manchester City Council,Childrens & Education Services,Gas,04-May-23,1908098350,Corona Energy Ltd,"£4,976.97"
Manchester City Council,Adult Social Care,Gas,04-May-23,1908098105,Corona Energy Ltd,"£1,813.03"
Manchester City Council,Adult Social Care,Gas,04-May-23,1908098106,Corona Energy Ltd,"£2,066.94"
Manchester City Council,Adult Social Care,Gas,04-May-23,1908098108,Corona Energy Ltd,"£1,133.30"
Manchester City Council,Adult Social Care,Gas,04-May-23,1908098113,Corona Energy Ltd,"£1,534.35"
Manchester City Council,Adult Social Care,Gas,04-May-23,1908098114,Corona Energy Ltd,"£1,406.83"
Manchester City Council,Adult Social Care,Gas,04-May-23,1908098131,Corona Energy Ltd,"£1,530.57"
Manchester City Council,Adult Social Care,Gas,04-May-23,1908098146,Corona Energy Ltd,"£5,288.25"
Manchester City Council,Adult Social Care,Gas,04-May-23,1908098148,Corona Energy Ltd,£792.34
Manchester City Council,Adult Social Care,Gas,04-May-23,1908098158,Corona Energy Ltd,"£1,028.90"
Manchester City Council,Adult Social Care,Gas,04-May-23,1908098160,Corona Energy Ltd,"£1,772.09"
Manchester City Council,Adult Social Care,Gas,04-May-23,1908098163,Corona Energy Ltd,"£1,893.18"
Manchester City Council,Adult Social Care,Gas,04-May-23,1908098201,Corona Energy Ltd,"£9,799.82"
Manchester City Council,Adult Social Care,Gas,04-May-23,1908098202,Corona Energy Ltd,"£2,941.21"
Manchester City Council,Adult Social Care,Gas,04-May-23,1908098250,Corona Energy Ltd,"£5,756.75"
Manchester City Council,Adult Social Care,Gas,04-May-23,1908098286,Corona Energy Ltd,"£2,215.13"
Manchester City Council,Adult Social Care,Gas,04-May-23,1908098290,Corona Energy Ltd,"£1,447.47"
Manchester City Council,Adult Social Care,Gas,04-May-23,1908098296,Corona Energy Ltd,"£3,952.91"
Manchester City Council,Adult Social Care,Gas,04-May-23,1908098307,Corona Energy Ltd,"£1,915.19"
Manchester City Council,Adult Social Care,Gas,04-May-23,1908098324,Corona Energy Ltd,£983.93
Manchester City Council,Adult Social Care,Gas,04-May-23,1908098338,Corona Energy Ltd,"£1,124.77"
Manchester City Council,Adult Social Care,Gas,04-May-23,1908098340,Corona Energy Ltd,"£1,622.39"
Manchester City Council,Adult Social Care,Gas,04-May-23,1908098345,Corona Energy Ltd,"£3,458.60"
Manchester City Council,Housing Revenue Account,Gas,04-May-23,1700149558,Corona Energy Ltd,"-£3,517.34"
Manchester City Council,Housing Revenue Account,Gas,04-May-23,1700149559,Corona Energy Ltd,"-£5,878.42"
Manchester City Council,Housing Revenue Account,Gas,04-May-23,1700149560,Corona Energy Ltd,"-£5,144.32"
Manchester City Council,Housing Revenue Account,Gas,04-May-23,1700149561,Corona Energy Ltd,"-£4,551.44"
Manchester City Council,Housing Revenue Account,Gas,04-May-23,1908098125,Corona Energy Ltd,"£6,984.09"
Manchester City Council,Housing Revenue Account,Gas,04-May-23,1908098126,Corona Energy Ltd,"£4,892.57"
Manchester City Council,Housing Revenue Account,Gas,04-May-23,1908098159,Corona Energy Ltd,"£6,954.30"
Manchester City Council,Housing Revenue Account,Gas,04-May-23,1908098182,Corona Energy Ltd,"£34,465.71"
Manchester City Council,Housing Revenue Account,Gas,04-May-23,1908098183,Corona Energy Ltd,"£39,731.65"
Manchester City Council,Housing Revenue Account,Gas,04-May-23,1908098187,Corona Energy Ltd,"£1,552.15"
Manchester City Council,Housing Revenue Account,Gas,04-May-23,1908098190,Corona Energy Ltd,"£3,064.84"
Manchester City Council,Housing Revenue Account,Gas,04-May-23,1908098191,Corona Energy Ltd,£533.36
Manchester City Council,Housing Revenue Account,Gas,04-May-23,1908098192,Corona Energy Ltd,£784.67
Manchester City Council,Housing Revenue Account,Gas,04-May-23,1908098193,Corona Energy Ltd,"£5,878.42"
Manchester City Council,Housing Revenue Account,Gas,04-May-23,1908098194,Corona Energy Ltd,"£5,144.32"
Manchester City Council,Housing Revenue Account,Gas,04-May-23,1908098195,Corona Energy Ltd,"£4,551.44"
Manchester City Council,Housing Revenue Account,Gas,04-May-23,1908098196,Corona Energy Ltd,"£4,466.95"
Manchester City Council,Housing Revenue Account,Gas,04-May-23,1908098209,Corona Energy Ltd,"£2,297.43"
Manchester City Council,Housing Revenue Account,Gas,04-May-23,1908098229,Corona Energy Ltd,"£7,227.47"
Manchester City Council,Housing Revenue Account,Gas,04-May-23,1908098230,Corona Energy Ltd,"£7,156.91"
Manchester City Council,Housing Revenue Account,Gas,04-May-23,1908098246,Corona Energy Ltd,"£5,892.04"
Manchester City Council,Housing Revenue Account,Gas,04-May-23,1908098300,Corona Energy Ltd,"£2,016.91"
Manchester City Council,Housing Revenue Account,Gas,04-May-23,1908098303,Corona Energy Ltd,"£6,979.21"
Manchester City Council,Housing Revenue Account,Gas,04-May-23,1908098305,Corona Energy Ltd,"£4,967.66"
Manchester City Council,Housing Revenue Account,Gas,04-May-23,1908098309,Corona Energy Ltd,"£6,612.86"
Manchester City Council,Housing Revenue Account,Gas,04-May-23,1908098314,Corona Energy Ltd,"£5,579.96"
Manchester City Council,Housing Revenue Account,Gas,04-May-23,1908098334,Corona Energy Ltd,"£58,577.06"
Manchester City Council,Housing Revenue Account,Gas,04-May-23,1908098335,Corona Energy Ltd,"£41,969.85"
Manchester City Council,Housing Revenue Account,Gas,04-May-23,1908098337,Corona Energy Ltd,£680.52
Manchester City Council,Housing Revenue Account,Gas,04-May-23,1908098342,Corona Energy Ltd,£979.14
Manchester City Council,Regeneration Finance,Gas,04-May-23,1908098110,Corona Energy Ltd,£739.23
Manchester City Council,Regeneration Finance,Gas,04-May-23,1908098111,Corona Energy Ltd,£897.52
Manchester City Council,Regeneration Finance,Gas,04-May-23,1908098112,Corona Energy Ltd,"£1,889.49"
Manchester City Council,Regeneration Finance,Gas,04-May-23,1908098116,Corona Energy Ltd,"£16,991.03"
Manchester City Council,Regeneration Finance,Gas,04-May-23,1908098120,Corona Energy Ltd,"£3,309.62"
Manchester City Council,Regeneration Finance,Gas,04-May-23,1908098121,Corona Energy Ltd,"£1,126.93"
Manchester City Council,Regeneration Finance,Gas,04-May-23,1908098162,Corona Energy Ltd,£566.14
Manchester City Council,Regeneration Finance,Gas,04-May-23,1908098164,Corona Energy Ltd,£762.25
Manchester City Council,Regeneration Finance,Gas,04-May-23,1908098168,Corona Energy Ltd,"£2,977.03"
Manchester City Council,Regeneration Finance,Gas,04-May-23,1908098170,Corona Energy Ltd,"£3,598.64"
Manchester City Council,Regeneration Finance,Gas,04-May-23,1908098181,Corona Energy Ltd,£899.12
Manchester City Council,Regeneration Finance,Gas,04-May-23,1908098184,Corona Energy Ltd,"£4,737.33"
Manchester City Council,Regeneration Finance,Gas,04-May-23,1908098186,Corona Energy Ltd,£854.79
Manchester City Council,Regeneration Finance,Gas,04-May-23,1908098203,Corona Energy Ltd,"£4,638.14"
Manchester City Council,Regeneration Finance,Gas,04-May-23,1908098207,Corona Energy Ltd,£726.75
Manchester City Council,Regeneration Finance,Gas,04-May-23,1908098208,Corona Energy Ltd,"£4,709.24"
Manchester City Council,Regeneration Finance,Gas,04-May-23,1908098212,Corona Energy Ltd,"£29,129.10"
Manchester City Council,Regeneration Finance,Gas,04-May-23,1908098213,Corona Energy Ltd,"£6,469.88"
Manchester City Council,Regeneration Finance,Gas,04-May-23,1908098214,Corona Energy Ltd,"£4,501.13"
Manchester City Council,Regeneration Finance,Gas,04-May-23,1908098218,Corona Energy Ltd,"£5,829.27"
Manchester City Council,Regeneration Finance,Gas,04-May-23,1908098219,Corona Energy Ltd,"£2,115.50"
Manchester City Council,Regeneration Finance,Gas,04-May-23,1908098220,Corona Energy Ltd,"£1,931.85"
Manchester City Council,Regeneration Finance,Gas,04-May-23,1908098223,Corona Energy Ltd,"£7,626.61"
Manchester City Council,Regeneration Finance,Gas,04-May-23,1908098224,Corona Energy Ltd,"£5,509.94"
Manchester City Council,Regeneration Finance,Gas,04-May-23,1908098225,Corona Energy Ltd,"£1,842.47"
Manchester City Council,Regeneration Finance,Gas,04-May-23,1908098228,Corona Energy Ltd,"£5,624.03"
Manchester City Council,Regeneration Finance,Gas,04-May-23,1908098232,Corona Energy Ltd,"£3,290.42"
Manchester City Council,Regeneration Finance,Gas,04-May-23,1908098233,Corona Energy Ltd,"£5,450.64"
Manchester City Council,Regeneration Finance,Gas,04-May-23,1908098236,Corona Energy Ltd,"£1,754.68"
Manchester City Council,Regeneration Finance,Gas,04-May-23,1908098237,Corona Energy Ltd,£641.44
Manchester City Council,Regeneration Finance,Gas,04-May-23,1908098239,Corona Energy Ltd,"£2,930.23"
Manchester City Council,Regeneration Finance,Gas,04-May-23,1908098240,Corona Energy Ltd,£574.31
Manchester City Council,Regeneration Finance,Gas,04-May-23,1908098241,Corona Energy Ltd,"£9,900.84"
Manchester City Council,Regeneration Finance,Gas,04-May-23,1908098243,Corona Energy Ltd,"£6,398.09"
Manchester City Council,Regeneration Finance,Gas,04-May-23,1908098249,Corona Energy Ltd,"£1,889.15"
Manchester City Council,Regeneration Finance,Gas,04-May-23,1908098251,Corona Energy Ltd,"£1,120.63"
Manchester City Council,Regeneration Finance,Gas,04-May-23,1908098252,Corona Energy Ltd,"£1,185.63"
Manchester City Council,Regeneration Finance,Gas,04-May-23,1908098253,Corona Energy Ltd,"£1,825.82"
Manchester City Council,Regeneration Finance,Gas,04-May-23,1908098260,Corona Energy Ltd,"£1,487.20"
Manchester City Council,Regeneration Finance,Gas,04-May-23,1908098266,Corona Energy Ltd,£637.05
Manchester City Council,Regeneration Finance,Gas,04-May-23,1908098274,Corona Energy Ltd,"£3,133.11"
Manchester City Council,Regeneration Finance,Gas,04-May-23,1908098282,Corona Energy Ltd,"£1,448.56"
Manchester City Council,Regeneration Finance,Gas,04-May-23,1908098283,Corona Energy Ltd,£806.26
Manchester City Council,Regeneration Finance,Gas,04-May-23,1908098284,Corona Energy Ltd,£922.53
Manchester City Council,Regeneration Finance,Gas,04-May-23,1908098289,Corona Energy Ltd,"£2,533.20"
Manchester City Council,Regeneration Finance,Gas,04-May-23,1908098291,Corona Energy Ltd,"£19,063.63"
Manchester City Council,Regeneration Finance,Gas,04-May-23,1908098292,Corona Energy Ltd,£707.66
Manchester City Council,Regeneration Finance,Gas,04-May-23,1908098294,Corona Energy Ltd,"£3,152.67"
Manchester City Council,Regeneration Finance,Gas,04-May-23,1908098299,Corona Energy Ltd,"£5,192.25"
Manchester City Council,Regeneration Finance,Gas,04-May-23,1908098302,Corona Energy Ltd,"£4,610.76"
Manchester City Council,Regeneration Finance,Gas,04-May-23,1908098306,Corona Energy Ltd,"£2,319.22"
Manchester City Council,Regeneration Finance,Gas,04-May-23,1908098308,Corona Energy Ltd,"£2,159.98"
Manchester City Council,Regeneration Finance,Gas,04-May-23,1908098321,Corona Energy Ltd,"£2,817.82"
Manchester City Council,Regeneration Finance,Gas,04-May-23,1908098322,Corona Energy Ltd,£793.69
Manchester City Council,Regeneration Finance,Gas,04-May-23,1908098326,Corona Energy Ltd,"£2,056.64"
Manchester City Council,Regeneration Finance,Gas,04-May-23,1908098329,Corona Energy Ltd,"£2,124.72"
Manchester City Council,Regeneration Finance,Gas,04-May-23,1908098330,Corona Energy Ltd,"£6,215.29"
Manchester City Council,Regeneration Finance,Gas,04-May-23,1908098331,Corona Energy Ltd,"£40,579.28"
Manchester City Council,Regeneration Finance,Gas,04-May-23,1908098332,Corona Energy Ltd,"£97,252.89"
Manchester City Council,Regeneration Finance,Gas,04-May-23,1908098333,Corona Energy Ltd,"£142,532.57"
Manchester City Council,Regeneration Finance,Gas,04-May-23,1908098343,Corona Energy Ltd,£820.90
Manchester City Council,Regeneration Finance,Gas,04-May-23,1908098344,Corona Energy Ltd,£811.00
Manchester City Council,Regeneration Finance,Gas,04-May-23,1908098346,Corona Energy Ltd,"£2,333.75"
Manchester City Council,Regeneration Finance,Gas,04-May-23,1908098348,Corona Energy Ltd,"£4,533.42"
Manchester City Council,Regeneration Finance,Gas,04-May-23,1908098353,Corona Energy Ltd,"£1,627.36"
Manchester City Council,Regeneration Finance,Gas,04-May-23,1908098354,Corona Energy Ltd,"£10,667.21"
Manchester City Council,Environment and Operations,Construction Works,04-May-23,5105869859,GMCA,"£1,200.00"
Manchester City Council,Environment and Operations,Construction Works,04-May-23,5105869923,GMCA,"£2,856.77"
Manchester City Council,Environment and Operations,Construction Works,04-May-23,5105869860,GMCA,£514.90
Manchester City Council,Environment and Operations,Construction Works,04-May-23,5105869862,GMCA,£642.62
Manchester City Council,Environment and Operations,Construction Works,04-May-23,5105869925,GMCA,"£1,021.15"
Manchester City Council,Environment and Operations,Construction Works,04-May-23,5105869921,GMCA,£800.38
Manchester City Council,Regeneration Finance,Grant and subscriptions awarded,04-May-23,5105869864,GMCA,"£20,000.00"
Manchester City Council,Highways Services,Payments to Sub-Contractors,04-May-23,5105869909,GMCA,"£54,139.39"
Manchester City Council,Adult Social Care,Equipment,04-May-23,5105869738,Invacare Limited,"£5,540.00"
Manchester City Council,Adult Social Care,Equipment,04-May-23,5105870040,Invacare Limited,"£5,540.00"
Manchester City Council,Adult Social Care,Equipment,04-May-23,5105870058,Invacare Limited,"£5,148.00"
Manchester City Council,Chief Executives,Advertising,04-May-23,5105869987,Guardian News and Media Limited,£975.00
Manchester City Council,Regeneration Finance,Subsistence and Conference Expenses,04-May-23,5105869994,Edexcel,"£1,333.85"
Manchester City Council,Corporate Services,Security,04-May-23,5105869897,Taranto Systems Ltd,"£1,477.50"
Manchester City Council,Childrens & Education Services,Vehicle Parts/Spares,04-May-23,5105870284,The Windmill Special Need Co Ltd,"-£1,377.00"
Manchester City Council,Chief Executives,Postage,04-May-23,5105869836,Whistl North Ltd,"£3,710.72"
Manchester City Council,Chief Executives,Postage,04-May-23,5105870096,Whistl North Ltd,"£6,327.47"
Manchester City Council,Chief Executives,Postage,04-May-23,5105870099,Whistl North Ltd,"£6,612.79"
Manchester City Council,Childrens & Education Services,Counsel Costs,04-May-23,1908085876,18 St John Street Chambers,£650.00
Manchester City Council,Hospitality + Trading Services,Professional fees,04-May-23,5105870138,Triscan Systems Ltd,£620.00
Manchester City Council,Manchester Leisure,Payments to Sub-Contractors,04-May-23,5105869891,The Lancashire Wildlife Trust,"£2,000.00"
Manchester City Council,Housing General Fund,Works and associated costs for Land and Buildings,04-May-23,5105870036,Jacobs UK Ltd,"-£7,500.00"
Manchester City Council,Chief Executives,Legal Fees,04-May-23,5105869841,Weightmans LLP Solicitors,"£2,987.75"
Manchester City Council,Chief Executives,Legal Fees,04-May-23,5105869842,Weightmans LLP Solicitors,"£1,624.25"
Manchester City Council,Chief Executives,Legal Fees,04-May-23,5105870137,Weightmans LLP Solicitors,£964.25
Manchester City Council,Chief Executives,Legal Fees,04-May-23,5105870153,Weightmans LLP Solicitors,"£2,236.50"
Manchester City Council,Chief Executives,Legal Fees,04-May-23,5105870154,Weightmans LLP Solicitors,"£2,016.50"
Manchester City Council,Chief Executives,Legal Fees,04-May-23,5105870156,Weightmans LLP Solicitors,"£1,702.97"
Manchester City Council,Chief Executives,Legal Fees,04-May-23,5105870157,Weightmans LLP Solicitors,"£3,263.00"
Manchester City Council,Environment and Operations,Construction Works,04-May-23,5105869867,Wilde Consultants Ltd,£723.00
Manchester City Council,Regeneration Finance,Storage Costs,04-May-23,5105870024,Oasis UK formerly Box-It (NW),"£1,093.57"
Manchester City Council,Regeneration Finance,Storage Costs,04-May-23,5105870027,Oasis UK formerly Box-It (NW),£587.78
Manchester City Council,Regeneration Finance,Storage Costs,04-May-23,5105870054,Oasis UK formerly Box-It (NW),£517.02
Manchester City Council,Chief Executives,Works and associated costs for Land and Buildings,04-May-23,5105870127,Ryder Architecture Ltd,"£65,000.00"
Manchester City Council,Chief Executives,Works and associated costs for Land and Buildings,04-May-23,5105870128,Ryder Architecture Ltd,"£2,450.00"
Manchester City Council,Manchester Leisure,Electricity,04-May-23,1908098098,Haven Power Ltd,"£3,691.78"
Manchester City Council,Housing Revenue Account,Electricity,04-May-23,1908098099,Haven Power Ltd,"£4,557.00"
Manchester City Council,Highways Services,Electricity,04-May-23,1908098102,Haven Power Ltd,"£6,548.42"
Manchester City Council,Highways Services,Electricity,04-May-23,1908098103,Haven Power Ltd,"£302,083.64"
Manchester City Council,Insurance Fund,Insurance,04-May-23,1908098407,Civil Costs Specialist Ltd,"£1,150.00"
Manchester City Council,Adult Social Care,Equipment,04-May-23,5105869816,Care & Independence Ltd,"£1,596.00"
Manchester City Council,Adult Social Care,Personal needs of client,04-May-23,5105869710,Care & Independence Ltd,"£1,596.00"
Manchester City Council,Housing Revenue Account,Council Dwelling Adaptations,04-May-23,5105869913,"Jackson, Jackson & Sons Ltd","£32,157.93"
Manchester City Council,Childrens & Education Services,Transport Coach Hire,04-May-23,5105869915,Communitytransportservices.co.uk,"£81,923.33"
Manchester City Council,Regeneration Finance,Third party payments relating to Voluntary Organisations,04-May-23,5105870098,Impact For All,"£13,388.00"
Manchester City Council,Adult Social Care,Third party payments relating to Voluntary Organisations,04-May-23,5105870031,Change Grow Live,"£17,459.00"
Manchester City Council,Adult Social Care,Third party payments relating to Voluntary Organisations,04-May-23,5105870032,Change Grow Live,"£29,900.00"
Manchester City Council,Adult Social Care,Third party payments relating to Voluntary Organisations,04-May-23,5105870033,Change Grow Live,"£401,414.00"
Manchester City Council,Manchester Leisure,Grant and subscriptions awarded,04-May-23,5105870112,Levenshulme Square Residents Assoc,"£1,685.00"
Manchester City Council,Adult Social Care,Third party payments to Health Authority,04-May-23,1908094009,Liverpool University Hospitals,£690.00
Manchester City Council,Adult Social Care,Third party payments to Health Authority,04-May-23,1908094010,Liverpool University Hospitals,"£3,117.00"
Manchester City Council,Adult Social Care,Third party payments to Health Authority,04-May-23,1908094206,Liverpool University Hospitals,"£1,109.00"
Manchester City Council,Adult Social Care,Third party payments to Health Authority,04-May-23,1908096621,Liverpool University Hospitals,£841.00
Manchester City Council,Adult Social Care,Third party payments to Health Authority,04-May-23,1908096655,Liverpool University Hospitals,£534.00
Manchester City Council,Adult Social Care,Third party payments to Health Authority,04-May-23,1908096660,Liverpool University Hospitals,£516.00
Manchester City Council,Manchester Leisure,Special Event,04-May-23,5105869916,British Taekwondo Limited,"£39,400.57"
Manchester City Council,Adult Social Care,Third party payments relating to Voluntary Organisations,04-May-23,5105869838,Wythenshawe Community Housing Group,"£14,656.26"
Manchester City Council,Regeneration Finance,External repairs and maintenance for buildings,04-May-23,5105869941,Biffa Municipal Limited,£613.54
Manchester City Council,Regeneration Finance,External repairs and maintenance for buildings,04-May-23,5105869945,Biffa Municipal Limited,"£1,558.54"
Manchester City Council,Manchester Leisure,Equipment,04-May-23,5105869929,Biffa Municipal Limited,£785.46
Manchester City Council,Housing Revenue Account,Council Dwelling Adaptations,04-May-23,5105869839,Rothwell Plumbing Services Ltd,"£21,140.96"
Manchester City Council,Housing Revenue Account,Council Dwelling Adaptations,04-May-23,5105869906,Rothwell Plumbing Services Ltd,"£21,140.96"
Manchester City Council,Housing Revenue Account,Council Dwelling Adaptations,04-May-23,5105870039,Rothwell Plumbing Services Ltd,"£36,990.71"
Manchester City Council,Chief Executives,Advertising,04-May-23,5105869885,HB Editorial Service Ltd,"£1,336.50"
Manchester City Council,Adult Social Care,Grant and subscriptions awarded,04-May-23,5105870075,Gorse Hill Studios,"£10,000.00"
Manchester City Council,Adult Social Care,Personal needs of client,04-May-23,5105870057,Doro Care Ltd,"£23,675.00"
Manchester City Council,Childrens & Education Services,Carer Support Payments ,04-May-23,5105870067,Rainbow Nursery Manchester Ltd,£559.00
Manchester City Council,Chief Executives,Payments to Sub-Contractors,04-May-23,5105869955,Redacted Personal Information,"£1,201.68"
Manchester City Council,Chief Executives,Payments to Sub-Contractors,04-May-23,5105870013,Redacted Personal Information,£516.30
Manchester City Council,Chief Executives,Payments to Sub-Contractors,04-May-23,5105869970,Redacted Personal Information,£534.90
Manchester City Council,Chief Executives,Payments to Sub-Contractors,04-May-23,5105870014,Redacted Personal Information,£519.10
Manchester City Council,Manchester Leisure,Hire of Equipment,04-May-23,5105869984,Niche Event Hire,"£1,156.00"
Manchester City Council,Manchester Leisure,Hire of Equipment,04-May-23,5105869984,Niche Event Hire,£992.00
Manchester City Council,Adult Social Care,Bed & Breakfast Acc,04-May-23,5105869755,Redacted Personal Information,"£2,402.50"
Manchester City Council,Corporate Services,Works and associated costs for Land and Buildings,04-May-23,5105869927,BMS Software (Northern) Ltd,"£1,350.00"
Manchester City Council,Childrens & Education Services,Payments for services,04-May-23,5105869877,Fairfield Care Ltd,"£2,715.49"
Manchester City Council,Childrens & Education Services,Payments for services,04-May-23,5105869878,Fairfield Care Ltd,"£1,552.24"
Manchester City Council,Childrens & Education Services,Payments for services,04-May-23,5105869879,Fairfield Care Ltd,"£1,679.60"
Manchester City Council,Childrens & Education Services,Counsel Costs,04-May-23,1908081686,Central Chambers,£550.00
Manchester City Council,Childrens & Education Services,Counsel Costs,04-May-23,1908081687,Central Chambers,£600.00
Manchester City Council,Childrens & Education Services,Counsel Costs,04-May-23,1908081689,Central Chambers,£650.00
Manchester City Council,Childrens & Education Services,Counsel Costs,04-May-23,1908085899,Central Chambers,£500.00
Manchester City Council,Childrens & Education Services,Counsel Costs,04-May-23,1908090697,Central Chambers,£750.00
Manchester City Council,Adult Social Care,Professional fees,04-May-23,5105869995,Prepaid Financial Services Limited,"£1,435.75"
Manchester City Council,Manchester Leisure,Grant and subscriptions awarded,04-May-23,5105870009,Friends Of Hulme Park,"£2,750.00"
Manchester City Council,Childrens & Education Services,Payments for services,04-May-23,5105869962,A S K Healthcare Ltd,£960.00
Manchester City Council,Childrens & Education Services,Subsistence and Conference Expenses,04-May-23,5105870066,Hala Guest House,"£2,100.00"
Manchester City Council,Adult Social Care,Furniture,04-May-23,5105870050,Furniture Resource Centre Ltd,£527.00
Manchester City Council,Corporate Services,WPS Awards,04-May-23,5105870119,Furniture Resource Centre Ltd,£733.67
Manchester City Council,Corporate Services,WPS Awards,04-May-23,5105870121,Furniture Resource Centre Ltd,£586.63
Manchester City Council,Corporate Services,WPS Awards,04-May-23,5105870122,Furniture Resource Centre Ltd,£635.73
Manchester City Council,Childrens & Education Services,Payments for services,04-May-23,5105870161,Thompsons Academy Ltd,"£36,201.39"
Manchester City Council,Childrens & Education Services,Payments for services,04-May-23,5105870162,Thompsons Academy Ltd,"-£2,363.64"
Manchester City Council,Childrens & Education Services,Payments for services,04-May-23,5105870163,Thompsons Academy Ltd,"£4,916.67"
Manchester City Council,Childrens & Education Services,Payments for services,04-May-23,5105870164,Thompsons Academy Ltd,"£38,754.42"
Manchester City Council,Childrens & Education Services,Payments for services,04-May-23,5105870165,Thompsons Academy Ltd,"£2,625.00"
Manchester City Council,Childrens & Education Services,Payments for services,04-May-23,5105870166,Thompsons Academy Ltd,"£54,951.41"
Manchester City Council,Childrens & Education Services,Payments for services,04-May-23,5105870167,Thompsons Academy Ltd,"£1,225.00"
Manchester City Council,Childrens & Education Services,Payments for services,04-May-23,5105870168,Thompsons Academy Ltd,"-£5,333.34"
Manchester City Council,Childrens & Education Services,Payments for services,04-May-23,5105870169,Thompsons Academy Ltd,"£49,618.07"
Manchester City Council,Corporate Services,Works and associated costs for Land and Buildings,04-May-23,5105870010,CSG Acoustics Ltd,"£1,100.00"
Manchester City Council,Corporate Services,Works and associated costs for Land and Buildings,04-May-23,5105870069,Warden Construction Ltd,"£24,402.10"
Manchester City Council,Corporate Services,Works and associated costs for Land and Buildings,04-May-23,5105870069,Warden Construction Ltd,"£72,884.59"
Manchester City Council,Insurance Fund,Fdlty Grntee Ins Prm,04-May-23,5105870081,Redacted Personal Information,"£52,472.00"
Manchester City Council,Insurance Fund,Fdlty Grntee Ins Prm,04-May-23,5105870082,Redacted Personal Information,"£27,977.60"
Manchester City Council,Insurance Fund,Fdlty Grntee Ins Prm,04-May-23,5105870083,Redacted Personal Information,"£47,880.00"
Manchester City Council,Insurance Fund,InsPrem all risk,04-May-23,5105870084,Redacted Personal Information,"£131,374.71"
Manchester City Council,Highways Services,Payments to Sub-Contractors,04-May-23,5105869758,Rhodes and Sons Construction Ltd,"£5,809.26"
Manchester City Council,Adult Social Care,Rents,04-May-23,5105869887,Houses4Homes 4U Ltd,"£8,352.00"
Manchester City Council,Regeneration Finance,Professional fees,04-May-23,5105870144,OPen  (Optimised Environments Ltd),"£10,558.20"
Manchester City Council,Childrens & Education Services,Third party payments to other Local Authorities,04-May-23,5105870071,St Thomas C of E Primary School,"£3,216.00"
Manchester City Council,Adult Social Care,Professional fees,04-May-23,5105869944,Redacted Personal Information,"£37,953.37"
Manchester City Council,Highways Services,Hire of Machinery,04-May-23,5105870092,MTK Breaker Hire and Sales Ltd,£500.00
Manchester City Council,Highways Services,Hire of Equipment,04-May-23,5105870092,MTK Breaker Hire and Sales Ltd,£700.00
Manchester City Council,Childrens & Education Services,Transport Coach Hire,04-May-23,5105869898,MS Minibuses Ltd,"£7,383.00"
Manchester City Council,Childrens & Education Services,Payments for services,04-May-23,5105869983,Staff Resources Ltd,"£2,260.00"
Manchester City Council,Childrens & Education Services,Payments for services,04-May-23,5105869985,Staff Resources Ltd,"£1,580.00"
Manchester City Council,Manchester Leisure,Grant and subscriptions awarded,04-May-23,5105869844,Friends of Delamere Park,"£3,289.42"
Manchester City Council,Manchester Leisure,Grant and subscriptions awarded,04-May-23,5105869845,Friends of Delamere Park,"£4,710.58"
Manchester City Council,Highways Services,I T Provision,04-May-23,5105869529,Roadworks Information Ltd,"£14,400.00"
Manchester City Council,Manchester Leisure,Grant and subscriptions awarded,04-May-23,5105870113,Levenshulme Inspire Foundation,"£1,000.00"
Manchester City Council,Manchester Leisure,Grant and subscriptions awarded,04-May-23,5105870114,Levenshulme Inspire Foundation,£700.00
Manchester City Council,Housing Revenue Account,Council Dwelling Adaptations,04-May-23,5105870068,Morgan Sindall Property,"£3,842.70"
Manchester City Council,Adult Social Care,Third party payments relating to Voluntary Organisations,04-May-23,5105870093,Shared Habitat Limited,"£2,805.00"
Manchester City Council,Corporate Services,Works and associated costs for Land and Buildings,04-May-23,5105869840,FEC Northern Gateway Development Lt,"£1,666.67"
Manchester City Council,Adult Social Care,Bed & Breakfast Acc,04-May-23,5105870074,Fairways Lodge,"£5,040.00"
Manchester City Council,Chief Executives,Payments to Sub-Contractors,04-May-23,5105870011,Redacted Personal Information,£537.00
Manchester City Council,Childrens & Education Services,Bed & Breakfast Acc,04-May-23,5105870065,Trafford Domestic Abuse Services,"£1,435.64"
Manchester City Council,Adult Social Care,Grant and subscriptions awarded,04-May-23,5105869863,Trafford Hongkongers CIC,"£10,000.00"
Manchester City Council,Adult Social Care,Grant and subscriptions awarded,04-May-23,5105869934,Wirral Change,"£10,000.00"
Manchester City Council,Adult Social Care,Grant and subscriptions awarded,04-May-23,5105869850,Wirral Chinese Christian Church,"£10,000.00"
Manchester City Council,Childrens & Education Services,Payments for services,04-May-23,5105869861,Care Solutions Recruitment,£519.20
Manchester City Council,Childrens & Education Services,Payments for services,04-May-23,5105869870,Care Solutions Recruitment,£507.60
Manchester City Council,Adult Social Care,Rents,04-May-23,5105869917,Rtech Group Limited,"£4,750.00"
Manchester City Council,Childrens Services,Building Works,04-May-23,5105870006,GJS (Education) Investments Limited,"£221,948.98"
Manchester City Council,Childrens Services,Building Works,04-May-23,5105870007,GJS (Education) Investments Limited,"£166,234.69"
Manchester City Council,Manchester Leisure,Grant and subscriptions awarded,04-May-23,5105869964,Age Friendly Wythenshawe,£500.00
Manchester City Council,Childrens & Education Services,Payments for services,04-May-23,5105869948,Dragon Football Academy Limited,"£15,390.00"
Manchester City Council,Childrens & Education Services,Payments for services,04-May-23,5105869949,Dragon Football Academy Limited,"£7,200.00"
Manchester City Council,Childrens & Education Services,Professional fees,04-May-23,1908081688,Expert Psychology Consultancy Ltd,£585.00
Manchester City Council,Adult Social Care,Rents,04-May-23,1908098406,Homes 2 Share,"£3,590.00"
Manchester City Council,Chief Executives,Counsel Costs,04-May-23,1908091359,Redacted Personal Information,£525.00
Manchester City Council,Childrens & Education Services,Payments for services,05-May-23,5105870253,The Together Trust,"£1,038,574.42"
Manchester City Council,Childrens & Education Services,Payments for services,05-May-23,5105870289,The Together Trust,"£1,841.88"
Manchester City Council,Childrens & Education Services,Payments for services,05-May-23,5105870290,The Together Trust,"£4,244.94"
Manchester City Council,Childrens & Education Services,Payments for services,05-May-23,5105870301,The Together Trust,£788.95
Manchester City Council,Childrens & Education Services,Payments for services,05-May-23,5105870302,The Together Trust,"£1,060.15"
Manchester City Council,Childrens & Education Services,Payments for services,05-May-23,5105870303,The Together Trust,"£2,258.62"
Manchester City Council,Chief Executives,Postage,05-May-23,5105870403,Royal Mail Group Plc,"£4,740.00"
Manchester City Council,Chief Executives,CRB Fees,05-May-23,5105870279,Disclosure & Barring Service,"£25,794.00"
Manchester City Council,Hospitality + Trading Services,Grant Payments,05-May-23,5105870286,Nabma,£960.00
Manchester City Council,Adult Social Care,Stationery,05-May-23,5105870200,Child Poverty Action Group,"£1,218.99"
Manchester City Council,Chief Executives,Special Event,05-May-23,5105870108,Utilities Design & Planning Ltd,"-£1,220.00"
Manchester City Council,Chief Executives,Special Event,05-May-23,5105870109,Utilities Design & Planning Ltd,"£1,220.00"
Manchester City Council,Highways Services,Payments to Sub-Contractors,05-May-23,5105870102,Utilities Design & Planning Ltd,-£800.00
Manchester City Council,Highways Services,Payments to Sub-Contractors,05-May-23,5105870103,Utilities Design & Planning Ltd,£800.00
Manchester City Council,Highways Services,Payments to Sub-Contractors,05-May-23,5105870104,Utilities Design & Planning Ltd,"-£8,000.00"
Manchester City Council,Highways Services,Payments to Sub-Contractors,05-May-23,5105870105,Utilities Design & Planning Ltd,"£8,000.00"
Manchester City Council,Highways Services,Payments to Sub-Contractors,05-May-23,5105870106,Utilities Design & Planning Ltd,"-£2,000.00"
Manchester City Council,Highways Services,Payments to Sub-Contractors,05-May-23,5105870107,Utilities Design & Planning Ltd,"£2,000.00"
Manchester City Council,Highways Services,Payments to Sub-Contractors,05-May-23,5105870110,Utilities Design & Planning Ltd,"-£2,000.00"
Manchester City Council,Highways Services,Payments to Sub-Contractors,05-May-23,5105870131,Utilities Design & Planning Ltd,"£2,000.00"
Manchester City Council,Highways Services,Payments to Sub-Contractors,05-May-23,5105870132,Utilities Design & Planning Ltd,"-£2,000.00"
Manchester City Council,Highways Services,Payments to Sub-Contractors,05-May-23,5105870133,Utilities Design & Planning Ltd,"£2,000.00"
Manchester City Council,Manchester Leisure,Counsel Costs,05-May-23,1908091261,Redacted Personal Information,£650.00
Manchester City Council,Manchester Leisure,Building Materials for direct delivery,05-May-23,5105870293,Rigby Taylor Ltd,"£1,450.00"
Manchester City Council,Environment and Operations,Construction Works,05-May-23,5105870234,J.Hopkins (Contractors) Ltd.,"£32,453.07"
Manchester City Council,Environment and Operations,Construction Works,05-May-23,5105870235,J.Hopkins (Contractors) Ltd.,"£34,627.00"
Manchester City Council,Manchester Leisure,Compensation Payments,05-May-23,1908098414,Peasegoods,"£4,300.00"
Manchester City Council,Childrens & Education Services,Payments for services,05-May-23,5105870245,Seashell trust,"£75,850.98"
Manchester City Council,Childrens & Education Services,Payments for services,05-May-23,5105870246,Seashell trust,"£123,561.11"
Manchester City Council,Childrens & Education Services,Private Finance and Public Private partnership initiatives,05-May-23,5105870184,NU3PS,"£91,494.92"
Manchester City Council,Regeneration Finance,External repairs and maintenance for buildings,05-May-23,5105870244,Victoria Baths Trust,"£8,745.67"
Manchester City Council,Corporate Services,Travel Season TLS,05-May-23,5105870111,Transport for Greater Manchester,-£671.31
Manchester City Council,Chief Executives,Professional fees,05-May-23,5105870241,Transport for Greater Manchester,"£19,621.20"
Manchester City Council,Adult Social Care,Third party payments relating to Voluntary Organisations,05-May-23,5105870266,The Edward Mayes Trust,"£1,500.00"
Manchester City Council,Chief Executives,Printing,05-May-23,5105870199,Browns CTP Ltd,£786.00
Manchester City Council,Environment and Operations,Construction Works,05-May-23,5105870193,Eric Wright Civil Engineering Limit,"£37,949.92"
Manchester City Council,Regeneration Finance,External repairs and maintenance for buildings,05-May-23,5105870139,P Mcguinness & Co Ltd,£565.00
Manchester City Council,Chief Executives,Legal Fees,05-May-23,5105870215,Warwickshire County Council,"£1,369.07"
Manchester City Council,Chief Executives,Legal Fees,05-May-23,5105870216,Warwickshire County Council,"£1,871.48"
Manchester City Council,Chief Executives,Legal Fees,05-May-23,5105870217,Warwickshire County Council,"£2,674.16"
Manchester City Council,Chief Executives,Legal Fees,05-May-23,5105870263,Warwickshire County Council,"£2,893.45"
Manchester City Council,Chief Executives,Legal Fees,05-May-23,5105870264,Warwickshire County Council,"£2,988.80"
Manchester City Council,Chief Executives,Legal Fees,05-May-23,5105870265,Warwickshire County Council,"£3,049.99"
Manchester City Council,Chief Executives,Legal Fees,05-May-23,5105870268,Warwickshire County Council,"£3,538.32"
Manchester City Council,Chief Executives,Courier Costs,05-May-23,5105870254,Speed Couriers (Northern) Ltd,£548.15
Manchester City Council,Chief Executives,Courier Costs,05-May-23,5105870256,Speed Couriers (Northern) Ltd,£800.59
Manchester City Council,Corporate Services,Travel Season TLS,05-May-23,5105870079,Northern Trains Limited,"£3,101.35"
Manchester City Council,Regeneration Finance,Third party payments relating to Voluntary Organisations,05-May-23,5105870195,Proper Job Theatre company,"£2,840.00"
Manchester City Council,Adult Social Care,Personal needs of client,05-May-23,5105870194,Hoist & Shower Chair Company,"£1,401.25"
Manchester City Council,Adult Social Care,Rents,05-May-23,5105870187,M & Q Properties Management Ltd,"£3,785.14"
Manchester City Council,Chief Executives,Postage,05-May-23,5105870304,Whistl North Ltd,"£2,344.96"
Manchester City Council,Regeneration Finance,Legal Fees,05-May-23,1908098872,DLA Piper UK LLP,"£3,000.00"
Manchester City Council,Chief Executives,Legal Fees,05-May-23,5105870295,Russell & Russell Solicitors LLP,"£3,408.05"
Manchester City Council,Chief Executives,Legal Fees,05-May-23,5105870296,Russell & Russell Solicitors LLP,"£2,715.03"
Manchester City Council,Regeneration Finance,Rents,05-May-23,1908098411,Savills Commercial Ltd,"£1,643.71"
Manchester City Council,Adult Social Care,Rents,05-May-23,5105870221,Accommodation Links Ltd,"£101,613.43"
Manchester City Council,Housing General Fund,Works and associated costs for Land and Buildings,05-May-23,5105870292,Jacobs UK Ltd,£800.00
Manchester City Council,Housing General Fund,Works and associated costs for Land and Buildings,05-May-23,5105870292,Jacobs UK Ltd,"£2,022.00"
Manchester City Council,Chief Executives,Legal Fees,05-May-23,5105870158,Weightmans LLP Solicitors,£855.50
Manchester City Council,Chief Executives,Legal Fees,05-May-23,5105870159,Weightmans LLP Solicitors,"£1,749.50"
Manchester City Council,Chief Executives,Legal Fees,05-May-23,5105870160,Weightmans LLP Solicitors,"£2,087.50"
Manchester City Council,Chief Executives,Legal Fees,05-May-23,5105870171,Weightmans LLP Solicitors,"£2,945.25"
Manchester City Council,Chief Executives,Legal Fees,05-May-23,5105870172,Weightmans LLP Solicitors,"£4,328.75"
Manchester City Council,Chief Executives,Legal Fees,05-May-23,5105870173,Weightmans LLP Solicitors,£608.25
Manchester City Council,Chief Executives,Legal Fees,05-May-23,5105870175,Weightmans LLP Solicitors,"£3,551.50"
Manchester City Council,Chief Executives,Legal Fees,05-May-23,5105870176,Weightmans LLP Solicitors,"£2,918.90"
Manchester City Council,Chief Executives,Legal Fees,05-May-23,5105870178,Weightmans LLP Solicitors,"£4,683.00"
Manchester City Council,Chief Executives,Legal Fees,05-May-23,5105870179,Weightmans LLP Solicitors,"£1,062.25"
Manchester City Council,Chief Executives,Legal Fees,05-May-23,5105870201,Weightmans LLP Solicitors,"£3,953.25"
Manchester City Council,Chief Executives,Legal Fees,05-May-23,5105870202,Weightmans LLP Solicitors,"£1,048.00"
Manchester City Council,Chief Executives,Legal Fees,05-May-23,5105870203,Weightmans LLP Solicitors,"£5,355.25"
Manchester City Council,Chief Executives,Legal Fees,05-May-23,5105870204,Weightmans LLP Solicitors,"£5,390.00"
Manchester City Council,Chief Executives,Legal Fees,05-May-23,5105870205,Weightmans LLP Solicitors,"£5,210.00"
Manchester City Council,Chief Executives,Legal Fees,05-May-23,5105870206,Weightmans LLP Solicitors,"£2,454.00"
Manchester City Council,Chief Executives,Legal Fees,05-May-23,5105870207,Weightmans LLP Solicitors,"£3,224.75"
Manchester City Council,Chief Executives,Legal Fees,05-May-23,5105870208,Weightmans LLP Solicitors,"£5,517.50"
Manchester City Council,Chief Executives,Legal Fees,05-May-23,5105870209,Weightmans LLP Solicitors,"£5,239.73"
Manchester City Council,Chief Executives,Legal Fees,05-May-23,5105870283,Weightmans LLP Solicitors,"£3,679.25"
Manchester City Council,Corporate Services,Professional fees,05-May-23,1908098865,Weightmans LLP Solicitors,"£51,521.00"
Manchester City Council,Corporate Services,Professional fees,05-May-23,1908098867,Weightmans LLP Solicitors,"£3,000.00"
Manchester City Council,Corporate Services,Professional fees,05-May-23,1908098868,Weightmans LLP Solicitors,"£6,449.00"
Manchester City Council,Manchester Leisure,Counsel Costs,05-May-23,1908091262,Redacted Personal Information,"£1,300.00"
Manchester City Council,Chief Executives,ICT Sup & Maintnance,05-May-23,5105870037,Trustmarque Solutions Ltd,"£29,350.00"
Manchester City Council,Childrens & Education Services,Payments for services,05-May-23,5105870232,Enhance EHC Ltd,"£15,187.53"
Manchester City Council,Childrens & Education Services,Professional fees,05-May-23,5105870360,Virtual College Ltd,"£10,500.00"
Manchester City Council,Adult Social Care,Counsel Costs,05-May-23,5105870247,Redacted Personal Information,£650.00
Manchester City Council,GMIST (Greater Mcr Integrated),Professional fees,05-May-23,5105870337,DeepStore,"£4,214.11"
Manchester City Council,Chief Executives,Postage,05-May-23,5105870305,Quadient Ltd (Credifon),"£15,209.69"
Manchester City Council,Corporate Services,I T Provision,05-May-23,5105870191,WNS Global Services (UK) Ltd,"£14,897.00"
Manchester City Council,Manchester Leisure,Refuse Collection,05-May-23,5105870281,Vetspeed Ltd t/a Novus Environmenta,£909.86
Manchester City Council,Manchester Leisure,Refuse Collection,05-May-23,5105870282,Vetspeed Ltd t/a Novus Environmenta,£723.00
Manchester City Council,Housing Revenue Account,Council Dwelling Fees,05-May-23,5105870320,Life Environmental Services,"£3,137.50"
Manchester City Council,Childrens & Education Services,Payments for services,05-May-23,5105870248,Cambian Whinfell School Ltd,"£33,599.20"
Manchester City Council,Hospitality + Trading Services,Vehicle Hire Costs,05-May-23,5105870192,Gibsons Garden Machinery Limited,"£2,398.00"
Manchester City Council,Chief Executives,I T Provision,05-May-23,5105870053,ANS Group PLC,"£9,398.16"
Manchester City Council,Childrens & Education Services,Counsel Costs,05-May-23,1908097011,Kenworthy's Chambers,£710.00
Manchester City Council,Chief Executives,Grant and subscriptions awarded,05-May-23,5105870334,Quarantine,"£3,250.00"
Manchester City Council,Manchester Leisure,Refuse Collection,05-May-23,5105870189,Biffa Municipal Limited,"-£77,631.34"
Manchester City Council,Manchester Leisure,Long Term Debtors,05-May-23,1908098630,Love Withington Baths,"£75,117.91"
Manchester City Council,Childrens & Education Services,Professional fees,05-May-23,5105870306,Research in Practice,"£5,587.00"
Manchester City Council,Childrens & Education Services,Hire of Premises,05-May-23,5105869754,Irish Town Manchester Ltd,£695.00
Manchester City Council,Chief Executives,Payments to Sub-Contractors,05-May-23,5105870344,Redacted Personal Information,£505.57
Manchester City Council,Manchester Leisure,Agency staff provision,05-May-23,5105870212,Manchester Art Gallery,"£4,495.72"
Manchester City Council,Chief Executives,Advertising,05-May-23,5105870324,Place North West,£595.00
Manchester City Council,Childrens & Education Services,Storage Costs,05-May-23,5105870197,Restore PLC,"£3,620.94"
Manchester City Council,Childrens & Education Services,Storage Costs,05-May-23,5105870213,Restore PLC,"£1,065.41"
Manchester City Council,Childrens & Education Services,Foster Payments,05-May-23,5105870300,Space Station Day Nursery,£945.00
Manchester City Council,Childrens & Education Services,Foster Payments,05-May-23,5105870331,Space Station Day Nursery,£990.00
Manchester City Council,Chief Executives,Advertising,05-May-23,5105870323,JPIMedia Publishing Ltd,£998.44
Manchester City Council,Chief Executives,Legal Fees,05-May-23,1908098416,Waddington & Son Solicitors,"£1,556.25"
Manchester City Council,Chief Executives,Legal Fees,05-May-23,1908098417,Waddington & Son Solicitors,"£1,914.13"
Manchester City Council,Chief Executives,Legal Fees,05-May-23,1908098422,Waddington & Son Solicitors,"£3,050.00"
Manchester City Council,Chief Executives,Legal Fees,05-May-23,1908098439,Waddington & Son Solicitors,"£4,029.17"
Manchester City Council,Chief Executives,Legal Fees,05-May-23,1908098448,Waddington & Son Solicitors,"£3,597.30"
Manchester City Council,Chief Executives,Legal Fees,05-May-23,5105870355,Waddington & Son Solicitors,"£2,930.03"
Manchester City Council,Chief Executives,Legal Fees,05-May-23,5105870357,Waddington & Son Solicitors,"£1,221.25"
Manchester City Council,Chief Executives,Legal Fees,05-May-23,5105870401,Waddington & Son Solicitors,"£1,852.64"
Manchester City Council,Childrens & Education Services,Payments for services,05-May-23,5105870359,A S K Healthcare Ltd,-£960.00
Manchester City Council,Childrens & Education Services,Payments for services,05-May-23,5105870361,A S K Healthcare Ltd,£960.00
Manchester City Council,Corporate Services,WPS Awards,05-May-23,5105870238,Furniture Resource Centre Ltd,"£1,123.36"
Manchester City Council,Corporate Services,WPS Awards,05-May-23,5105870258,Furniture Resource Centre Ltd,£963.68
Manchester City Council,Corporate Services,WPS Awards,05-May-23,5105870271,Furniture Resource Centre Ltd,£963.68
Manchester City Council,Corporate Services,WPS Awards,05-May-23,5105870274,Furniture Resource Centre Ltd,£805.64
Manchester City Council,Corporate Services,WPS Awards,05-May-23,5105870317,Furniture Resource Centre Ltd,£880.71
Manchester City Council,Corporate Services,WPS Awards,05-May-23,5105870325,Furniture Resource Centre Ltd,£563.78
Manchester City Council,Corporate Services,WPS Awards,05-May-23,5105870327,Furniture Resource Centre Ltd,£563.78
Manchester City Council,Corporate Services,WPS Awards,05-May-23,5105870329,Furniture Resource Centre Ltd,£666.45
Manchester City Council,Corporate Services,WPS Awards,05-May-23,5105870411,Furniture Resource Centre Ltd,£635.73
Manchester City Council,Childrens & Education Services,Supported Accommodation,05-May-23,5105870211,CFS Care Limited,"£2,017.71"
Manchester City Council,Chief Executives,Counsel Costs,05-May-23,1908097009,Redacted Personal Information,£604.17
Manchester City Council,Adult Social Care,Bed & Breakfast Acc,05-May-23,5105870402,Medlock House Ltd,"£9,604.00"
Manchester City Council,Regeneration Finance,External repairs and maintenance for buildings,05-May-23,5105870373,Access UK Ltd,£718.09
Manchester City Council,Adult Social Care,I T Provision,05-May-23,5105870275,Access UK Ltd,"£5,852.33"
Manchester City Council,Adult Social Care,I T Provision,05-May-23,5105870276,Access UK Ltd,£835.00
Manchester City Council,Adult Social Care,I T Provision,05-May-23,5105870277,Access UK Ltd,"£5,903.97"
Manchester City Council,Childrens & Education Services,Professional fees,05-May-23,5105870231,Choice Home Tutoring Ltd,£800.00
Manchester City Council,Childrens & Education Services,Professional fees,05-May-23,5105870314,Choice Home Tutoring Ltd,"£6,210.00"
Manchester City Council,Adult Social Care,Professional fees,05-May-23,5105870406,Redacted Personal Information,"£37,953.37"
Manchester City Council,Adult Social Care,Third party payments relating to Voluntary Organisations,05-May-23,5105870196,Quays Housing,"£15,068.92"
Manchester City Council,Chief Executives,Agency staff provision,05-May-23,5105870299,Isherwood Legal Limited,"£1,260.00"
Manchester City Council,Corporate Services,External repairs and maintenance for buildings,05-May-23,5105870287,The Social Value Portal Ltd,"£7,500.00"
Manchester City Council,Chief Executives,Professional fees,05-May-23,5105870358,IMPOWER Consulting Limited,"£12,500.00"
Manchester City Council,Chief Executives,Professional fees,05-May-23,5105870358,IMPOWER Consulting Limited,£537.98
Manchester City Council,Childrens & Education Services,Transport Coach Hire,05-May-23,5105870243,CW Travel,"£45,045.00"
Manchester City Council,Childrens & Education Services,Contract Cleaning External,05-May-23,5105870285,Freshwave Cleaning Services Ltd,£713.00
Manchester City Council,Corporate Services,Professional fees,05-May-23,5105869722,NE1 Procurement Services Limited,"£6,145.41"
Manchester City Council,Childrens & Education Services,Professional fees,05-May-23,5105870313,Redacted Personal Information,"£2,781.60"
Manchester City Council,Childrens & Education Services,Transport Coach Hire,05-May-23,5105870332,Club Radio Cars Manchester Ltd,"£11,204.00"
Manchester City Council,Adult Social Care,Subsistence and Conference Expenses,05-May-23,5105870316,Immigration Social Work Services,"£1,160.00"
Manchester City Council,Manchester Leisure,Hire of Equipment,05-May-23,5105870382,Park NOW Limited,"£3,845.16"
Manchester City Council,Manchester Leisure,Counsel Costs,05-May-23,1908085928,Trinity Chambers,£850.00
Manchester City Council,Manchester Leisure,Counsel Costs,05-May-23,1908090690,Trinity Chambers,"£1,750.00"
Manchester City Council,Adult Social Care,Grant and subscriptions awarded,05-May-23,5105870312,Divrse Ltd,"£1,440.00"
Manchester City Council,Adult Social Care,Bed & Breakfast Acc,05-May-23,5105870237,VSP BEAUCLIFFE LTD,"£150,345.00"
Manchester City Council,Manchester Leisure,Legal Fees,05-May-23,1908085917,Pinnacle Building and Surveying,£550.00
Manchester City Council,Childrens & Education Services,Professional fees,05-May-23,1908098873,Carole Brooks Associates Limited,"£10,265.00"
Manchester City Council,Childrens & Education Services,Professional fees,05-May-23,1908098874,Carole Brooks Associates Limited,"£5,000.00"
Manchester City Council,Childrens & Education Services,Grant Payments,05-May-23,1908098420,Paypoint,"£9,369.59"
Manchester City Council,Childrens & Education Services,Payments for services,05-May-23,5105870249,Digital Advantage,"£27,150.00"
Manchester City Council,Adult Social Care,Subsistence and Conference Expenses,05-May-23,5105870315,English Unlocked,"£1,100.00"
Manchester City Council,Manchester Leisure,Contract Cleaning External,05-May-23,5105870185,aAFD Services Ltd,"£4,568.88"
Manchester City Council,Housing Revenue Account,Council Dwelling Adaptations,05-May-23,5105870242,Knowsley Lift Services Limited,"£46,864.00"
Manchester City Council,Manchester Leisure,Responsive Repairs Work,05-May-23,1908091424,Redacted Personal Information,£500.00
Manchester City Council,Regeneration Finance,Professional fees,05-May-23,1908091423,Habro Property Management Ltd,£500.00
Manchester City Council,Highways Services,Compensation Payments,05-May-23,1908098869,NewLaw Solicitors,"£2,500.00"
Manchester City Council,Highways Services,Legal Fees,05-May-23,1908098869,NewLaw Solicitors,"£2,337.00"
Manchester City Council,Corporate Services,Compensation Payments,05-May-23,1908098480,PD Law Solicitors Ltd,£602.60
Manchester City Council,Adult Social Care,Rents,05-May-23,1908098626,Rennsolution,"£4,458.33"
Manchester City Council,Adult Social Care,Rents,05-May-23,1908098628,Sensory Housing,"£6,100.00"
Manchester City Council,Manchester Leisure,Legal Fees,05-May-23,1908090691,SK Real Estate (Liverpool) Ltd,£650.00
Manchester City Council,Housing General Fund,Building Works,09-May-23,1908101053,Pollock Lifts Ltd,"£13,859.00"
Manchester City Council,Corporate Services,Printing,09-May-23,5105870094,Mail Solutions,£962.15
Manchester City Council,Chief Executives,Printing,09-May-23,5105870095,Mail Solutions,"£1,897.00"
Manchester City Council,Regeneration Finance,Postage,09-May-23,5105870422,Royal Mail Group Ltd,£870.00
Manchester City Council,Chief Executives,Grant Payments,09-May-23,5105870310,North West Employers Ltd,"£40,000.00"
Manchester City Council,Manchester Leisure,Payments to Sub-Contractors,09-May-23,5105870399,Flowbird Smart City Uk Ltd,£958.00
Manchester City Council,Adult Social Care,"Consumable items eg Toilet rolls, soap etc",09-May-23,1908101855,Screwfix Direct T/A Trade UK,£637.10
Manchester City Council,Manchester Leisure,Equipment,09-May-23,1908101242,Screwfix Direct T/A Trade UK,"£1,212.31"
Manchester City Council,Childrens & Education Services,Payments for services,09-May-23,5105870499,St John's Catholic School,"£18,395.33"
Manchester City Council,Adult Social Care,Rents,09-May-23,5105870450,B & A Properties,"£43,016.57"
Manchester City Council,Manchester Leisure,Publications,09-May-23,5105870455,T/A Spectrum Plast,"£1,999.00"
Manchester City Council,Regeneration Finance,Stationery,09-May-23,5105870408,Digital ID Ltd,"£2,182.95"
Manchester City Council,Corporate Services,Works and associated costs for Land and Buildings,09-May-23,5105870533,Ove Arup & Partners Ltd,"£7,503.75"
Manchester City Council,Manchester Leisure,ClothsUniformLaundry,09-May-23,5105870395,Orbis Protect Ltd,"£2,411.78"
Manchester City Council,Manchester Leisure,Security,09-May-23,5105870396,Orbis Protect Ltd,"£1,653.79"
Manchester City Council,Adult Social Care,"Consumable items eg Toilet rolls, soap etc",09-May-23,1908102608,XXXIkea Business Accounts,"£1,076.00"
Manchester City Council,Manchester Leisure,Refuse Collection,09-May-23,5105870626,GTS Steam Cleaners,£623.83
Manchester City Council,Adult Social Care,Third party payments relating to Voluntary Organisations,09-May-23,5105870125,Gaddum Centre,"£162,682.00"
Manchester City Council,Chief Executives,Agency staff provision,09-May-23,5105870619,Sellick Partnership (Legal) Ltd,"£21,337.24"
Manchester City Council,Adult Social Care,"Consumable items eg Toilet rolls, soap etc",09-May-23,1908101779,Argos Business Solutions,£603.91
Manchester City Council,Regeneration Finance,"Consumable items eg Toilet rolls, soap etc",09-May-23,1908101877,Argos Business Solutions,£503.90
Manchester City Council,Corporate Services,Professional fees,09-May-23,5105870030,Mace Ltd,"£4,628.00"
Manchester City Council,Childrens & Education Services,Transport Taxis,09-May-23,5105870642,Cresta Car Hire,£756.10
Manchester City Council,Manchester Leisure,ClothsUniformLaundry,09-May-23,5105870496,JLA Ltd,"£2,872.74"
Manchester City Council,Manchester Leisure,ClothsUniformLaundry,09-May-23,5105870498,JLA Ltd,"£2,872.74"
Manchester City Council,Manchester Leisure,ClothsUniformLaundry,09-May-23,5105870511,JLA Ltd,"£2,872.73"
Manchester City Council,Manchester Leisure,Payments to Sub-Contractors,09-May-23,5105870423,Rigby Taylor Ltd,"£7,280.00"
Manchester City Council,Chief Executives,Agency staff provision,09-May-23,5105870564,Search Consultancy Ltd,"£6,542.11"
Manchester City Council,Manchester Leisure,Works and associated costs for Land and Buildings,09-May-23,5105870506,Eagle Containers Ltd,£595.00
Manchester City Council,Manchester Leisure,Works and associated costs for Land and Buildings,09-May-23,5105870474,Eagle Containers Ltd,"£3,450.00"
Manchester City Council,Manchester Leisure,Legal Fees,09-May-23,1908090085,CGDM Ltd T/A,"£5,422.60"
Manchester City Council,Housing General Fund,Building Works,09-May-23,1908101048,Stannah Lift Services Ltd,"£4,272.00"
Manchester City Council,Housing General Fund,Building Works,09-May-23,1908101050,Stannah Lift Services Ltd,"£5,476.00"
Manchester City Council,Housing General Fund,Building Works,09-May-23,1908101045,Stannah Lift Services Ltd,"£3,321.00"
Manchester City Council,Housing General Fund,Building Works,09-May-23,1908101046,Stannah Lift Services Ltd,"£3,661.00"
Manchester City Council,Housing General Fund,Building Works,09-May-23,1908101051,Stannah Lift Services Ltd,"£7,061.00"
Manchester City Council,Housing General Fund,Building Works,09-May-23,1908101052,Stannah Lift Services Ltd,"£7,991.00"
Manchester City Council,Housing General Fund,Building Works,09-May-23,1908101054,Stannah Lift Services Ltd,"£3,593.00"
Manchester City Council,Chief Executives,Agency staff provision,09-May-23,5105870559,Pertemps Professional Recruitment L,"£20,380.94"
Manchester City Council,Regeneration Finance,Grant and subscriptions awarded,09-May-23,5105869902,Creative Concern Ltd,"£5,000.00"
Manchester City Council,Regeneration Finance,Grant and subscriptions awarded,09-May-23,5105870580,Creative Concern Ltd,"-£5,000.00"
Manchester City Council,Corporate Services,Grant and subscriptions awarded,09-May-23,5105870398,Tameside Metropolitan Bouough,£575.15
Manchester City Council,Manchester Leisure,Grant and subscriptions awarded,09-May-23,5105869590,Stockport Metropolitan Borough,"£8,862.31"
Manchester City Council,Childrens & Education Services,Gas,09-May-23,5105870449,Manchester School Services Limited,"£78,222.53"
Manchester City Council,Childrens & Education Services,Private Finance and Public Private partnership initiatives,09-May-23,5105870448,Manchester School Services Limited,"£485,982.29"
Manchester City Council,Manchester Leisure,Refuse Collection,09-May-23,5105870627,Redgate Holdings Ltd,"£4,527.28"
Manchester City Council,Manchester Leisure,Refuse Collection,09-May-23,5105870628,Redgate Holdings Ltd,"£5,601.76"
Manchester City Council,Regeneration Finance,Legal Fees,09-May-23,1908070107,Express Solicitors,"£3,498.00"
Manchester City Council,Childrens & Education Services,Payments for services,09-May-23,5105870497,David Lewis Organisation,"£20,933.85"
Manchester City Council,Highways Services,Purchase of stores for re-distribution,09-May-23,5105870453,Manchester Safety Services Ltd,£549.50
Manchester City Council,Childrens & Education Services,Transport Coach Hire,09-May-23,5105870622,David'S Handy Rider,"£2,590.00"
Manchester City Council,Childrens & Education Services,Transport Coach Hire,09-May-23,5105870623,David'S Handy Rider,"£4,255.00"
Manchester City Council,Childrens & Education Services,Transport Coach Hire,09-May-23,5105870624,David'S Handy Rider,"£3,885.00"
Manchester City Council,Regeneration Finance,Training and Development,09-May-23,5105870479,Trinity College London,£656.00
Manchester City Council,Regeneration Finance,Training and Development,09-May-23,5105870480,Trinity College London,£738.00
Manchester City Council,Regeneration Finance,Training and Development,09-May-23,5105870501,Trinity College London,£615.00
Manchester City Council,Corporate Services,Legal Fees,09-May-23,1908102883,HMCTS (Manchester),"£1,341.50"
Manchester City Council,Insurance Fund,Insurance,09-May-23,1908098583,Department For Work & Pensions,£743.00
Manchester City Council,Highways Services,Legal Fees,09-May-23,1908028461,Department For Work & Pensions,£647.00
Manchester City Council,Chief Executives,Telecoms Equip,09-May-23,5105870597,Insight Direct (Uk) Ltd,"£1,077.00"
Manchester City Council,Chief Executives,Telecoms Equip,09-May-23,5105870611,Insight Direct (Uk) Ltd,"£1,077.00"
Manchester City Council,Housing Revenue Account,Vehicle Plant Furniture and Equipment,09-May-23,5105870442,Insight Direct (Uk) Ltd,"£23,603.44"
Manchester City Council,Housing Revenue Account,Vehicle Plant Furniture and Equipment,09-May-23,5105870598,Insight Direct (Uk) Ltd,"£1,098.54"
Manchester City Council,Housing Revenue Account,Council Dwelling Adaptations,09-May-23,5105870509,Pts Plumbing Trade Supplies,"£2,974.14"
Manchester City Council,Housing Revenue Account,Council Dwelling Adaptations,09-May-23,5105870510,Pts Plumbing Trade Supplies,"£2,123.20"
Manchester City Council,Housing Revenue Account,Council Dwelling Adaptations,09-May-23,5105870571,Pts Plumbing Trade Supplies,"£1,885.23"
Manchester City Council,Adult Social Care,"Consumable items eg Toilet rolls, soap etc",09-May-23,1908101982,Amazon Co.Uk,"£1,739.50"
Manchester City Council,Adult Social Care,"Consumable items eg Toilet rolls, soap etc",09-May-23,1908102429,Amazon Co.Uk,"£3,060.49"
Manchester City Council,Regeneration Finance,"Consumable items eg Toilet rolls, soap etc",09-May-23,1908101399,Amazon Co.Uk,£542.62
Manchester City Council,Adult Social Care,Bed & Breakfast Acc,09-May-23,5105870652,Redacted Personal Information,"£11,774.00"
Manchester City Council,Childrens & Education Services,Payments for services,09-May-23,5105870500,Loreto College,"£114,953.31"
Manchester City Council,Housing General Fund,Building Works,09-May-23,1908101047,Hoist & Shower Chair Company,£500.00
Manchester City Council,Housing General Fund,Building Works,09-May-23,1908101049,Hoist & Shower Chair Company,"£2,593.00"
Manchester City Council,Hospitality + Trading Services,Equipment,09-May-23,1908101914,Stapletons Tyre Services,"£3,849.22"
Manchester City Council,Chief Executives,Counsel Costs,09-May-23,1908091381,18 St John Street Chambers,£650.00
Manchester City Council,Chief Executives,Counsel Costs,09-May-23,1908098415,18 St John Street Chambers,"£2,290.00"
Manchester City Council,Chief Executives,Counsel Costs,09-May-23,1908098427,18 St John Street Chambers,£650.00
Manchester City Council,Chief Executives,Counsel Costs,09-May-23,1908098434,18 St John Street Chambers,"£1,370.00"
Manchester City Council,Chief Executives,Counsel Costs,09-May-23,1908098437,18 St John Street Chambers,£650.00
Manchester City Council,Chief Executives,Legal Fees,09-May-23,5105870554,Russell & Russell Solicitors LLP,"£5,641.00"
Manchester City Council,Chief Executives,Legal Fees,09-May-23,5105870555,Russell & Russell Solicitors LLP,"£4,325.00"
Manchester City Council,Manchester Leisure,Professional fees,09-May-23,5105870378,T 3 Events,"£3,105.00"
Manchester City Council,Insurance Fund,Insurance,09-May-23,1908098428,Weightmans LLP Solicitors,"£4,150.00"
Manchester City Council,Highways Services,Professional fees,09-May-23,5105870751,Wilde Consultants Ltd,"-£4,055.75"
Manchester City Council,Corporate Services,Vehicle Costs,09-May-23,1908098616,Cyclescheme Ltd,"£1,248.33"
Manchester City Council,Corporate Services,Vehicle Costs,09-May-23,1908098618,Cyclescheme Ltd,"£2,761.67"
Manchester City Council,Corporate Services,Grant Payments,09-May-23,5105870482,L G Futures,"£3,945.00"
Manchester City Council,Housing Revenue Account,Council Dwelling Adaptations,09-May-23,5105870446,"Jackson, Jackson & Sons Ltd","£12,950.25"
Manchester City Council,Manchester Leisure,Grant and subscriptions awarded,09-May-23,5105870407,Manchester Youth Zone,"£102,500.00"
Manchester City Council,Childrens & Education Services,General Office expenses,09-May-23,1908102167,EE / Orange,£772.69
Manchester City Council,Childrens & Education Services,"Consumable items eg Toilet rolls, soap etc",09-May-23,1908101599,B & Q (CARD ONLY),£517.40
Manchester City Council,Adult Social Care,Rents,09-May-23,5105870380,Mack Residential Letting Ltd,"£1,500.00"
Manchester City Council,Adult Social Care,Rents,09-May-23,5105870452,Wythenshawe Community Housing Group,£500.00
Manchester City Council,Housing Revenue Account,Council Dwelling Adaptations,09-May-23,5105870507,Rothwell Plumbing Services Ltd,"£20,105.77"
Manchester City Council,Environment and Operations,Construction Works,09-May-23,5105870638,Kiely Bros Ltd,"£193,209.70"
Manchester City Council,Environment and Operations,Construction Works,09-May-23,5105870639,Kiely Bros Ltd,"£48,027.93"
Manchester City Council,Manchester Leisure,ClothsUniformLaundry,09-May-23,5105870435,JLA Total Care Ltd,"£2,872.74"
Manchester City Council,Manchester Leisure,ClothsUniformLaundry,09-May-23,5105870436,JLA Total Care Ltd,"£2,872.74"
Manchester City Council,Manchester Leisure,ClothsUniformLaundry,09-May-23,5105870438,JLA Total Care Ltd,"£2,872.74"
Manchester City Council,Manchester Leisure,ClothsUniformLaundry,09-May-23,5105870461,JLA Total Care Ltd,"-£2,872.74"
Manchester City Council,Manchester Leisure,ClothsUniformLaundry,09-May-23,5105870462,JLA Total Care Ltd,"-£2,872.74"
Manchester City Council,Manchester Leisure,ClothsUniformLaundry,09-May-23,5105870463,JLA Total Care Ltd,"-£2,872.74"
Manchester City Council,Adult Social Care,Bed & Breakfast Acc,09-May-23,5105870483,Redacted Personal Information,"£4,580.00"
Manchester City Council,Childrens & Education Services,Payments for services,09-May-23,5105870653,Access to Music Ltd,"£3,873.33"
Manchester City Council,Regeneration Finance,Subvention Payments,09-May-23,5105870004,Manchester Creative Digital Assets,"£289,681.00"
Manchester City Council,Regeneration Finance,Subvention Payments,09-May-23,5105870004,Manchester Creative Digital Assets,"£260,075.00"
Manchester City Council,Regeneration Finance,Subvention Payments,09-May-23,5105870004,Manchester Creative Digital Assets,"£233,364.00"
Manchester City Council,Regeneration Finance,Subvention Payments,09-May-23,5105870004,Manchester Creative Digital Assets,"£88,576.00"
Manchester City Council,Regeneration Finance,Subvention Payments,09-May-23,5105870004,Manchester Creative Digital Assets,"£39,660.00"
Manchester City Council,Environment and Operations,Professional fees,09-May-23,5105870547,Smile Mediation,£990.00
Manchester City Council,Chief Executives,Payments to Sub-Contractors,09-May-23,5105870528,Redacted Personal Information,"£1,750.01"
Manchester City Council,Adult Social Care,Rents,09-May-23,5105870485,Housing Social Ltd,"£36,510.29"
Manchester City Council,Corporate Services,External repairs and maintenance for buildings,09-May-23,5105870596,Health Assured Ltd,"£1,000.00"
Manchester City Council,Adult Social Care,Rents,09-May-23,5105870617,Eeven Homes Ltd.,"£17,916.00"
Manchester City Council,Chief Executives,Agency staff provision,09-May-23,5105870558,Tripod Partners,"£7,880.30"
Manchester City Council,Chief Executives,Professional fees,09-May-23,1908098421,Target Psychology Ltd,"£2,455.90"
Manchester City Council,Adult Social Care,Third party payments relating to Voluntary Organisations,09-May-23,5105870577,Your Housing Ltd.,"£9,157.00"
Manchester City Council,Adult Social Care,Bed & Breakfast Acc,09-May-23,5105870612,Redacted Personal Information,"£2,170.00"
Manchester City Council,Chief Executives,Professional fees,09-May-23,1908098515,Pickering Psychology Services Ltd,£820.11
Manchester City Council,Adult Social Care,Rents,09-May-23,5105870560,Manchester Housing Group Ltd,£600.00
Manchester City Council,Adult Social Care,Rents,09-May-23,5105870563,Manchester Housing Group Ltd,£680.00
Manchester City Council,Chief Executives,Printing,09-May-23,5105869740,Impression (Bolton) Ltd,"£5,825.00"
Manchester City Council,Chief Executives,Printing,09-May-23,5105870341,Impression (Bolton) Ltd,"£3,753.77"
Manchester City Council,Manchester Leisure,Rents,09-May-23,1908034963,Vanguard Holdings Ltd,"£20,000.00"
Manchester City Council,Manchester Leisure,Payments to Sub-Contractors,09-May-23,5105870762,Synectics Security Limited,"-£2,552.05"
Manchester City Council,Manchester Leisure,Payments to Sub-Contractors,09-May-23,5105870765,Synectics Security Limited,"£2,552.05"
Manchester City Council,Chief Executives,Counsel Costs,09-May-23,1908091382,Central Chambers,£750.00
Manchester City Council,Chief Executives,Counsel Costs,09-May-23,1908098490,Central Chambers,£550.00
Manchester City Council,Childrens & Education Services,"Consumable items eg Toilet rolls, soap etc",09-May-23,1908102361,PAYPAL (UK) P CARD ONLY,£518.94
Manchester City Council,Manchester Leisure,"Consumable items eg Toilet rolls, soap etc",09-May-23,1908101887,TRAVELODGE P CARD ONLY,£890.25
Manchester City Council,Manchester Leisure,"Consumable items eg Toilet rolls, soap etc",09-May-23,1908102131,TRAVELODGE P CARD ONLY,£709.79
Manchester City Council,Adult Social Care,General Office expenses,09-May-23,1908102832,TRAVELODGE P CARD ONLY,£650.65
Manchester City Council,Adult Social Care,General Office expenses,09-May-23,1908102837,TRAVELODGE P CARD ONLY,£845.47
Manchester City Council,Adult Social Care,Bed & Breakfast Acc,09-May-23,1908101278,TRAVELODGE P CARD ONLY,"£1,080.03"
Manchester City Council,Adult Social Care,Bed & Breakfast Acc,09-May-23,1908101439,TRAVELODGE P CARD ONLY,"£1,028.02"
Manchester City Council,Adult Social Care,Bed & Breakfast Acc,09-May-23,1908101968,TRAVELODGE P CARD ONLY,"£1,155.47"
Manchester City Council,Adult Social Care,"Consumable items eg Toilet rolls, soap etc",09-May-23,1908102695,HOLIDAY INN P CARD ONLY,"£1,416.80"
Manchester City Council,Adult Social Care,"Consumable items eg Toilet rolls, soap etc",09-May-23,1908102714,HOLIDAY INN P CARD ONLY,£708.40
Manchester City Council,Adult Social Care,"Consumable items eg Toilet rolls, soap etc",09-May-23,1908102750,HOLIDAY INN P CARD ONLY,"£1,416.80"
Manchester City Council,Adult Social Care,"Consumable items eg Toilet rolls, soap etc",09-May-23,1908102751,HOLIDAY INN P CARD ONLY,"£1,416.80"
Manchester City Council,Adult Social Care,"Consumable items eg Toilet rolls, soap etc",09-May-23,1908102756,HOLIDAY INN P CARD ONLY,£708.40
Manchester City Council,Adult Social Care,"Consumable items eg Toilet rolls, soap etc",09-May-23,1908102758,HOLIDAY INN P CARD ONLY,"£1,315.60"
Manchester City Council,Adult Social Care,"Consumable items eg Toilet rolls, soap etc",09-May-23,1908102763,HOLIDAY INN P CARD ONLY,"£1,416.80"
Manchester City Council,Adult Social Care,Bed & Breakfast Acc,09-May-23,1908101134,HOLIDAY INN P CARD ONLY,"£1,330.00"
Manchester City Council,Adult Social Care,Bed & Breakfast Acc,09-May-23,1908101138,HOLIDAY INN P CARD ONLY,"£1,330.00"
Manchester City Council,Adult Social Care,Bed & Breakfast Acc,09-May-23,1908101140,HOLIDAY INN P CARD ONLY,"£1,330.00"
Manchester City Council,Adult Social Care,Bed & Breakfast Acc,09-May-23,1908101142,HOLIDAY INN P CARD ONLY,"£1,330.00"
Manchester City Council,Adult Social Care,Bed & Breakfast Acc,09-May-23,1908101162,HOLIDAY INN P CARD ONLY,"£1,330.00"
Manchester City Council,Adult Social Care,Bed & Breakfast Acc,09-May-23,1908101168,HOLIDAY INN P CARD ONLY,"£1,330.00"
Manchester City Council,Adult Social Care,Bed & Breakfast Acc,09-May-23,1908101268,HOLIDAY INN P CARD ONLY,"£1,330.00"
Manchester City Council,Adult Social Care,Bed & Breakfast Acc,09-May-23,1908101313,HOLIDAY INN P CARD ONLY,"£1,330.00"
Manchester City Council,Adult Social Care,Bed & Breakfast Acc,09-May-23,1908101319,HOLIDAY INN P CARD ONLY,£665.00
Manchester City Council,Adult Social Care,Bed & Breakfast Acc,09-May-23,1908101324,HOLIDAY INN P CARD ONLY,"£1,330.00"
Manchester City Council,Adult Social Care,Bed & Breakfast Acc,09-May-23,1908101367,HOLIDAY INN P CARD ONLY,"£1,330.00"
Manchester City Council,Adult Social Care,Bed & Breakfast Acc,09-May-23,1908101403,HOLIDAY INN P CARD ONLY,"£1,330.00"
Manchester City Council,Adult Social Care,Bed & Breakfast Acc,09-May-23,1908101412,HOLIDAY INN P CARD ONLY,"£1,330.00"
Manchester City Council,Adult Social Care,Bed & Breakfast Acc,09-May-23,1908101449,HOLIDAY INN P CARD ONLY,"£1,330.00"
Manchester City Council,Adult Social Care,Bed & Breakfast Acc,09-May-23,1908101450,HOLIDAY INN P CARD ONLY,£950.00
Manchester City Council,Adult Social Care,Bed & Breakfast Acc,09-May-23,1908101451,HOLIDAY INN P CARD ONLY,"£1,330.00"
Manchester City Council,Adult Social Care,Bed & Breakfast Acc,09-May-23,1908101453,HOLIDAY INN P CARD ONLY,"£1,330.00"
Manchester City Council,Adult Social Care,Bed & Breakfast Acc,09-May-23,1908101456,HOLIDAY INN P CARD ONLY,"£1,330.00"
Manchester City Council,Adult Social Care,Bed & Breakfast Acc,09-May-23,1908101466,HOLIDAY INN P CARD ONLY,£950.00
Manchester City Council,Adult Social Care,Bed & Breakfast Acc,09-May-23,1908101469,HOLIDAY INN P CARD ONLY,"£1,330.00"
Manchester City Council,Adult Social Care,Bed & Breakfast Acc,09-May-23,1908101479,HOLIDAY INN P CARD ONLY,£950.00
Manchester City Council,Adult Social Care,Bed & Breakfast Acc,09-May-23,1908101521,HOLIDAY INN P CARD ONLY,"£1,346.80"
Manchester City Council,Adult Social Care,Bed & Breakfast Acc,09-May-23,1908101530,HOLIDAY INN P CARD ONLY,"£1,350.40"
Manchester City Council,Adult Social Care,Bed & Breakfast Acc,09-May-23,1908101546,HOLIDAY INN P CARD ONLY,"£1,350.40"
Manchester City Council,Adult Social Care,Bed & Breakfast Acc,09-May-23,1908101572,HOLIDAY INN P CARD ONLY,£708.40
Manchester City Council,Adult Social Care,Bed & Breakfast Acc,09-May-23,1908101584,HOLIDAY INN P CARD ONLY,£708.40
Manchester City Council,Adult Social Care,Bed & Breakfast Acc,09-May-23,1908101595,HOLIDAY INN P CARD ONLY,£708.40
Manchester City Council,Adult Social Care,Bed & Breakfast Acc,09-May-23,1908101604,HOLIDAY INN P CARD ONLY,£669.80
Manchester City Council,Adult Social Care,Bed & Breakfast Acc,09-May-23,1908101607,HOLIDAY INN P CARD ONLY,£708.40
Manchester City Council,Adult Social Care,Bed & Breakfast Acc,09-May-23,1908101610,HOLIDAY INN P CARD ONLY,£708.40
Manchester City Council,Adult Social Care,Bed & Breakfast Acc,09-May-23,1908101611,HOLIDAY INN P CARD ONLY,£708.40
Manchester City Council,Adult Social Care,Bed & Breakfast Acc,09-May-23,1908101614,HOLIDAY INN P CARD ONLY,£708.40
Manchester City Council,Adult Social Care,Bed & Breakfast Acc,09-May-23,1908101621,HOLIDAY INN P CARD ONLY,"£3,420.00"
Manchester City Council,Adult Social Care,Bed & Breakfast Acc,09-May-23,1908101671,HOLIDAY INN P CARD ONLY,£964.40
Manchester City Council,Adult Social Care,Bed & Breakfast Acc,09-May-23,1908101738,HOLIDAY INN P CARD ONLY,"£13,920.60"
Manchester City Council,Adult Social Care,Bed & Breakfast Acc,09-May-23,1908101767,HOLIDAY INN P CARD ONLY,"£24,996.40"
Manchester City Council,Adult Social Care,Bed & Breakfast Acc,09-May-23,1908101847,HOLIDAY INN P CARD ONLY,"£7,792.40"
Manchester City Council,Adult Social Care,Bed & Breakfast Acc,09-May-23,1908101870,HOLIDAY INN P CARD ONLY,£607.20
Manchester City Council,Adult Social Care,Bed & Breakfast Acc,09-May-23,1908101946,HOLIDAY INN P CARD ONLY,"£11,334.40"
Manchester City Council,Adult Social Care,Bed & Breakfast Acc,09-May-23,1908101954,HOLIDAY INN P CARD ONLY,"£5,667.20"
Manchester City Council,Adult Social Care,Bed & Breakfast Acc,09-May-23,1908101963,HOLIDAY INN P CARD ONLY,"£1,416.80"
Manchester City Council,Adult Social Care,Bed & Breakfast Acc,09-May-23,1908102031,HOLIDAY INN P CARD ONLY,"£5,667.20"
Manchester City Council,Adult Social Care,Bed & Breakfast Acc,09-May-23,1908102054,HOLIDAY INN P CARD ONLY,"£1,416.80"
Manchester City Council,Adult Social Care,Bed & Breakfast Acc,09-May-23,1908102124,HOLIDAY INN P CARD ONLY,"£5,363.60"
Manchester City Council,Adult Social Care,Bed & Breakfast Acc,09-May-23,1908102155,HOLIDAY INN P CARD ONLY,"£1,416.80"
Manchester City Council,Adult Social Care,Bed & Breakfast Acc,09-May-23,1908102169,HOLIDAY INN P CARD ONLY,"£8,500.80"
Manchester City Council,Adult Social Care,Bed & Breakfast Acc,09-May-23,1908102177,HOLIDAY INN P CARD ONLY,"£1,416.80"
Manchester City Council,Adult Social Care,Bed & Breakfast Acc,09-May-23,1908102179,HOLIDAY INN P CARD ONLY,"£5,667.20"
Manchester City Council,Adult Social Care,Bed & Breakfast Acc,09-May-23,1908102183,HOLIDAY INN P CARD ONLY,"£2,833.60"
Manchester City Council,Adult Social Care,Bed & Breakfast Acc,09-May-23,1908102202,HOLIDAY INN P CARD ONLY,"£2,125.20"
Manchester City Council,Adult Social Care,Bed & Breakfast Acc,09-May-23,1908102294,HOLIDAY INN P CARD ONLY,"£5,768.40"
Manchester City Council,Adult Social Care,Bed & Breakfast Acc,09-May-23,1908102310,HOLIDAY INN P CARD ONLY,"£1,416.80"
Manchester City Council,Adult Social Care,Bed & Breakfast Acc,09-May-23,1908102329,HOLIDAY INN P CARD ONLY,"£1,416.80"
Manchester City Council,Adult Social Care,Bed & Breakfast Acc,09-May-23,1908102454,HOLIDAY INN P CARD ONLY,£708.40
Manchester City Council,Adult Social Care,Bed & Breakfast Acc,09-May-23,1908102498,HOLIDAY INN P CARD ONLY,£809.60
Manchester City Council,Adult Social Care,Bed & Breakfast Acc,09-May-23,1908102505,HOLIDAY INN P CARD ONLY,"£1,416.80"
Manchester City Council,Adult Social Care,Bed & Breakfast Acc,09-May-23,1908102510,HOLIDAY INN P CARD ONLY,£607.20
Manchester City Council,Adult Social Care,Bed & Breakfast Acc,09-May-23,1908102650,HOLIDAY INN P CARD ONLY,£678.60
Manchester City Council,Adult Social Care,Bed & Breakfast Acc,09-May-23,1908102654,HOLIDAY INN P CARD ONLY,"£7,084.00"
Manchester City Council,Childrens & Education Services,Professional fees,09-May-23,5105870420,Prospero Teaching,£500.00
Manchester City Council,Adult Social Care,Bed & Breakfast Acc,09-May-23,5105870484,Hala Guest House,"£6,370.00"
Manchester City Council,Corporate Services,WPS Awards,09-May-23,5105870417,Furniture Resource Centre Ltd,"£1,227.78"
Manchester City Council,Childrens & Education Services,Payments for services,09-May-23,5105870492,Keys PCE Limited,"£8,492.89"
Manchester City Council,Childrens & Education Services,Payments for services,09-May-23,5105870494,Keys PCE Limited,"-£8,492.89"
Manchester City Council,Corporate Services,Professional fees,09-May-23,5105870291,Pick Everard,"£3,576.00"
Manchester City Council,Corporate Services,Works and associated costs for Land and Buildings,09-May-23,5105870539,Purcell Architecture Limited,"£22,125.00"
Manchester City Council,Insurance Fund,Insurance,09-May-23,1908098429,Sedgwick International UK,£585.00
Manchester City Council,Adult Social Care,Rents,09-May-23,5105870587,M&D Residential Ltd,"£10,463.65"
Manchester City Council,Adult Social Care,Rents,09-May-23,5105870588,M&D Residential Ltd,"£9,871.90"
Manchester City Council,Adult Social Care,Grant Payments,09-May-23,5105870635,Workforce HCM Limited,"£28,960.00"
Manchester City Council,Manchester Leisure,Legal Fees,09-May-23,1908101685,Bond Turner Solicitors,"£1,000.00"
Manchester City Council,Manchester Leisure,Building Materials for direct delivery,09-May-23,5105870425,CPD Property Services,£795.00
Manchester City Council,Childrens & Education Services,Professional fees,09-May-23,5105870618,Term2term Ltd,"£1,425.00"
Manchester City Council,Chief Executives,Payments to Sub-Contractors,09-May-23,5105870568,Redacted Personal Information,£675.00
Manchester City Council,Chief Executives,Payments to Sub-Contractors,09-May-23,5105870569,Redacted Personal Information,£537.00
Manchester City Council,Chief Executives,Payments to Sub-Contractors,09-May-23,5105870613,Redacted Personal Information,£566.25
Manchester City Council,Childrens & Education Services,Transport Coach Hire,09-May-23,5105870549,AFJ Ltd,"£5,334.00"
Manchester City Council,Childrens & Education Services,Transport Coach Hire,09-May-23,5105870550,AFJ Ltd,"£5,334.00"
Manchester City Council,Childrens & Education Services,Transport Coach Hire,09-May-23,5105870551,AFJ Ltd,"£4,826.00"
Manchester City Council,Childrens & Education Services,Transport Coach Hire,09-May-23,5105870552,AFJ Ltd,"£5,334.00"
Manchester City Council,Childrens & Education Services,Transport Coach Hire,09-May-23,5105870553,AFJ Ltd,£508.00
Manchester City Council,Adult Social Care,Rents,09-May-23,5105870548,Rtech Group Limited,"£3,179.16"
Manchester City Council,Childrens & Education Services,Professional fees,09-May-23,5105870600,The Movez Movement,"£2,697.50"
Manchester City Council,Manchester Leisure,Special Event,09-May-23,5105870424,Redacted Personal Information,"£3,500.00"
Manchester City Council,Manchester Leisure,Special Event,09-May-23,5105870541,Redacted Personal Information,"£1,500.00"
Manchester City Council,Adult Social Care,"Consumable items eg Toilet rolls, soap etc",09-May-23,1908102280,ALPHA FURNISHING LTD,"£14,121.84"
Manchester City Council,Manchester Leisure,Equipment,09-May-23,1908101905,BEAL(UK) LTD,£577.50
Manchester City Council,Adult Social Care,"Consumable items eg Toilet rolls, soap etc",09-May-23,1908102458,BEST WESTERN HOTEL 99,"£1,520.00"
Manchester City Council,Adult Social Care,Bed & Breakfast Acc,09-May-23,1908101240,BEST WESTERN HOTEL 99,"£3,290.00"
Manchester City Council,Adult Social Care,Bed & Breakfast Acc,09-May-23,1908101356,BEST WESTERN HOTEL 99,"£2,660.00"
Manchester City Council,Adult Social Care,Bed & Breakfast Acc,09-May-23,1908101389,BEST WESTERN HOTEL 99,"£2,660.00"
Manchester City Council,Adult Social Care,Bed & Breakfast Acc,09-May-23,1908101867,BEST WESTERN HOTEL 99,£980.00
Manchester City Council,Adult Social Care,Bed & Breakfast Acc,09-May-23,1908101976,BEST WESTERN HOTEL 99,£950.00
Manchester City Council,Adult Social Care,Bed & Breakfast Acc,09-May-23,1908102003,BEST WESTERN HOTEL 99,£950.00
Manchester City Council,Adult Social Care,Bed & Breakfast Acc,09-May-23,1908102067,BEST WESTERN HOTEL 99,£960.00
Manchester City Council,Adult Social Care,Bed & Breakfast Acc,09-May-23,1908102079,BEST WESTERN HOTEL 99,"£1,160.00"
Manchester City Council,Adult Social Care,Bed & Breakfast Acc,09-May-23,1908102097,BEST WESTERN HOTEL 99,£640.00
Manchester City Council,Adult Social Care,Bed & Breakfast Acc,09-May-23,1908102540,BEST WESTERN HOTEL 99,"£1,330.00"
Manchester City Council,Childrens & Education Services,Bed & Breakfast Acc,09-May-23,1908101276,BKG*BOOKING.COM HOTEL,"£1,066.27"
Manchester City Council,Childrens & Education Services,Bed & Breakfast Acc,09-May-23,1908101473,BKG*BOOKING.COM HOTEL,£925.00
Manchester City Council,Childrens & Education Services,Bed & Breakfast Acc,09-May-23,1908101854,BKG*BOOKING.COM HOTEL,"£2,888.45"
Manchester City Council,Childrens & Education Services,Bed & Breakfast Acc,09-May-23,1908102489,BKG*BOOKING.COM HOTEL,-£925.00
Manchester City Council,Adult Social Care,Bed & Breakfast Acc,09-May-23,1908101154,BKG*BOOKING.COM HOTEL,"£1,053.00"
Manchester City Council,Adult Social Care,Bed & Breakfast Acc,09-May-23,1908101265,BKG*BOOKING.COM HOTEL,£710.00
Manchester City Council,Adult Social Care,Bed & Breakfast Acc,09-May-23,1908101499,BKG*BOOKING.COM HOTEL,"£1,110.03"
Manchester City Council,Adult Social Care,Bed & Breakfast Acc,09-May-23,1908101606,BKG*BOOKING.COM HOTEL,"£1,636.00"
Manchester City Council,Adult Social Care,Bed & Breakfast Acc,09-May-23,1908101660,BKG*BOOKING.COM HOTEL,"£1,115.40"
Manchester City Council,Adult Social Care,Bed & Breakfast Acc,09-May-23,1908101784,BKG*BOOKING.COM HOTEL,"£1,182.59"
Manchester City Council,Adult Social Care,Bed & Breakfast Acc,09-May-23,1908101922,BKG*BOOKING.COM HOTEL,"£2,098.00"
Manchester City Council,Adult Social Care,Bed & Breakfast Acc,09-May-23,1908102101,BKG*BOOKING.COM HOTEL,£929.20
Manchester City Council,Adult Social Care,Bed & Breakfast Acc,09-May-23,1908102161,BKG*BOOKING.COM HOTEL,"-£1,353.00"
Manchester City Council,Adult Social Care,Bed & Breakfast Acc,09-May-23,1908102534,BKG*BOOKING.COM HOTEL,£865.44
Manchester City Council,Adult Social Care,Bed & Breakfast Acc,09-May-23,1908102713,BKG*BOOKING.COM HOTEL,"£1,450.00"
Manchester City Council,Childrens & Education Services,Personal needs of client,09-May-23,1908102093,BKG*BOOKING.COM HOTEL,£983.90
Manchester City Council,Childrens & Education Services,Personal needs of client,09-May-23,1908102118,BKG*BOOKING.COM HOTEL,"£1,390.10"
Manchester City Council,Adult Social Care,"Consumable items eg Toilet rolls, soap etc",09-May-23,1908102023,BRITISH GAS ONLINE,£798.57
Manchester City Council,Adult Social Care,"Consumable items eg Toilet rolls, soap etc",09-May-23,1908102729,BRITISH GAS ONLINE,£924.42
Manchester City Council,Adult Social Care,"Consumable items eg Toilet rolls, soap etc",09-May-23,1908102755,BRITISH GAS ONLINE,£944.15
Manchester City Council,Manchester Leisure,"Consumable items eg Toilet rolls, soap etc",09-May-23,1908102619,BUILT ENVIRONMENT NETW,£960.00
Manchester City Council,Chief Executives,"Consumable items eg Toilet rolls, soap etc",09-May-23,1908101426,C2E849400184C UKVI,"£3,199.00"
Manchester City Council,Adult Social Care,"Consumable items eg Toilet rolls, soap etc",09-May-23,1908102123,C2E850800905I UKVI,"£3,199.00"
Manchester City Council,Manchester Leisure,Compensation Payments,09-May-23,1908101078,Cheshire Estate and Legal Solicitor,£700.00
Manchester City Council,Manchester Leisure,Legal Fees,09-May-23,1908101078,Cheshire Estate and Legal Solicitor,"£1,015.48"
Manchester City Council,Chief Executives,Stationery,09-May-23,1908101391,CLOUD 6RZX5N,£631.84
Manchester City Council,Chief Executives,Publications,09-May-23,1908102766,CLOUD KBKZ4N,£596.30
Manchester City Council,Childrens & Education Services,Furniture,09-May-23,1908101452,CONCEPT CARPETS,£540.00
Manchester City Council,Childrens & Education Services,"Consumable items eg Toilet rolls, soap etc",09-May-23,1908101300,DAVE CARPET WAREHOUSE,£620.00
Manchester City Council,Adult Social Care,Bed & Breakfast Acc,09-May-23,1908101533,EASYHOTEL MANCHESTER LIMI,"£1,167.86"
Manchester City Council,Adult Social Care,Bed & Breakfast Acc,09-May-23,1908102103,EASYHOTEL MANCHESTER LIMI,"£1,034.66"
Manchester City Council,Regeneration Finance,"Consumable items eg Toilet rolls, soap etc",09-May-23,1908101103,EB *SAFEGUARDING CHILD,£507.65
Manchester City Council,Chief Executives,Advertising,09-May-23,1908102520,FACEBK 2FCH6MFW92,£700.00
Manchester City Council,Chief Executives,Advertising,09-May-23,1908101985,FACEBK 733SSLXV92,£700.00
Manchester City Council,Chief Executives,Advertising,09-May-23,1908101327,FACEBK 7VR5AL3W92,£700.00
Manchester City Council,Chief Executives,Advertising,09-May-23,1908102359,FACEBK 8L8Q6LTV92,£700.00
Manchester City Council,Chief Executives,Advertising,09-May-23,1908102413,FACEBK D3BYKMBW92,£700.00
Manchester City Council,Chief Executives,Advertising,09-May-23,1908101725,FACEBK G44YYLPV92,£700.00
Manchester City Council,Chief Executives,Advertising,09-May-23,1908102698,FACEBK RVGNTLFV92,£700.00
Manchester City Council,Chief Executives,Advertising,09-May-23,1908102323,FACEBK VEFHHMBW92,£700.00
Manchester City Council,Corporate Services,Equipment,09-May-23,1908098401,Feed My City (Sukhbir Singh),"£7,799.98"
Manchester City Council,Regeneration Finance,Legal Fees,09-May-23,1908084903,FSR SOLICITORS,"£5,670.50"
Manchester City Council,Hospitality + Trading Services,Building Materials for direct delivery,09-May-23,1908102193,GEORGE HILL OLDHAM OLDHAM,"£5,147.14"
Manchester City Council,Adult Social Care,"Consumable items eg Toilet rolls, soap etc",09-May-23,1908101378,HOTEL AT BOOKING.COM,£685.00
Manchester City Council,Adult Social Care,"Consumable items eg Toilet rolls, soap etc",09-May-23,1908102066,HOTEL AT BOOKING.COM,£876.00
Manchester City Council,Childrens & Education Services,Bed & Breakfast Acc,09-May-23,1908101563,HOTEL AT BOOKING.COM,"£1,066.27"
Manchester City Council,Adult Social Care,Bed & Breakfast Acc,09-May-23,1908101587,HOTEL AT BOOKING.COM,"£1,412.00"
Manchester City Council,Adult Social Care,Bed & Breakfast Acc,09-May-23,1908101156,HOTEL MERCURE,"£1,420.00"
Manchester City Council,Adult Social Care,"Consumable items eg Toilet rolls, soap etc",09-May-23,1908101216,HOTELSCOM7252227906109,"£1,757.56"
Manchester City Council,Adult Social Care,"Consumable items eg Toilet rolls, soap etc",09-May-23,1908101641,HOUSING UNITS LTD,"£1,482.00"
Manchester City Council,Adult Social Care,"Consumable items eg Toilet rolls, soap etc",09-May-23,1908101829,I PHONE REPAIR PICCADI,£600.00
Manchester City Council,Adult Social Care,"Consumable items eg Toilet rolls, soap etc",09-May-23,1908101996,JRS LUXURY CARS,£600.00
Manchester City Council,Adult Social Care,Bed & Breakfast Acc,09-May-23,1908102188,KENNEDY WRIGHT ASSETS LTD,"£1,540.00"
Manchester City Council,Adult Social Care,Bed & Breakfast Acc,09-May-23,1908102206,KENNEDY WRIGHT ASSETS LTD,"£1,540.00"
Manchester City Council,Adult Social Care,Bed & Breakfast Acc,09-May-23,1908102208,KENNEDY WRIGHT ASSETS LTD,"£1,540.00"
Manchester City Council,Adult Social Care,Bed & Breakfast Acc,09-May-23,1908102216,KENNEDY WRIGHT ASSETS LTD,"£1,540.00"
Manchester City Council,Adult Social Care,Bed & Breakfast Acc,09-May-23,1908102227,KENNEDY WRIGHT ASSETS LTD,"£1,540.00"
Manchester City Council,Adult Social Care,Bed & Breakfast Acc,09-May-23,1908102232,KENNEDY WRIGHT ASSETS LTD,"£1,540.00"
Manchester City Council,Adult Social Care,Bed & Breakfast Acc,09-May-23,1908102237,KENNEDY WRIGHT ASSETS LTD,"£1,540.00"
Manchester City Council,Adult Social Care,Bed & Breakfast Acc,09-May-23,1908102245,KENNEDY WRIGHT ASSETS LTD,"£1,540.00"
Manchester City Council,Adult Social Care,Bed & Breakfast Acc,09-May-23,1908102247,KENNEDY WRIGHT ASSETS LTD,"£1,540.00"
Manchester City Council,Adult Social Care,Bed & Breakfast Acc,09-May-23,1908102249,KENNEDY WRIGHT ASSETS LTD,"£1,540.00"
Manchester City Council,Adult Social Care,Bed & Breakfast Acc,09-May-23,1908102253,KENNEDY WRIGHT ASSETS LTD,"£1,540.00"
Manchester City Council,Manchester Leisure,Goods purchased for resale in Council outlets,09-May-23,1908085925,Laura Darrington Design Ltd,£546.84
Manchester City Council,Adult Social Care,"Consumable items eg Toilet rolls, soap etc",09-May-23,1908101705,MARBLE HOUSING,"£3,587.58"
Manchester City Council,Manchester Leisure,Stationery,09-May-23,1908101398,MARTINS CRAFT BAKERY,£960.00
Manchester City Council,Corporate Services,Legal Fees,09-May-23,1908085878,McKenny Consult,"£1,153.75"
Manchester City Council,Adult Social Care,Bed & Breakfast Acc,09-May-23,1908101197,MILTON MANCHESTER,"£3,300.00"
Manchester City Council,Adult Social Care,Bed & Breakfast Acc,09-May-23,1908101201,MILTON MANCHESTER,"£1,408.00"
Manchester City Council,Manchester Leisure,Equipment,09-May-23,1908101208,MOSTON JANITORIAL SUPP,"£1,002.65"
Manchester City Council,Adult Social Care,"Consumable items eg Toilet rolls, soap etc",09-May-23,1908102676,MOTEL ONE COM MAN ROYA,"£1,200.00"
Manchester City Council,Adult Social Care,"Consumable items eg Toilet rolls, soap etc",09-May-23,1908102721,MOTEL ONE COM MAN ROYA,£960.00
Manchester City Council,Adult Social Care,"Consumable items eg Toilet rolls, soap etc",09-May-23,1908102747,MOTEL ONE COM MAN ROYA,£960.00
Manchester City Council,Adult Social Care,Bed & Breakfast Acc,09-May-23,1908101161,MOTEL ONE COM MAN ROYA,"£3,348.00"
Manchester City Council,Adult Social Care,Bed & Breakfast Acc,09-May-23,1908101198,MOTEL ONE COM MAN ROYA,"£2,236.00"
Manchester City Council,Adult Social Care,Bed & Breakfast Acc,09-May-23,1908101200,MOTEL ONE COM MAN ROYA,"£1,117.00"
Manchester City Council,Adult Social Care,Bed & Breakfast Acc,09-May-23,1908101302,MOTEL ONE COM MAN ROYA,"£1,106.00"
Manchester City Council,Adult Social Care,Bed & Breakfast Acc,09-May-23,1908101457,MOTEL ONE COM MAN ROYA,"£1,120.00"
Manchester City Council,Adult Social Care,Bed & Breakfast Acc,09-May-23,1908101538,MOTEL ONE COM MAN ROYA,"£1,975.00"
Manchester City Council,Adult Social Care,Bed & Breakfast Acc,09-May-23,1908101758,MOTEL ONE COM MAN ROYA,"£1,106.00"
Manchester City Council,Adult Social Care,Bed & Breakfast Acc,09-May-23,1908101772,MOTEL ONE COM MAN ROYA,"£1,120.00"
Manchester City Council,Adult Social Care,Bed & Breakfast Acc,09-May-23,1908101776,MOTEL ONE COM MAN ROYA,"£1,106.00"
Manchester City Council,Adult Social Care,Bed & Breakfast Acc,09-May-23,1908101786,MOTEL ONE COM MAN ROYA,"£1,106.00"
Manchester City Council,Adult Social Care,Bed & Breakfast Acc,09-May-23,1908101800,MOTEL ONE COM MAN ROYA,"£1,120.00"
Manchester City Council,Adult Social Care,Bed & Breakfast Acc,09-May-23,1908101801,MOTEL ONE COM MAN ROYA,"£1,120.00"
Manchester City Council,Adult Social Care,Bed & Breakfast Acc,09-May-23,1908101932,MOTEL ONE COM MAN ROYA,"£1,120.00"
Manchester City Council,Adult Social Care,Bed & Breakfast Acc,09-May-23,1908102114,MOTEL ONE COM MAN ROYA,"£1,120.00"
Manchester City Council,Adult Social Care,Bed & Breakfast Acc,09-May-23,1908102136,MOTEL ONE COM MAN ROYA,"£1,120.00"
Manchester City Council,Adult Social Care,Bed & Breakfast Acc,09-May-23,1908102150,MOTEL ONE COM MAN ROYA,"-£1,120.00"
Manchester City Council,Adult Social Care,Bed & Breakfast Acc,09-May-23,1908102288,MOTEL ONE COM MAN ROYA,"£1,106.00"
Manchester City Council,Adult Social Care,Bed & Breakfast Acc,09-May-23,1908102295,MOTEL ONE COM MAN ROYA,"£1,120.00"
Manchester City Council,Adult Social Care,Bed & Breakfast Acc,09-May-23,1908102526,MOTEL ONE COM MAN ROYA,"£1,666.00"
Manchester City Council,Adult Social Care,Bed & Breakfast Acc,09-May-23,1908102556,MOTEL ONE COM MAN ROYA,"£1,666.00"
Manchester City Council,Adult Social Care,Bed & Breakfast Acc,09-May-23,1908102625,MOTEL ONE COM MAN ROYA,"£1,120.00"
Manchester City Council,Adult Social Care,Bed & Breakfast Acc,09-May-23,1908101269,MOTEL ONE MANCHESTER ROYA,"£1,119.00"
Manchester City Council,Adult Social Care,Bed & Breakfast Acc,09-May-23,1908101987,MOTEL ONE MANCHESTER ROYA,"£2,240.00"
Manchester City Council,Childrens & Education Services,Counsel Costs,09-May-23,1908098435,Redacted Personal Information,£600.00
Manchester City Council,Adult Social Care,Bed & Breakfast Acc,09-May-23,1908101694,NOVUM MANAGEMENT GMBH,"£1,742.00"
Manchester City Council,Adult Social Care,Bed & Breakfast Acc,09-May-23,1908102226,NOVUM MANAGEMENT GMBH,"£1,614.00"
Manchester City Council,Adult Social Care,Bed & Breakfast Acc,09-May-23,1908101117,PARK CITY SUITES HOTEL,"£1,540.00"
Manchester City Council,Adult Social Care,Bed & Breakfast Acc,09-May-23,1908101283,PARK CITY SUITES HOTEL,"£1,540.00"
Manchester City Council,Adult Social Care,Bed & Breakfast Acc,09-May-23,1908101330,PARK CITY SUITES HOTEL,"£1,540.00"
Manchester City Council,Adult Social Care,Bed & Breakfast Acc,09-May-23,1908101663,PARK CITY SUITES HOTEL,"£1,540.00"
Manchester City Council,Adult Social Care,Bed & Breakfast Acc,09-May-23,1908101687,PARK CITY SUITES HOTEL,"£1,540.00"
Manchester City Council,Adult Social Care,Bed & Breakfast Acc,09-May-23,1908101754,PARK CITY SUITES HOTEL,"£1,540.00"
Manchester City Council,Adult Social Care,Bed & Breakfast Acc,09-May-23,1908101903,PARK CITY SUITES HOTEL,"£1,540.00"
Manchester City Council,Adult Social Care,Bed & Breakfast Acc,09-May-23,1908101957,PARK CITY SUITES HOTEL,"£1,540.00"
Manchester City Council,Adult Social Care,Bed & Breakfast Acc,09-May-23,1908102024,PARK CITY SUITES HOTEL,"£1,540.00"
Manchester City Council,Adult Social Care,Bed & Breakfast Acc,09-May-23,1908102029,PARK CITY SUITES HOTEL,"£1,540.00"
Manchester City Council,Adult Social Care,Bed & Breakfast Acc,09-May-23,1908102138,PARK CITY SUITES HOTEL,"£1,540.00"
Manchester City Council,Adult Social Care,Bed & Breakfast Acc,09-May-23,1908102542,PARK CITY SUITES HOTEL,"£1,540.00"
Manchester City Council,Adult Social Care,Bed & Breakfast Acc,09-May-23,1908102582,PARK CITY SUITES HOTEL,"£1,540.00"
Manchester City Council,Adult Social Care,Bed & Breakfast Acc,09-May-23,1908102499,PARK VIEW RESIDENCE,"£1,540.00"
Manchester City Council,Adult Social Care,Bed & Breakfast Acc,09-May-23,1908102570,PARK VIEW RESIDENCE,"£1,540.00"
Manchester City Council,Adult Social Care,Bed & Breakfast Acc,09-May-23,1908102571,PARK VIEW RESIDENCE,"£1,540.00"
Manchester City Council,Adult Social Care,Bed & Breakfast Acc,09-May-23,1908102595,PARK VIEW RESIDENCE,"£1,540.00"
Manchester City Council,Adult Social Care,Bed & Breakfast Acc,09-May-23,1908102600,PARK VIEW RESIDENCE,"£1,540.00"
Manchester City Council,Childrens & Education Services,"Consumable items eg Toilet rolls, soap etc",09-May-23,1908101699,PASS  PORTABLE APPLIAN,£762.00
Manchester City Council,Adult Social Care,Subsistence and Conference Expenses,09-May-23,1908102085,PINEWOOD HOTEL,"£1,612.00"
Manchester City Council,Adult Social Care,Subsistence and Conference Expenses,09-May-23,1908102120,PINEWOOD HOTEL,"£1,829.00"
Manchester City Council,Childrens & Education Services,Equipment,09-May-23,1908101719,PRIMESTAY.CO.UK,£630.00
Manchester City Council,Adult Social Care,Bed & Breakfast Acc,09-May-23,1908101274,QUICKSPACES,"£1,508.40"
Manchester City Council,Adult Social Care,Bed & Breakfast Acc,09-May-23,1908102347,QUICKSPACES.UK,"£3,234.60"
Manchester City Council,Adult Social Care,Bed & Breakfast Acc,09-May-23,1908102396,QUICKSPACES.UK,"£3,784.00"
Manchester City Council,Corporate Services,Professional fees,09-May-23,1908097002,Rachel Hacking Ecology Limited,£670.00
Manchester City Council,Manchester Leisure,"Consumable items eg Toilet rolls, soap etc",09-May-23,1908102128,ROYAL MAIL ONLINE SHOP,£750.00
Manchester City Council,Chief Executives,Grant Payments,09-May-23,1908101123,SAFARI BOOKS ONLINE,"£2,625.00"
Manchester City Council,Housing General Fund,Surplus property Fees,09-May-23,1908098450,SCANLANS,"£3,688.00"
Manchester City Council,Adult Social Care,Equipment,09-May-23,1908101789,SMARTSURVEY,£864.00
Manchester City Council,Childrens & Education Services,"Consumable items eg Toilet rolls, soap etc",09-May-23,1908101900,SP TOOLS4TRADE.CO.UK,£862.00
Manchester City Council,Adult Social Care,Bed & Breakfast Acc,09-May-23,1908101151,SQ *AM7 GROUP LTD,"£1,470.00"
Manchester City Council,Adult Social Care,Bed & Breakfast Acc,09-May-23,1908102217,SQ *AM7 GROUP LTD,"£2,940.00"
Manchester City Council,Adult Social Care,Bed & Breakfast Acc,09-May-23,1908102229,SQ *AM7 GROUP LTD,"£1,960.00"
Manchester City Council,Adult Social Care,Bed & Breakfast Acc,09-May-23,1908102422,SQ *AM7 GROUP LTD,"£3,920.00"
Manchester City Council,Hospitality + Trading Services,Building Materials for direct delivery,09-May-23,1908101410,SQ *NORTHERNARB TREE SERV,"£1,250.00"
Manchester City Council,Hospitality + Trading Services,Building Materials for direct delivery,09-May-23,1908101421,SQ *NORTHERNARB TREE SERV,"£1,250.00"
Manchester City Council,Hospitality + Trading Services,Building Materials for direct delivery,09-May-23,1908101672,SQ *NORTHERNARB TREE SERV,"£1,250.00"
Manchester City Council,Hospitality + Trading Services,Building Materials for direct delivery,09-May-23,1908101753,SQ *NORTHERNARB TREE SERV,"£1,250.00"
Manchester City Council,Hospitality + Trading Services,Building Materials for direct delivery,09-May-23,1908102365,SQ *NORTHERNARB TREE SERV,"£1,000.00"
Manchester City Council,Hospitality + Trading Services,Building Materials for direct delivery,09-May-23,1908102379,SQ *NORTHERNARB TREE SERV,"£1,000.00"
Manchester City Council,Adult Social Care,Bed & Breakfast Acc,09-May-23,1908102532,SQ *PARKVIEW RESIDENCE,"£1,540.00"
Manchester City Council,Adult Social Care,Bed & Breakfast Acc,09-May-23,1908102566,SQ *PARKVIEW RESIDENCE,"£1,540.00"
Manchester City Council,Hospitality + Trading Services,Building Materials for direct delivery,09-May-23,1908101375,SUMUP  *SIGNALIZE PRINT L,"£1,000.00"
Manchester City Council,Hospitality + Trading Services,Building Materials for direct delivery,09-May-23,1908102252,SUMUP  *SIGNALIZE PRINT L,"£1,000.00"
Manchester City Council,Hospitality + Trading Services,Building Materials for direct delivery,09-May-23,1908101425,THE STRAWBERRY DUCK,"£1,000.00"
Manchester City Council,Adult Social Care,Bed & Breakfast Acc,09-May-23,1908102270,TRIVELLES ECCLES HOTEL,"£1,400.00"
Manchester City Council,Adult Social Care,Bed & Breakfast Acc,09-May-23,1908102278,TRIVELLES ECCLES HOTEL,"£1,680.00"
Manchester City Council,Adult Social Care,Bed & Breakfast Acc,09-May-23,1908102281,TRIVELLES ECCLES HOTEL,"£1,400.00"
Manchester City Council,Adult Social Care,Bed & Breakfast Acc,09-May-23,1908102298,TRIVELLES ECCLES HOTEL,"£1,400.00"
Manchester City Council,Adult Social Care,Bed & Breakfast Acc,09-May-23,1908102303,TRIVELLES ECCLES HOTEL,"£1,540.00"
Manchester City Council,Adult Social Care,Bed & Breakfast Acc,09-May-23,1908102312,TRIVELLES ECCLES HOTEL,"£1,680.00"
Manchester City Council,Adult Social Care,Bed & Breakfast Acc,09-May-23,1908102327,TRIVELLES ECCLES HOTEL,"£1,400.00"
Manchester City Council,Adult Social Care,Bed & Breakfast Acc,09-May-23,1908102331,TRIVELLES ECCLES HOTEL,"£1,400.00"
Manchester City Council,Childrens & Education Services,Equipment,09-May-23,1908101145,UNITAS.UK.NET,£600.00
Manchester City Council,Adult Social Care,"Consumable items eg Toilet rolls, soap etc",09-May-23,1908102651,VICTORIA PARK  RE,"£1,050.00"
Manchester City Council,Adult Social Care,Bed & Breakfast Acc,09-May-23,1908101158,VICTORIA PARK  RE,"£5,880.00"
Manchester City Council,Adult Social Care,Bed & Breakfast Acc,09-May-23,1908101673,VICTORIA PARK  RE,"£3,360.00"
Manchester City Council,Adult Social Care,Bed & Breakfast Acc,09-May-23,1908101757,VICTORIA PARK  RE,"£3,920.00"
Manchester City Council,Adult Social Care,Bed & Breakfast Acc,09-May-23,1908101991,VICTORIA PARK  RE,"£5,390.00"
Manchester City Council,Adult Social Care,Bed & Breakfast Acc,09-May-23,1908102013,VICTORIA PARK  RE,"£6,300.00"
Manchester City Council,Adult Social Care,Bed & Breakfast Acc,09-May-23,1908102028,VICTORIA PARK  RE,"£1,870.00"
Manchester City Council,Adult Social Care,Bed & Breakfast Acc,09-May-23,1908102038,VICTORIA PARK  RE,"£3,360.00"
Manchester City Council,Adult Social Care,Bed & Breakfast Acc,09-May-23,1908102659,VICTORIA PARK  RE,"£3,210.00"
Manchester City Council,Childrens & Education Services,"Consumable items eg Toilet rolls, soap etc",09-May-23,1908102061,VOUCHER EXPRESS,£500.00
Manchester City Council,Adult Social Care,Bed & Breakfast Acc,09-May-23,1908101172,WWW.IDEALLODGINGS.CO.U,"£1,668.60"
Manchester City Council,Adult Social Care,Bed & Breakfast Acc,09-May-23,1908101211,WWW.IDEALLODGINGS.CO.U,"£2,966.39"
Manchester City Council,Adult Social Care,Bed & Breakfast Acc,09-May-23,1908101260,WWW.IDEALLODGINGS.CO.U,"£1,668.60"
Manchester City Council,Adult Social Care,Bed & Breakfast Acc,09-May-23,1908101513,WWW.IDEALLODGINGS.CO.U,"£3,254.80"
Manchester City Council,Adult Social Care,Bed & Breakfast Acc,09-May-23,1908101759,WWW.IDEALLODGINGS.CO.U,"£3,254.80"
Manchester City Council,Adult Social Care,Bed & Breakfast Acc,09-May-23,1908101769,WWW.IDEALLODGINGS.CO.U,"£1,620.00"
Manchester City Council,Adult Social Care,Bed & Breakfast Acc,09-May-23,1908101791,WWW.IDEALLODGINGS.CO.U,"£2,966.39"
Manchester City Council,Adult Social Care,Bed & Breakfast Acc,09-May-23,1908101803,WWW.IDEALLODGINGS.CO.U,"£3,254.80"
Manchester City Council,Adult Social Care,Bed & Breakfast Acc,09-May-23,1908101973,WWW.IDEALLODGINGS.CO.U,"£3,254.80"
Manchester City Council,Adult Social Care,Bed & Breakfast Acc,09-May-23,1908102047,WWW.IDEALLODGINGS.CO.U,"£1,668.60"
Manchester City Council,Adult Social Care,Bed & Breakfast Acc,09-May-23,1908102166,WWW.IDEALLODGINGS.CO.U,"£2,801.60"
Manchester City Council,Adult Social Care,Bed & Breakfast Acc,09-May-23,1908102190,WWW.IDEALLODGINGS.CO.U,"£1,668.60"
Manchester City Council,Adult Social Care,Bed & Breakfast Acc,09-May-23,1908102700,WWW.IDEALLODGINGS.CO.U,"£1,668.60"
Manchester City Council,Chief Executives,"Consumable items eg Toilet rolls, soap etc",09-May-23,1908101844,WWW.LOCAL.GOV.UK,£667.08
Manchester City Council,Adult Social Care,Bed & Breakfast Acc,09-May-23,1908101160,WWW.QUICKSPACES.CO.UK,"£3,307.04"
Manchester City Council,Adult Social Care,Bed & Breakfast Acc,09-May-23,1908101347,WWW.QUICKSPACES.CO.UK,"£1,508.40"
Manchester City Council,Adult Social Care,Bed & Breakfast Acc,09-May-23,1908101428,WWW.QUICKSPACES.CO.UK,"£3,545.00"
Manchester City Council,Hospitality + Trading Services,Building Materials for direct delivery,09-May-23,1908102290,WWW.TARMAC.COM,"£1,339.65"
Manchester City Council,Hospitality + Trading Services,Building Materials for direct delivery,09-May-23,1908102296,WWW.TARMAC.COM,"£1,525.81"
Manchester City Council,Manchester Leisure,Equipment,09-May-23,1908102246,WWW.THOMANN.DE,£739.00
Manchester City Council,Manchester Leisure,"Consumable items eg Toilet rolls, soap etc",09-May-23,1908102041,ZOOM.US 888-799-9666,"£1,239.90"
Manchester City Council,Chief Executives,Equipment,09-May-23,1908101986,ZOOM.US 888-799-9666,£813.78
Manchester City Council,Highways Services,Purchase of stores for re-distribution,10-May-23,5105870757,Instarmac Group Ltd,£616.20
Manchester City Council,Corporate Services,Mobilephone Charges,10-May-23,5105870918,EE/T-Mobile,£808.24
Manchester City Council,Regeneration Finance,Rents,10-May-23,1908098619,Adam Geoffrey Management Ltd,"£559,500.00"
Manchester City Council,Manchester Leisure,Goods purchased for resale in Council outlets,10-May-23,5105870919,Marston Book Services Ltd,"£1,816.50"
Manchester City Council,Manchester Leisure,Works and associated costs for Land and Buildings,10-May-23,5105870445,J Greenwood (Builders) Limited,"£5,043.07"
Manchester City Council,Manchester Leisure,Security,10-May-23,5105870832,JLA Ltd,"£2,872.74"
Manchester City Council,Childrens & Education Services,Hire of Premises,10-May-23,5105870842,Moss Side Millennium Powerhouse Ltd,"£2,413.20"
Manchester City Council,Environment and Operations,Construction Works,10-May-23,5105870236,J.Hopkins (Contractors) Ltd.,"£52,190.54"
Manchester City Council,Manchester Leisure,Legal Fees,10-May-23,1908105075,Peasegoods,"£2,108.58"
Manchester City Council,Adult Social Care,Payments for services,10-May-23,5105870755,Turning Point,"£2,385.00"
Manchester City Council,Adult Social Care,Payments for services,10-May-23,5105870756,Turning Point,"£1,855.00"
Manchester City Council,Adult Social Care,Payments for services,10-May-23,5105870759,Turning Point,"£1,855.00"
Manchester City Council,Adult Social Care,"Consumable items eg Toilet rolls, soap etc",10-May-23,5105870859,All 4 Pets Limited,£992.00
Manchester City Council,Adult Social Care,"Consumable items eg Toilet rolls, soap etc",10-May-23,5105870877,All 4 Pets Limited,£552.00
Manchester City Council,Childrens & Education Services,Payments for services,10-May-23,5105870658,Pure Innovations Ltd,"£36,000.00"
Manchester City Council,Manchester Leisure,Payments to Sub-Contractors,10-May-23,5105870895,Redgate Holdings Ltd,"£2,400.00"
Manchester City Council,Manchester Leisure,Payments to Sub-Contractors,10-May-23,5105870897,Redgate Holdings Ltd,"£1,891.00"
Manchester City Council,Manchester Leisure,Counsel Costs,10-May-23,5105870870,Redacted Personal Information,"£1,250.00"
Manchester City Council,Highways Services,Hire of Machinery,10-May-23,5105870804,Grafton Merchanting GB,£734.20
Manchester City Council,Collection Fund,Ctax Preceptr Pymnts,10-May-23,1908087031,GMCA,"£3,941,760.00"
Manchester City Council,Collection Fund,Bus Rate - Preceptor,10-May-23,1908087031,GMCA,"£299,749.00"
Manchester City Council,Adult Social Care,Bed & Breakfast Acc,10-May-23,5105870451,Redacted Personal Information,"£11,774.00"
Manchester City Council,Adult Social Care,Bed & Breakfast Acc,10-May-23,5105870651,Redacted Personal Information,"-£11,774.00"
Manchester City Council,Adult Social Care,Bed & Breakfast Acc,10-May-23,5105870662,Redacted Personal Information,"£21,624.00"
Manchester City Council,Adult Social Care,Equipment,10-May-23,5105869884,Drive Devilbiss Healthcare Ltd,"£5,590.00"
Manchester City Council,Adult Social Care,Equipment,10-May-23,5105870440,Drive Devilbiss Healthcare Ltd,"£2,704.00"
Manchester City Council,Adult Social Care,Equipment,10-May-23,5105870769,Drive Devilbiss Healthcare Ltd,"£1,560.00"
Manchester City Council,Adult Social Care,Equipment,10-May-23,5105870792,Drive Devilbiss Healthcare Ltd,"£5,463.00"
Manchester City Council,Chief Executives,Postage,10-May-23,5105870754,Whistl North Ltd,"£4,036.43"
Manchester City Council,Chief Executives,Legal Fees,10-May-23,5105870909,Russell & Russell Solicitors LLP,"£1,390.25"
Manchester City Council,Childrens & Education Services,Third party payments relating to Voluntary Organisations,10-May-23,5105870822,Remedi,"-£2,500.00"
Manchester City Council,Childrens & Education Services,Third party payments relating to Voluntary Organisations,10-May-23,5105870823,Remedi,"£5,000.00"
Manchester City Council,Regeneration Finance,Rents,10-May-23,1908098466,Savills Commercial Ltd,"£1,743.38"
Manchester City Council,Adult Social Care,Rents,10-May-23,5105870844,Accommodation Links Ltd,"£88,855.14"
Manchester City Council,Highways Services,Payments to Sub-Contractors,10-May-23,5105870589,Northern Marking Limited,"£1,854.59"
Manchester City Council,Highways Services,Payments to Sub-Contractors,10-May-23,5105870590,Northern Marking Limited,"£8,410.48"
Manchester City Council,Highways Services,Payments to Sub-Contractors,10-May-23,5105870601,Northern Marking Limited,"£3,607.97"
Manchester City Council,Highways Services,Payments to Sub-Contractors,10-May-23,5105870602,Northern Marking Limited,"£9,862.63"
Manchester City Council,Highways Services,Payments to Sub-Contractors,10-May-23,5105870603,Northern Marking Limited,"£1,920.91"
Manchester City Council,Adult Social Care,Counsel Costs,10-May-23,5105870782,Cornerstone Barristers,"£2,098.10"
Manchester City Council,Corporate Services,Works and associated costs for Land and Buildings,10-May-23,5105870845,Rider Levett Bucknall UK Ltd,"£13,860.00"
Manchester City Council,Adult Social Care,Counsel Costs,10-May-23,5105870781,Redacted Personal Information,£600.00
Manchester City Council,Adult Social Care,Rents,10-May-23,5105870753,Cromwood Ltd,"£197,530.31"
Manchester City Council,Corporate Services,Heart of Manc Bid,10-May-23,5105870854,Heart of Manchester BID Co Ltd,"£76,000.00"
Manchester City Council,Corporate Services,Fees,10-May-23,5105870896,Pannone Corporate LLP,"-£6,012.20"
Manchester City Council,Corporate Services,Fees,10-May-23,5105870899,Pannone Corporate LLP,"£6,012.20"
Manchester City Council,Adult Social Care,Rents,10-May-23,5105870853,Mack Residential Letting Ltd,"£188,704.69"
Manchester City Council,Chief Executives,Grant Payments,10-May-23,5105870666,Softcat,"£1,993.32"
Manchester City Council,Manchester Leisure,Refuse Collection,10-May-23,5105869644,Biffa Municipal Limited,"£25,441.84"
Manchester City Council,Highways Services,Counsel Costs,10-May-23,5105870760,Lincoln House Chambers,"£1,300.00"
Manchester City Council,Highways Services,Counsel Costs,10-May-23,5105870784,Lincoln House Chambers,£750.00
Manchester City Council,Chief Executives,Professional fees,10-May-23,5105870866,Foreign and Commonwealth Office,"£3,684.22"
Manchester City Council,Chief Executives,Payments to Sub-Contractors,10-May-23,5105870810,Redacted Personal Information,£654.60
Manchester City Council,Chief Executives,Payments to Sub-Contractors,10-May-23,5105870806,Redacted Personal Information,£539.95
Manchester City Council,Chief Executives,Payments to Sub-Contractors,10-May-23,5105870841,Redacted Personal Information,£588.43
Manchester City Council,Adult Social Care,Rents,10-May-23,5105870737,Housing Social Ltd,"£4,720.00"
Manchester City Council,Manchester Leisure,Special Event,10-May-23,5105870670,Redacted Personal Information,£891.02
Manchester City Council,Regeneration Finance,Removal and Storage of Furniture,10-May-23,5105870846,Restore PLC,£657.34
Manchester City Council,Childrens & Education Services,Professional fees,10-May-23,1908097010,Pickering Psychology Services Ltd,£780.05
Manchester City Council,Adult Social Care,Grant and subscriptions awarded,10-May-23,5105870770,On The Out CIC,"£17,452.48"
Manchester City Council,Adult Social Care,Grant and subscriptions awarded,10-May-23,5105870770,On The Out CIC,"£2,279.72"
Manchester City Council,Adult Social Care,Third party payments relating to Voluntary Organisations,10-May-23,5105870791,On The Out CIC,"£4,390.21"
Manchester City Council,Manchester Leisure,Payments to Sub-Contractors,10-May-23,5105870767,Synectics Security Limited,"£2,857.91"
Manchester City Council,Chief Executives,CRB Fees,10-May-23,5105870912,Complete Background Screening Ltd,£575.00
Manchester City Council,Chief Executives,CRB Fees,10-May-23,5105870914,Complete Background Screening Ltd,-£575.00
Manchester City Council,Regeneration Finance,CRB Fees,10-May-23,5105870915,Complete Background Screening Ltd,£575.00
Manchester City Council,Childrens & Education Services,Professional fees,10-May-23,5105870824,Thorpe Research Ltd,"£28,875.00"
Manchester City Council,Manchester Leisure,Payments to Contractors,10-May-23,5105870869,Everyone Active,-£677.25
Manchester City Council,Hospitality + Trading Services,Vehicle Fuel Costs,10-May-23,5105870801,Standard Fuels Oils,"£21,186.55"
Manchester City Council,Manchester Leisure,Professional fees,10-May-23,5105870931,Manchester Active,"-£25,000.00"
Manchester City Council,Manchester Leisure,Professional fees,10-May-23,5105870933,Manchester Active,"£25,000.00"
Manchester City Council,Chief Executives,Legal Fees,10-May-23,5105870893,Waddington & Son Solicitors,£737.50
Manchester City Council,Chief Executives,Legal Fees,10-May-23,5105870898,Waddington & Son Solicitors,£581.25
Manchester City Council,Chief Executives,Professional fees,10-May-23,5105870903,Waddington & Son Solicitors,£656.25
Manchester City Council,Childrens & Education Services,Payments for services,10-May-23,5105870783,A S K Healthcare Ltd,"£3,800.00"
Manchester City Council,Corporate Services,WPS Awards,10-May-23,5105869905,Furniture Resource Centre Ltd,"£1,110.74"
Manchester City Council,Corporate Services,WPS Awards,10-May-23,5105870259,Furniture Resource Centre Ltd,£707.43
Manchester City Council,Corporate Services,WPS Awards,10-May-23,5105870273,Furniture Resource Centre Ltd,"£1,281.40"
Manchester City Council,Corporate Services,WPS Awards,10-May-23,5105870645,Furniture Resource Centre Ltd,£698.27
Manchester City Council,Corporate Services,WPS Awards,10-May-23,5105870646,Furniture Resource Centre Ltd,£670.52
Manchester City Council,Corporate Services,WPS Awards,10-May-23,5105870741,Furniture Resource Centre Ltd,"£1,177.92"
Manchester City Council,Corporate Services,WPS Awards,10-May-23,5105870780,Furniture Resource Centre Ltd,£720.05
Manchester City Council,Corporate Services,WPS Awards,10-May-23,5105870815,Furniture Resource Centre Ltd,£720.05
Manchester City Council,Manchester Leisure,Equipment,10-May-23,5105870788,Wex Photographic,"£4,395.84"
Manchester City Council,Chief Executives,Printing,10-May-23,5105870790,Wex Photographic,£776.66
Manchester City Council,Adult Social Care,Grant and subscriptions awarded,10-May-23,5105870825,Revolving Doors Housing Trust,"£49,824.77"
Manchester City Council,Adult Social Care,Grant and subscriptions awarded,10-May-23,5105870826,Revolving Doors Housing Trust,"£49,824.77"
Manchester City Council,Chief Executives,Agency staff provision,10-May-23,5105870868,Isherwood Legal Limited,"£1,040.00"
Manchester City Council,Highways Services,Hire of Machinery,10-May-23,5105870668,MTK Breaker Hire and Sales Ltd,£575.00
Manchester City Council,Highways Services,Hire of Equipment,10-May-23,5105870668,MTK Breaker Hire and Sales Ltd,£805.00
Manchester City Council,Regeneration Finance,Training and Development,10-May-23,5105870657,GATEWAY QUALIFICATIONS,"£6,832.00"
Manchester City Council,Chief Executives,Training and Development,10-May-23,5105870867,The Accessible Digital Documents,"£1,510.00"
Manchester City Council,Adult Social Care,Grant and subscriptions awarded,10-May-23,5105870827,Divrse Ltd,"£58,590.00"
Manchester City Council,Housing Revenue Account,Council Dwelling Adaptations,10-May-23,5105870766,Mantis Energy LTD,"£2,402.15"
Manchester City Council,Housing Revenue Account,Council Dwelling Adaptations,10-May-23,5105870766,Mantis Energy LTD,"£6,850.00"
Manchester City Council,Adult Social Care,Bed & Breakfast Acc,10-May-23,5105870802,VSP BEAUCLIFFE LTD,"£108,660.00"
Manchester City Council,Childrens & Education Services,Grant Payments,10-May-23,1908102946,Paypoint,"£8,187.20"
Manchester City Council,Manchester Leisure,Special Event,10-May-23,5105870908,Blossom,"£1,485.00"
Manchester City Council,Manchester Leisure,Compensation Payments,10-May-23,1908105080,Baker Reign,"£2,683.34"
Manchester City Council,Manchester Leisure,Legal Fees,10-May-23,1908105077,Driscoll Kingston Solicitors,"£1,500.00"
Manchester City Council,Chief Executives,Works and associated costs for Land and Buildings,10-May-23,1908105074,ISIS CONVEYANCING INSURANCE SPECIAL,"£9,950.00"
Manchester City Council,Manchester Leisure,Compensation Payments,10-May-23,1908105078,Mcdermott Smith Law,"£1,200.00"
Manchester City Council,Childrens & Education Services,Legal Fees,10-May-23,1908091283,NW Sexual Abuse Consultancy,"£3,200.00"
Manchester City Council,Adult Social Care,Professional fees,10-May-23,1908091384,Oskar With A K,"£1,550.00"
Manchester City Council,Corporate Services,Postage,11-May-23,5105870794,Royal Mail Group Plc,"£12,746.21"
Manchester City Council,Adult Social Care,Personal needs of client,11-May-23,5105869619,Tunstall Healthcare (UK) Ltd,"£2,950.74"
Manchester City Council,Libraries and Theatres,Works and associated costs for Land and Buildings,11-May-23,5105870980,Eversheds Llp,"£1,176.00"
Manchester City Council,Childrens & Education Services,Hire of Premises,11-May-23,5105871201,Willow Park Housing Trust,-£826.00
Manchester City Council,Childrens & Education Services,Hire of Premises,11-May-23,5105871202,Willow Park Housing Trust,£746.00
Manchester City Council,Regeneration Finance,Sanitary/Medcal Wast,11-May-23,5105871162,Initial Medical Services,"-£1,037.66"
Manchester City Council,Regeneration Finance,Sanitary/Medcal Wast,11-May-23,5105871163,Initial Medical Services,"£1,037.66"
Manchester City Council,Manchester Leisure,Gas,11-May-23,1908104980,Total Gas & Power,"£8,118.35"
Manchester City Council,Housing General Fund,Works and associated costs for Land and Buildings,11-May-23,5105871304,Wates Construction Ltd,"£154,407.60"
Manchester City Council,Chief Executives,Landline Telephone,11-May-23,1908105092,BT PLC,"£41,415.13"
Manchester City Council,Manchester Leisure,Contract Cleaning External,11-May-23,5105870101,Clearview Event Services Limited,"£15,339.68"
Manchester City Council,Manchester Leisure,Refuse Collection,11-May-23,5105871005,GTS Steam Cleaners,"£2,170.68"
Manchester City Council,Environment and Operations,Construction Works,11-May-23,5105871329,Bethell Construction Ltd,"£163,418.98"
Manchester City Council,Environment and Operations,Construction Works,11-May-23,5105871330,Bethell Construction Ltd,"£121,763.81"
Manchester City Council,Environment and Operations,Construction Works,11-May-23,5105871332,Bethell Construction Ltd,"£4,921.32"
Manchester City Council,Environment and Operations,Construction Works,11-May-23,5105871385,Bethell Construction Ltd,"£37,044.12"
Manchester City Council,Adult Social Care,Day Care Payments,11-May-23,5105871196,Age Concern Manchester,"£10,520.49"
Manchester City Council,Adult Social Care,Day Care Payments,11-May-23,5105871198,Age Concern Manchester,"£14,165.43"
Manchester City Council,Adult Social Care,Day Care Payments,11-May-23,5105871200,Age Concern Manchester,"£10,000.00"
Manchester City Council,Environment and Operations,Works and associated costs for Land and Buildings,11-May-23,5105871207,Egbert Taylor Group,"£10,997.70"
Manchester City Council,Childrens & Education Services,Third party payments to other Local Authorities,11-May-23,5105871121,Altrincham College Of Arts,"£5,163.75"
Manchester City Council,Highways Services,Grounds Maintenance,11-May-23,5105871275,The Fountain Company Ltd,"£2,860.00"
Manchester City Council,Hospitality + Trading Services,Hire of Machinery,11-May-23,5105871125,R & M Developments Ltd,£858.80
Manchester City Council,Hospitality + Trading Services,Hire of Machinery,11-May-23,5105871127,R & M Developments Ltd,£858.80
Manchester City Council,Housing Revenue Account,Council Dwelling Adaptations,11-May-23,5105871339,Quartzelec Ltd,"£27,277.91"
Manchester City Council,Housing Revenue Account,Council Dwelling Adaptations,11-May-23,5105871351,Quartzelec Ltd,"£3,724.00"
Manchester City Council,Housing Revenue Account,Council Dwelling Adaptations,11-May-23,5105871351,Quartzelec Ltd,"£2,268.00"
Manchester City Council,Housing Revenue Account,Council Dwelling Adaptations,11-May-23,5105871351,Quartzelec Ltd,"£1,154.82"
Manchester City Council,Housing Revenue Account,Council Dwelling Adaptations,11-May-23,5105871351,Quartzelec Ltd,"£9,553.18"
Manchester City Council,Housing Revenue Account,Council Dwelling Adaptations,11-May-23,5105870929,Moores Furniture Group Limited,"£3,611.14"
Manchester City Council,Manchester Leisure,Grant and subscriptions awarded,11-May-23,5105871141,St John Ambulance Supplies,"£2,600.00"
Manchester City Council,Chief Executives,Professional fees,11-May-23,5105871281,Shelter,"£66,044.00"
Manchester City Council,Adult Social Care,Third party payments relating to Voluntary Organisations,11-May-23,5105871158,Fishers Cleaning Services Ltd,-£573.75
Manchester City Council,Adult Social Care,Third party payments relating to Voluntary Organisations,11-May-23,5105871161,Fishers Cleaning Services Ltd,£573.75
Manchester City Council,Manchester Leisure,Library Materials Acquisition,11-May-23,1908105384,Askews and Holts,£610.28
Manchester City Council,Chief Executives,Legal Fees,11-May-23,5105871386,Redacted Personal Information,"£1,379.00"
Manchester City Council,Manchester Leisure,Payments to Sub-Contractors,11-May-23,5105870965,Rigby Taylor Ltd,"£6,840.00"
Manchester City Council,Adult Social Care,Home Care ,11-May-23,5105871355,Standwalk Ltd,£578.68
Manchester City Council,Adult Social Care,Home Care ,11-May-23,5105871358,Standwalk Ltd,"£2,876.96"
Manchester City Council,Regeneration Finance,Professional fees,11-May-23,5105871168,Savills (UK) Ltd,"£7,000.00"
Manchester City Council,Highways Services,Building Materials for direct delivery,11-May-23,5105871084,TARMAC,"£1,811.14"
Manchester City Council,Highways Services,Building Materials for direct delivery,11-May-23,5105871085,TARMAC,£502.80
Manchester City Council,Highways Services,Building Materials for direct delivery,11-May-23,5105871086,TARMAC,"£1,218.80"
Manchester City Council,Highways Services,Building Materials for direct delivery,11-May-23,5105871363,TARMAC,"£1,204.17"
Manchester City Council,Highways Services,Building Materials for direct delivery,11-May-23,5105871384,TARMAC,"£1,170.05"
Manchester City Council,Childrens & Education Services,Legal Fees,11-May-23,5105870986,Redacted Personal Information,"£3,050.00"
Manchester City Council,Regeneration Finance,Third party payments relating to Voluntary Organisations,11-May-23,5105871221,Manchester Young Lives,"£26,764.00"
Manchester City Council,Regeneration Finance,Grounds Maintenance,11-May-23,5105871079,Arboricultural Services Treework,£900.00
Manchester City Council,Childrens & Education Services,Expenditure re Internal Trading Ordered Externally,11-May-23,5105871349,Language Line Ltd,-£507.20
Manchester City Council,Corporate Services,Signers/Interpreters,11-May-23,5105871144,Language Line Ltd,£954.55
Manchester City Council,Housing Revenue Account,Council Dwelling Adaptations,11-May-23,5105870962,Stannah Lift Services Ltd,£730.30
Manchester City Council,Childrens & Education Services,Payments for services,11-May-23,5105871237,Irwell Valley Housing Association,"£5,057.26"
Manchester City Council,Manchester Leisure,Water - Metered,11-May-23,5105870947,Wythenshawe Forum Trust Ltd,£848.36
Manchester City Council,Childrens & Education Services,Hire of Premises,11-May-23,5105871235,Quaker Trading Ltd,"£1,265.00"
Manchester City Council,Adult Social Care,Third party payments relating to Voluntary Organisations,11-May-23,5105871147,Citizens Advice Manchester,"£160,000.00"
Manchester City Council,Adult Social Care,Payments for services,11-May-23,5105870225,Brook,"£44,851.65"
Manchester City Council,Manchester Leisure,Equipment,11-May-23,5105871169,Massey & Harris (Engrg) Ltd,"-£4,225.00"
Manchester City Council,Manchester Leisure,Equipment,11-May-23,5105871170,Massey & Harris (Engrg) Ltd,"£4,225.00"
Manchester City Council,Manchester Leisure,Equipment,11-May-23,5105871173,Massey & Harris (Engrg) Ltd,"-£4,225.00"
Manchester City Council,Manchester Leisure,Equipment,11-May-23,5105871175,Massey & Harris (Engrg) Ltd,"£4,225.00"
Manchester City Council,Manchester Leisure,Works and associated costs for Land and Buildings,11-May-23,5105871178,Massey & Harris (Engrg) Ltd,"-£5,435.00"
Manchester City Council,Manchester Leisure,Works and associated costs for Land and Buildings,11-May-23,5105871180,Massey & Harris (Engrg) Ltd,"£5,435.00"
Manchester City Council,Regeneration Finance,Subsistence and Conference Expenses,11-May-23,5105871352,Marketing Manchester,"£2,000.00"
Manchester City Council,Adult Social Care,"Consumable items eg Toilet rolls, soap etc",11-May-23,5105871120,Camilla Carpets Ltd,"£1,040.00"
Manchester City Council,Childrens & Education Services,Hire of Premises,11-May-23,5105871334,Greater Manchester Police Sports &,£528.50
Manchester City Council,Adult Social Care,Rents,11-May-23,5105871041,Amco Management,"£39,220.65"
Manchester City Council,Highways Services,Payments to Sub-Contractors,11-May-23,5105871231,Rosgal Ltd,"£8,580.00"
Manchester City Council,Highways Services,Payments to Sub-Contractors,11-May-23,5105871232,Rosgal Ltd,"£10,920.00"
Manchester City Council,Highways Services,Payments to Sub-Contractors,11-May-23,5105871233,Rosgal Ltd,"£11,990.00"
Manchester City Council,Highways Services,Payments to Sub-Contractors,11-May-23,5105871234,Rosgal Ltd,"£11,700.00"
Manchester City Council,Highways Services,Payments to Sub-Contractors,11-May-23,5105871236,Rosgal Ltd,"£6,240.00"
Manchester City Council,Highways Services,Payments to Sub-Contractors,11-May-23,5105871239,Rosgal Ltd,"£6,240.00"
Manchester City Council,Highways Services,Payments to Sub-Contractors,11-May-23,5105871251,Rosgal Ltd,"£7,800.00"
Manchester City Council,Highways Services,Payments to Sub-Contractors,11-May-23,5105871253,Rosgal Ltd,"£7,800.00"
Manchester City Council,Highways Services,Payments to Sub-Contractors,11-May-23,5105871254,Rosgal Ltd,£765.00
Manchester City Council,Childrens & Education Services,Third party payments relating to Voluntary Organisations,11-May-23,5105870958,The Big Life Company,"£99,110.00"
Manchester City Council,Childrens & Education Services,Third party payments relating to Voluntary Organisations,11-May-23,5105870991,The Big Life Company,"£34,286.50"
Manchester City Council,Housing Revenue Account,Works and associated costs for Land and Buildings,11-May-23,5105870952,Rowlinson Constructions Ltd,"£500,965.73"
Manchester City Council,Manchester Leisure,Goods purchased for resale in Council outlets,11-May-23,5105871002,Grantham Book Services Ltd,£982.17
Manchester City Council,Chief Executives,Advertising,11-May-23,5105870990,Ocean Media Group Ltd,£995.00
Manchester City Council,General Fund,Levies,11-May-23,1908106480,GMCA,"£3,905,500.00"
Manchester City Council,Adult Social Care,Extra Care Sheltd HP,11-May-23,5105871104,Sevacare (U K ) lTD,"£27,254.10"
Manchester City Council,Adult Social Care,Extra Care Sheltd HP,11-May-23,5105871105,Sevacare (U K ) lTD,"£44,843.01"
Manchester City Council,Housing Revenue Account,Council Dwelling Adaptations,11-May-23,5105871228,Manchester Working Ltd,"£189,730.64"
Manchester City Council,Childrens & Education Services,Third party payments to other Local Authorities,11-May-23,5105871224,St. Anne's CE Primary School,"£2,414.00"
Manchester City Council,Hospitality + Trading Services,Subsistence and Conference Expenses,11-May-23,5105871215,Clear Skies Software Ltd,"£4,469.00"
Manchester City Council,Childrens & Education Services,Electricity,11-May-23,5105871328,Brighter Beginnings (Newton Heath),"£1,430.11"
Manchester City Council,Manchester Leisure,Goods purchased for resale in Council outlets,11-May-23,5105870989,Redacted Personal Information,£959.52
Manchester City Council,Childrens & Education Services,Gas,11-May-23,5105871324,Brighter Beginnings Day Nursery,£652.38
Manchester City Council,Adult Social Care,Rents,11-May-23,5105871182,Accommodation Links Ltd,"£76,706.86"
Manchester City Council,Childrens & Education Services,Public Transport,11-May-23,5105871019,Wrixon Care,"£1,725.60"
Manchester City Council,Chief Executives,Legal Fees,11-May-23,1908104993,Weightmans LLP Solicitors,£506.25
Manchester City Council,Chief Executives,Legal Fees,11-May-23,5105871258,Weightmans LLP Solicitors,£688.80
Manchester City Council,Chief Executives,Legal Fees,11-May-23,5105871260,Weightmans LLP Solicitors,£727.25
Manchester City Council,Chief Executives,Legal Fees,11-May-23,5105871262,Weightmans LLP Solicitors,"£1,185.50"
Manchester City Council,Chief Executives,Legal Fees,11-May-23,5105871263,Weightmans LLP Solicitors,"£1,481.22"
Manchester City Council,Chief Executives,Legal Fees,11-May-23,5105871265,Weightmans LLP Solicitors,"£1,961.00"
Manchester City Council,Chief Executives,Legal Fees,11-May-23,5105871267,Weightmans LLP Solicitors,"£1,963.25"
Manchester City Council,Chief Executives,Legal Fees,11-May-23,5105871269,Weightmans LLP Solicitors,"£2,245.75"
Manchester City Council,Chief Executives,Legal Fees,11-May-23,5105871270,Weightmans LLP Solicitors,"£2,893.75"
Manchester City Council,Chief Executives,Legal Fees,11-May-23,5105871271,Weightmans LLP Solicitors,"£3,272.55"
Manchester City Council,Chief Executives,Legal Fees,11-May-23,5105871272,Weightmans LLP Solicitors,"£3,295.00"
Manchester City Council,Chief Executives,Legal Fees,11-May-23,5105871273,Weightmans LLP Solicitors,"£3,647.00"
Manchester City Council,Chief Executives,Legal Fees,11-May-23,5105871274,Weightmans LLP Solicitors,"£4,178.20"
Manchester City Council,Chief Executives,Legal Fees,11-May-23,5105871276,Weightmans LLP Solicitors,"£4,934.10"
Manchester City Council,Chief Executives,Legal Fees,11-May-23,5105871277,Weightmans LLP Solicitors,"£7,507.25"
Manchester City Council,Chief Executives,Legal Fees,11-May-23,5105871279,Weightmans LLP Solicitors,"-£2,893.75"
Manchester City Council,Chief Executives,Legal Fees,11-May-23,5105871280,Weightmans LLP Solicitors,"£2,893.75"
Manchester City Council,Chief Executives,Professional fees,11-May-23,5105871381,Weightmans LLP Solicitors,£501.25
Manchester City Council,Adult Social Care,Equipment,11-May-23,5105871323,Aidapt Bathrooms Ltd,"£1,050.00"
Manchester City Council,Regeneration Finance,Professional fees,11-May-23,5105871096,AA Projects Ltd,£620.03
Manchester City Council,Manchester Leisure,Equipment,11-May-23,5105871189,MGB Plastics Limited,"£15,948.00"
Manchester City Council,Manchester Leisure,Equipment,11-May-23,5105871190,MGB Plastics Limited,"£15,948.00"
Manchester City Council,Manchester Leisure,Equipment,11-May-23,5105871191,MGB Plastics Limited,"£16,200.00"
Manchester City Council,Manchester Leisure,Equipment,11-May-23,5105871194,MGB Plastics Limited,"£15,948.00"
Manchester City Council,Childrens & Education Services,Payments for services,11-May-23,5105871153,Redacted Personal Information,"£6,358.68"
Manchester City Council,Childrens & Education Services,Payments for services,11-May-23,5105871154,Redacted Personal Information,"£5,715.60"
Manchester City Council,Childrens & Education Services,Payments for services,11-May-23,5105871338,Time Specialist Support Ltd,"£4,059.50"
Manchester City Council,Adult Social Care,Rents,11-May-23,5105871345,United Property Management Ltd,"£14,574.00"
Manchester City Council,Adult Social Care,Third party payments relating to Voluntary Organisations,11-May-23,5105871320,Locata (Housing Services) Ltd,£850.00
Manchester City Council,Chief Executives,Postage,11-May-23,5105871306,Quadient Ltd (Credifon),"£29,877.88"
Manchester City Council,Corporate Services,Works and associated costs for Land and Buildings,11-May-23,5105871286,ISG Construction Limited,"£2,624.46"
Manchester City Council,Manchester Leisure,Works and associated costs for Land and Buildings,11-May-23,5105871288,ISG Construction Limited,"£672,548.38"
Manchester City Council,Adult Social Care,Rents,11-May-23,5105870851,MJ Rental Ltd,"£95,717.91"
Manchester City Council,Housing General Fund,Building Works,11-May-23,5105871100,Wythenshawe Community Housing Group,"£93,753.58"
Manchester City Council,Housing General Fund,Building Works,11-May-23,5105871100,Wythenshawe Community Housing Group,"£49,489.40"
Manchester City Council,Adult Social Care,Third party payments relating to Voluntary Organisations,11-May-23,5105871341,Wythenshawe Community Housing Group,"£5,044.38"
Manchester City Council,Adult Social Care,Third party payments relating to Voluntary Organisations,11-May-23,5105871342,Wythenshawe Community Housing Group,"£5,044.38"
Manchester City Council,Adult Social Care,Third party payments relating to Voluntary Organisations,11-May-23,5105871343,Wythenshawe Community Housing Group,"£5,044.38"
Manchester City Council,Adult Social Care,Third party payments relating to Voluntary Organisations,11-May-23,5105871344,Wythenshawe Community Housing Group,"£5,044.38"
Manchester City Council,Manchester Leisure,Responsive Repairs Work,11-May-23,5105871132,EQUANS Regeneration Limited,"£12,537.37"
Manchester City Council,Manchester Leisure,Equipment,11-May-23,5105871353,One Green World,£600.00
Manchester City Council,Childrens & Education Services,Transport Coach Hire,11-May-23,5105871292,Liddle Hackney Carriage,"-£1,560.00"
Manchester City Council,Childrens & Education Services,Transport Coach Hire,11-May-23,5105871293,Liddle Hackney Carriage,"-£1,200.00"
Manchester City Council,Childrens Services,Building Works,11-May-23,5105871179,Bright Futures Educational Trust,"£255,493.46"
Manchester City Council,Childrens & Education Services,Payments for services,11-May-23,5105871148,High Peak School Limited,"£18,835.33"
Manchester City Council,Childrens & Education Services,Payments for services,11-May-23,5105871149,High Peak School Limited,"£18,835.33"
Manchester City Council,Manchester Leisure,Goods purchased for resale in Council outlets,11-May-23,5105871001,The School of Life,"£1,328.83"
Manchester City Council,Adult Social Care,Rents,11-May-23,5105871238,K L Properties,"£15,969.77"
Manchester City Council,Adult Social Care,Rents,11-May-23,5105871252,K L Properties,"£16,265.65"
Manchester City Council,Adult Social Care,Rents,11-May-23,5105870223,Housing Social Ltd,"£36,241.94"
Manchester City Council,Adult Social Care,Funeral and coroner related services,11-May-23,5105870926,Greater Manchester Funeral Service,£825.00
Manchester City Council,Hospitality + Trading Services,Contract Cleaning External,11-May-23,5105871382,Pest Bird Control Ltd,£784.00
Manchester City Council,Chief Executives,Printing,11-May-23,5105871245,Ricoh UK Ltd.,"£60,242.95"
Manchester City Council,Chief Executives,Printing,11-May-23,5105871246,Ricoh UK Ltd.,"-£60,242.95"
Manchester City Council,Chief Executives,Printing,11-May-23,5105871247,Ricoh UK Ltd.,"£60,242.95"
Manchester City Council,Chief Executives,Printing,11-May-23,5105871248,Ricoh UK Ltd.,"£23,843.00"
Manchester City Council,Childrens & Education Services,Foster Payments,11-May-23,5105870977,Space Station Day Nursery,£990.00
Manchester City Council,Chief Executives,ICT Sup & Maintnance,11-May-23,1908105067,Spacecraft Creative Limited,"£94,300.00"
Manchester City Council,Chief Executives,ICT Sup & Maintnance,11-May-23,5105871097,Spacecraft Creative Limited,"£15,300.00"
Manchester City Council,Chief Executives,ICT Sup & Maintnance,11-May-23,5105871106,Spacecraft Creative Limited,"-£15,300.00"
Manchester City Council,Chief Executives,ICT Sup & Maintnance,11-May-23,5105871107,Spacecraft Creative Limited,"£15,300.00"
Manchester City Council,Corporate Services,Professional fees,11-May-23,5105871010,Meridian Recovery Audit,"£6,485.62"
Manchester City Council,Corporate Services,Professional fees,11-May-23,5105870944,Sandra Edwards,"£1,201.75"
Manchester City Council,Manchester Leisure,Goods purchased for resale in Council outlets,11-May-23,5105871013,The Runaway Brewery Ltd,£878.16
Manchester City Council,Manchester Leisure,Goods purchased for resale in Council outlets,11-May-23,5105871136,The Runaway Brewery Ltd,-£878.16
Manchester City Council,Manchester Leisure,Vehicle Fuel Costs,11-May-23,5105871290,Standard Fuels Oils,"£2,327.00"
Manchester City Council,Chief Executives,Legal Fees,11-May-23,5105871020,Waddington & Son Solicitors,£687.50
Manchester City Council,Chief Executives,Legal Fees,11-May-23,5105871022,Waddington & Son Solicitors,"£1,329.50"
Manchester City Council,Chief Executives,Legal Fees,11-May-23,5105871028,Waddington & Son Solicitors,"£2,105.60"
Manchester City Council,Chief Executives,Legal Fees,11-May-23,5105871088,Waddington & Son Solicitors,"£1,385.42"
Manchester City Council,Chief Executives,Legal Fees,11-May-23,5105871089,Waddington & Son Solicitors,"£2,042.75"
Manchester City Council,Chief Executives,Legal Fees,11-May-23,5105871093,Waddington & Son Solicitors,"£2,215.07"
Manchester City Council,Chief Executives,Legal Fees,11-May-23,5105871098,Waddington & Son Solicitors,£875.00
Manchester City Council,Chief Executives,Legal Fees,11-May-23,5105871099,Waddington & Son Solicitors,"£2,876.25"
Manchester City Council,Chief Executives,Legal Fees,11-May-23,5105871111,Waddington & Son Solicitors,"£2,118.39"
Manchester City Council,Chief Executives,Legal Fees,11-May-23,5105871113,Waddington & Son Solicitors,"£1,202.75"
Manchester City Council,Chief Executives,Legal Fees,11-May-23,5105871115,Waddington & Son Solicitors,"£1,389.84"
Manchester City Council,Chief Executives,Legal Fees,11-May-23,5105871117,Waddington & Son Solicitors,"£3,903.39"
Manchester City Council,Chief Executives,Legal Fees,11-May-23,5105871118,Waddington & Son Solicitors,"£1,716.20"
Manchester City Council,Chief Executives,Legal Fees,11-May-23,5105871119,Waddington & Son Solicitors,"£1,362.50"
Manchester City Council,Chief Executives,Legal Fees,11-May-23,5105871122,Waddington & Son Solicitors,"£2,948.25"
Manchester City Council,Chief Executives,Legal Fees,11-May-23,5105871123,Waddington & Son Solicitors,"£3,308.00"
Manchester City Council,Chief Executives,Legal Fees,11-May-23,5105871126,Waddington & Son Solicitors,"£1,931.25"
Manchester City Council,Chief Executives,Legal Fees,11-May-23,5105871128,Waddington & Son Solicitors,£800.75
Manchester City Council,Chief Executives,Legal Fees,11-May-23,5105871129,Waddington & Son Solicitors,"£4,167.50"
Manchester City Council,Chief Executives,Legal Fees,11-May-23,5105871134,Waddington & Son Solicitors,"£3,148.66"
Manchester City Council,Chief Executives,Legal Fees,11-May-23,5105871135,Waddington & Son Solicitors,"£1,887.00"
Manchester City Council,Chief Executives,Legal Fees,11-May-23,5105871138,Waddington & Son Solicitors,"£2,162.50"
Manchester City Council,Chief Executives,Legal Fees,11-May-23,5105871139,Waddington & Son Solicitors,£569.50
Manchester City Council,Chief Executives,Legal Fees,11-May-23,5105871140,Waddington & Son Solicitors,"£3,116.20"
Manchester City Council,Chief Executives,Legal Fees,11-May-23,5105871226,Waddington & Son Solicitors,"£2,100.00"
Manchester City Council,Chief Executives,Legal Fees,11-May-23,5105871227,Waddington & Son Solicitors,£712.50
Manchester City Council,Chief Executives,Legal Fees,11-May-23,5105871310,Waddington & Son Solicitors,£850.00
Manchester City Council,Chief Executives,Professional fees,11-May-23,5105871012,Waddington & Son Solicitors,"£5,900.75"
Manchester City Council,Chief Executives,Professional fees,11-May-23,5105871309,Waddington & Son Solicitors,"£8,650.00"
Manchester City Council,Manchester Leisure,Goods purchased for resale in Council outlets,11-May-23,5105871137,U Studio Design Ltd,£878.16
Manchester City Council,Childrens & Education Services,Rents,11-May-23,5105871335,WMB Born2reign Day Nursery,"£1,087.80"
Manchester City Council,Childrens & Education Services,Rents,11-May-23,5105871337,WMB Born2reign Day Nursery,"£1,450.50"
Manchester City Council,Adult Social Care,Bed & Breakfast Acc,11-May-23,5105871369,Hala Guest House,"£6,170.00"
Manchester City Council,Corporate Services,WPS Awards,11-May-23,5105870890,Furniture Resource Centre Ltd,£721.05
Manchester City Council,Corporate Services,WPS Awards,11-May-23,5105870939,Furniture Resource Centre Ltd,"£1,345.47"
Manchester City Council,Corporate Services,WPS Awards,11-May-23,5105870953,Furniture Resource Centre Ltd,£613.31
Manchester City Council,Corporate Services,WPS Awards,11-May-23,5105870955,Furniture Resource Centre Ltd,£904.35
Manchester City Council,Corporate Services,WPS Awards,11-May-23,5105870960,Furniture Resource Centre Ltd,£925.44
Manchester City Council,Corporate Services,WPS Awards,11-May-23,5105870992,Furniture Resource Centre Ltd,£868.09
Manchester City Council,Corporate Services,WPS Awards,11-May-23,5105871032,Furniture Resource Centre Ltd,£573.01
Manchester City Council,Corporate Services,WPS Awards,11-May-23,5105871051,Furniture Resource Centre Ltd,"£1,111.64"
Manchester City Council,Corporate Services,WPS Awards,11-May-23,5105871053,Furniture Resource Centre Ltd,£661.63
Manchester City Council,Corporate Services,WPS Awards,11-May-23,5105871056,Furniture Resource Centre Ltd,"£1,123.36"
Manchester City Council,Corporate Services,WPS Awards,11-May-23,5105871058,Furniture Resource Centre Ltd,£542.06
Manchester City Council,Corporate Services,WPS Awards,11-May-23,5105871062,Furniture Resource Centre Ltd,£868.09
Manchester City Council,Corporate Services,WPS Awards,11-May-23,5105871211,Furniture Resource Centre Ltd,"£1,104.01"
Manchester City Council,Childrens & Education Services,Professional fees,11-May-23,5105871108,eSafe Global Limited,"£1,462.50"
Manchester City Council,Childrens & Education Services,Professional fees,11-May-23,5105871242,Julie Stirpe Associates Ltd,£575.00
Manchester City Council,Hospitality + Trading Services,Goods purchased for resale in Council outlets,11-May-23,5105871212,C.J. Imports Ltd,"£2,120.00"
Manchester City Council,Hospitality + Trading Services,Goods purchased for resale in Council outlets,11-May-23,5105871213,C.J. Imports Ltd,"£3,500.00"
Manchester City Council,Hospitality + Trading Services,Goods purchased for resale in Council outlets,11-May-23,5105871214,C.J. Imports Ltd,"£4,500.00"
Manchester City Council,Hospitality + Trading Services,Goods purchased for resale in Council outlets,11-May-23,5105871216,C.J. Imports Ltd,"£1,950.00"
Manchester City Council,Childrens & Education Services,Transport Coach Hire,11-May-23,5105871069,MCR Elite Taxis Ltd,"£11,252.00"
Manchester City Council,Childrens & Education Services,Transport Taxis,11-May-23,5105871301,MCR Elite Taxis Ltd,"£17,068.00"
Manchester City Council,Childrens & Education Services,Transport Coach Hire,11-May-23,5105871250,Transportation Direct Ltd,"-£4,004.00"
Manchester City Council,Childrens & Education Services,Transport Coach Hire,11-May-23,5105871291,Transportation Direct Ltd,"-£2,730.00"
Manchester City Council,Corporate Services,Works and associated costs for Land and Buildings,11-May-23,5105871360,Kaberry Construction Ltd,"£182,329.75"
Manchester City Council,Regeneration Finance,External repairs and maintenance for buildings,11-May-23,5105871193,Access UK Ltd,£721.33
Manchester City Council,Adult Social Care,Rents,11-May-23,5105871095,Houses4Homes 4U Ltd,"£8,352.00"
Manchester City Council,Regeneration Finance,External repairs and maintenance for buildings,11-May-23,5105870941,Anglian Water Business (National),"£1,000.00"
Manchester City Council,Manchester Leisure,Water - Unmetered,11-May-23,1908105417,Anglian Water Business (National),"£1,755.32"
Manchester City Council,Manchester Leisure,Water - Unmetered,11-May-23,1908105433,Anglian Water Business (National),"£3,671.51"
Manchester City Council,Manchester Leisure,Water - Unmetered,11-May-23,1908105484,Anglian Water Business (National),£625.88
Manchester City Council,Manchester Leisure,Water - Unmetered,11-May-23,1908105488,Anglian Water Business (National),£775.80
Manchester City Council,Hospitality + Trading Services,Water - Unmetered,11-May-23,1908105436,Anglian Water Business (National),"£1,755.32"
Manchester City Council,Childrens & Education Services,Water - Unmetered,11-May-23,1908105407,Anglian Water Business (National),£566.11
Manchester City Council,Childrens & Education Services,Water - Unmetered,11-May-23,1908105450,Anglian Water Business (National),"£4,081.48"
Manchester City Council,Childrens & Education Services,Water - Unmetered,11-May-23,1908105466,Anglian Water Business (National),"£1,835.76"
Manchester City Council,Childrens & Education Services,Water - Unmetered,11-May-23,1908105496,Anglian Water Business (National),£877.67
Manchester City Council,Childrens & Education Services,Water - Unmetered,11-May-23,1908105504,Anglian Water Business (National),£775.80
Manchester City Council,Regeneration Finance,Water - Unmetered,11-May-23,1908105413,Anglian Water Business (National),£775.80
Manchester City Council,Regeneration Finance,Water - Unmetered,11-May-23,1908105438,Anglian Water Business (National),"£8,162.97"
Manchester City Council,Regeneration Finance,Water - Unmetered,11-May-23,1908105448,Anglian Water Business (National),"£8,162.97"
Manchester City Council,Regeneration Finance,Water - Unmetered,11-May-23,1908105451,Anglian Water Business (National),"£1,755.32"
Manchester City Council,Regeneration Finance,Water - Unmetered,11-May-23,1908105452,Anglian Water Business (National),"£8,162.97"
Manchester City Council,Regeneration Finance,Water - Unmetered,11-May-23,1908105453,Anglian Water Business (National),£775.80
Manchester City Council,Regeneration Finance,Water - Unmetered,11-May-23,1908105454,Anglian Water Business (National),"£1,755.32"
Manchester City Council,Regeneration Finance,Water - Unmetered,11-May-23,1908105456,Anglian Water Business (National),"£8,162.97"
Manchester City Council,Regeneration Finance,Water - Unmetered,11-May-23,1908105459,Anglian Water Business (National),"£1,755.32"
Manchester City Council,Regeneration Finance,Water - Unmetered,11-May-23,1908105460,Anglian Water Business (National),"£1,755.32"
Manchester City Council,Regeneration Finance,Water - Unmetered,11-May-23,1908105463,Anglian Water Business (National),"£15,508.70"
Manchester City Council,Regeneration Finance,Water - Unmetered,11-May-23,1908105464,Anglian Water Business (National),"£8,162.97"
Manchester City Council,Regeneration Finance,Water - Unmetered,11-May-23,1908105468,Anglian Water Business (National),£775.80
Manchester City Council,Regeneration Finance,Water - Unmetered,11-May-23,1908105470,Anglian Water Business (National),"£8,162.97"
Manchester City Council,Regeneration Finance,Water - Unmetered,11-May-23,1908105471,Anglian Water Business (National),"£1,755.32"
Manchester City Council,Regeneration Finance,Water - Unmetered,11-May-23,1908105472,Anglian Water Business (National),"£25,622.42"
Manchester City Council,Regeneration Finance,Water - Unmetered,11-May-23,1908105474,Anglian Water Business (National),"£1,755.32"
Manchester City Council,Regeneration Finance,Water - Unmetered,11-May-23,1908105479,Anglian Water Business (National),"£8,162.97"
Manchester City Council,Regeneration Finance,Water - Unmetered,11-May-23,1908105482,Anglian Water Business (National),"£15,508.70"
Manchester City Council,Regeneration Finance,Water - Unmetered,11-May-23,1908105489,Anglian Water Business (National),"£3,671.51"
Manchester City Council,Regeneration Finance,Water - Unmetered,11-May-23,1908105492,Anglian Water Business (National),"£3,671.51"
Manchester City Council,Regeneration Finance,Water - Unmetered,11-May-23,1908105493,Anglian Water Business (National),£775.80
Manchester City Council,Regeneration Finance,Water - Unmetered,11-May-23,1908105494,Anglian Water Business (National),£775.80
Manchester City Council,Regeneration Finance,Water - Unmetered,11-May-23,1908105495,Anglian Water Business (National),"£3,671.51"
Manchester City Council,Regeneration Finance,Water - Unmetered,11-May-23,1908105498,Anglian Water Business (National),£775.80
Manchester City Council,Regeneration Finance,Water - Unmetered,11-May-23,1908105500,Anglian Water Business (National),£775.80
Manchester City Council,Regeneration Finance,Water - Unmetered,11-May-23,1908105501,Anglian Water Business (National),£775.80
Manchester City Council,Regeneration Finance,Water - Unmetered,11-May-23,1908105502,Anglian Water Business (National),£775.80
Manchester City Council,Regeneration Finance,Water - Unmetered,11-May-23,1908105503,Anglian Water Business (National),"£3,671.51"
Manchester City Council,Regeneration Finance,Water - Unmetered,11-May-23,1908105505,Anglian Water Business (National),£775.80
Manchester City Council,Hospitality + Trading Services,Goods purchased for resale in Council outlets,11-May-23,5105871049,Obitus,"£2,363.00"
Manchester City Council,Childrens Services,Building Works,11-May-23,5105871219,Co-op Academy Belle Vue,"£12,426.23"
Manchester City Council,Childrens Services,Building Works,11-May-23,5105871264,Co-op Academy Belle Vue,"£62,596.27"
Manchester City Council,Manchester Leisure,I T Provision,11-May-23,5105871030,Eldercare (UK) Ltd,"£1,393.75"
Manchester City Council,Manchester Leisure,Other Allowances,11-May-23,1908092325,Tusker Direct,"£5,194.94"
Manchester City Council,Childrens & Education Services,Third party payments to other Local Authorities,11-May-23,5105871225,South Failsworth Primary,"£11,876.00"
Manchester City Council,Childrens & Education Services,Third party payments to other Local Authorities,11-May-23,5105871222,Kisharon Noe School,"£6,452.14"
Manchester City Council,Adult Social Care,Compensation Payments,11-May-23,1908106477,Bond Turner Solicitors,"£1,623.59"
Manchester City Council,Adult Social Care,Legal Fees,11-May-23,1908106470,Bond Turner Solicitors,"£3,500.00"
Manchester City Council,Manchester Leisure,Professional fees,11-May-23,5105871184,Inforhousing,"£4,950.00"
Manchester City Council,Childrens & Education Services,Payments for services,11-May-23,5105871159,Abbey School Limited,"£29,785.33"
Manchester City Council,Childrens & Education Services,Payments for services,11-May-23,5105871160,Abbey School Limited,"£29,785.33"
Manchester City Council,Manchester Leisure,Legal Fees,11-May-23,1908106471,EMERALD LAW,"£1,183.00"
Manchester City Council,Adult Social Care,Grant and subscriptions awarded,11-May-23,5105871268,Divrse Ltd,"£56,700.00"
Manchester City Council,Childrens & Education Services,Payments for services,11-May-23,5105871319,Manchester Parent Carer Forum,"£9,536.00"
Manchester City Council,Adult Social Care,Grant and subscriptions awarded,11-May-23,5105870979,Hong Kong in Chester,"£8,000.00"
Manchester City Council,Chief Executives,Licences Purchase,11-May-23,5105871166,ITS Software Systems Ltd,"-£3,750.00"
Manchester City Council,Adult Social Care,Equipment,11-May-23,5105871229,Arjo UK Limited,£928.00
Manchester City Council,Childrens & Education Services,Third party payments to other Local Authorities,11-May-23,5105871223,Moorside High School,"£2,542.00"
Manchester City Council,Childrens & Education Services,Counsel Costs,11-May-23,1908098446,Redacted Personal Information,£650.00
Manchester City Council,Adult Social Care,Rents,11-May-23,5105871346,Rtech Group Limited,"£1,404.17"
Manchester City Council,Adult Social Care,Rents,11-May-23,5105871371,Rtech Group Limited,"£1,358.33"
Manchester City Council,Adult Social Care,Rents,11-May-23,5105871373,Rtech Group Limited,"£1,016.67"
Manchester City Council,Manchester Leisure,Special Event,11-May-23,5105871185,Redacted Personal Information,"£2,500.00"
